Workbook

Sheet LDC Info
Z3: 1 | AA3: Alectra Utilities Corporation
Z4: 2 | AA4: Alectra Utilities Corporation - Brampton service territory
Z5: 3 | AA5: Alectra Utilities Corporation - Horizon Utilities service territory
Z6: 4 | AA6: Alectra Utilities Corporation - Mississauga service territory
Z7: 5 | AA7: Alectra Utilities Corporation - PowerStream service territory
Z8: 6 | AA8: Algoma Power Inc.
Z9: 7 | AA9: Atikokan Hydro Inc.
Z10: 8 | AA10: Attawapiskat Power Corporation
Z11: 9 | AA11: Bluewater Power Distribution Corporation
Z12: 10 | AA12: Brantford Power Inc.
Z13: 11 | AA13: Burlington Hydro Inc.
D14: Utility Name | E14: Kitchener-Wilmot Hydro Inc. | Z14: 12 | AA14: Canadian Niagara Power Inc. (Eastern Ontario Power/Fort Erie/Port Colborne)
Z15: 13 | AA15: Centre Wellington Hydro Ltd.
D16: Assigned EB Number | E16: EB-2019-0049 | Z16: 14 | AA16: Chapleau Public Utilities Corporation
Z17: 15 | AA17: COLLUS PowerStream Corp.
D18: Name of Contact and Title | E18: Margaret Nanninga, Vice President Finance & CFO | Z18: 16 | AA18: Cooperative Hydro Embrun Inc.
Z19: 17 | AA19: E.L.K. Energy Inc.
D20: Phone Number | E20: 519 749 6177 | Z20: 18 | AA20: Energy + Inc.
Z21: 19 | AA21: Enersource Hydro Mississauga Inc.
D22: Email Address | E22: mnanninga@kwhydro.ca | Z22: 20 | AA22: Entegrus Powerlines Inc.
Z23: 21 | AA23: ENWIN Utilities Ltd.
D24: Test Year | E24: 2020 | Z24: 22 | AA24: Erie Thames Powerlines Corporation
Z25: 23 | AA25: Espanola Regional Hydro Distribution Corporation
D26: Bridge Year | E26: =IF(ISBLANK(E24), "", E24-1) -> 2019 | Z26: 24 | AA26: Essex Powerlines Corporation
Z27: 25 | AA27: Festival Hydro Inc.
D28: Last Rebasing Year | E28: 2014 | Z28: 26 | AA28: Fort Albany Power Corporation
Z29: 27 | AA29: Fort Frances Power Corporation
A30: Identify the accounting standard used for the test year | Z30: 28 | AA30: Greater Sudbury Hydro Inc.
E31: MIFRS | Z31: 29 | AA31: Grimsby Power Inc.
Z32: 30 | AA32: Guelph Hydro Electric Systems Inc.
A33: Did you update your depreciation and capitalization policies and reflect the changes in policies in a prior rebasing application? | Z33: 31 | AA33: Halton Hills Hydro Inc.
E34: Yes | Z34: 32 | AA34: Hearst Power Distribution Company Limited
Z35: 33 | AA35: Hydro 2000 Inc.
A36: When did you update your actual depreciation and capitalization policies? | Z36: 34 | AA36: Hydro Hawkesbury Inc.
E37: 2001-01-01 | F37: 2012 | Z37: 35 | AA37: Hydro One Networks Inc.
Z38: 36 | AA38: Hydro One Networks Inc. - Norfolk, Haldimand, Woodstock
A39: Identify the year the applicant adopted IFRS for financial reporting purposes | Z39: 37 | AA39: Hydro One Remote Communities Inc.
E40: 2015 | Z40: 38 | AA40: Hydro Ottawa Limited
Z41: 39 | AA41: Innpower Corporation
Z42: 40 | AA42: Kashechewan Power Corporation
A43: Are you applying for cost recovery for the test and/or future year(s) for Green Energy initiatives? | Z43: 41 | AA43: Kenora Hydro Electric Corporation Ltd.
E44: No | Z44: 42 | AA44: Kingston Hydro Corporation
Z45: 43 | AA45: Kitchener-Wilmot Hydro Inc.
A46: ="Is " & E14 & " an embedded distributor?" -> Is Kitchener-Wilmot Hydro Inc. an embedded distributor? | E46: No | Z46: 44 | AA46: Lakefront Utilities Inc.
Z47: 45 | AA47: Lakeland Power Distribution Ltd.
Z48: 46 | AA48: London Hydro Inc.
B49: Notes | Z49: 47 | AA49: Midland Power Utility Corporation
Z50: 48 | AA50: Milton Hydro Distribution Inc.
C51: Pale green cells represent input cells. | Z51: 49 | AA51: Newmarket-Tay Power Distribution Ltd.
Z52: 50 | AA52: Niagara Peninsula Energy Inc.
C53: Pale blue cells represent drop-down lists. The applicant should select the appropriate item from the drop-down list. | Z53: 51 | AA53: Niagara-on-the-Lake Hydro Inc.
Z54: 52 | AA54: North Bay Hydro Distribution Limited
C55: White cells contain fixed values, automatically generated values or formulae. | N55: =IF(LEN($G55)>1, (SUMPRODUCT(--($C$78:$C$1000=$C55),--($A$78:$A$1000=$D55), --($B$78:$B$1000=$B55&"_TOTAL"), $L$78:$L$1000)), "") ->  | O55: =IF(LEN($G55)>1, (SUMPRODUCT(--($C$78:$C$1000=$C55),--($A$78:$A$1000=$D55), --($B$78:$B$1000=$B55&"_TOTAL"), $M$78:$M$1000)), "") ->  | Z55: 53 | AA55: Northern Ontario Wires Inc.
N56: =IF(LEN($G56)>1, (SUMPRODUCT(--($C$78:$C$1000=$C56),--($A$78:$A$1000=$D56), --($B$78:$B$1000=$B56&"_TOTAL"), $L$78:$L$1000)), "") ->  | O56: =IF(LEN($G56)>1, (SUMPRODUCT(--($C$78:$C$1000=$C56),--($A$78:$A$1000=$D56), --($B$78:$B$1000=$B56&"_TOTAL"), $M$78:$M$1000)), "") ->  | Z56: 54 | AA56: Oakville Hydro Electricity Distribution Inc.
Z57: 55 | AA57: Orangeville Hydro Limited
Z58: 56 | AA58: Orillia Power Distribution Corporation
Z59: 57 | AA59: Oshawa PUC Networks Inc.
Z60: 58 | AA60: Ottawa River Power Corporation
Z61: 59 | AA61: Peterborough Distribution Inc.
Z62: 60 | AA62: PUC Distribution Inc.
Z63: 61 | AA63: Renfrew Hydro Inc.
Z64: 62 | AA64: Rideau St. Lawrence Distribution Inc.
Z65: 63 | AA65: Sioux Lookout Hydro Inc.
Z66: 64 | AA66: St. Thomas Energy Inc.
Z67: 65 | AA67: Thunder Bay Hydro Electricity Distribution Inc.
Z68: 66 | AA68: Tillsonburg Hydro Inc.
Z69: 67 | AA69: Toronto Hydro-Electric System Limited
Z70: 68 | AA70: Veridian Connections Inc.
Z71: 69 | AA71: Wasaga Distribution Inc.
Z72: 70 | AA72: Waterloo North Hydro Inc.
Z73: 71 | AA73: Welland Hydro-Electric System Corp.
Z74: 72 | AA74: Wellington North Power Inc.
Z75: 73 | AA75: West Coast Huron Energy Inc.
Z76: 74 | AA76: Westario Power Inc.
Z77: 75 | AA77: Whitby Hydro Electric Corporation

Sheet Index
A15: 1 | B15: LDC Information Sheet | E15: 20 | F15: App.2-G: Service Reliability Indicators
A16: 2 | B16: Index | E16: 21 | F16: App.2-H: Other Operating Revenue (TO BE UPDATED AT THE DRAFT RATE ORDER STAGE)
A17: 3 | B17: Cost of Service Application Flowchart | E17: 22 | F17: App.2-I: Load Forecast CDM Adjustment Workform
A18: 4 | B18: List of Key References | E18: 23 | F18: App.2-IA: Load Forecast Data Instructions
A19: 5 | B19: App.2-A: List of Requested Approvals | E19: 24 | F19: App.2-IB: Actual and Forecast Load and Customer Data
A20: 6 | B20: App.2-AA: Capital Projects Table | E20: 25 | F20: App.2-JA: OM&A Summary Analysis (TO BE UPDATED AT THE DRAFT RATE ORDER STAGE)
A21: 7 | B21: App.2-AB: Capital Expenditures (TO BE UPDATED AT THE DRAFT RATE ORDER STAGE) | E21: 26 | F21: App.2-JB: Recoverable OM&A Cost Driver Table
A22: 8 | B22: App. 2-AC: Customer Engagement Worksheet | E22: 27 | F22: App.2-JC: OM&A Programs Table
A23: 9 | B23: App.2-B: General Accounting Instructions | E23: 28 | F23: App.2-K: Employee Costs (TO BE UPDATED AT THE DRAFT RATE ORDER STAGE)
A24: 10 | B24: App.2-BA: Fixed Asset Continuity Schedule | E24: 29 | F24: App.2-L: Recoverable OM&A Cost per Customer and per FTE
A25: 11 | B25: Appendix 2-BB: Service Life Comparison | E25: 30 | F25: App.2-M: Regulatory Costs Schedule (TO BE UPDATED AT THE DRAFT RATE ORDER STAGE)
A26: 12 | B26: App.2-C_DepExp: Depreciation and Amortization Expense | E26: 31 | F26: App.2-N: Shared Services and Corporate Cost Allocation
A27: 13 | B27: App.2-D: Overhead Expenses | E27: 32 | F27: App.2-OA: Capital Structure and Cost of Capital
A28: 14 | B28: App.2-EA: Account 1575 PP&E Deferral Account (2015 IFRS Adopters) - CONTACT OEB STAFF IF TAB REQUIRED | E28: 33 | F28: App.2-OB: Debt Instruments
A29: 15 | B29: App.2-EB: Account 1576 - Accounting Changes Under CGAAP (2012 Changes) - CONTACT OEB STAFF IF TAB REQUIRED | E29: 34 | F29: App.2-Q: Cost of Serving Embedded Distributor(s)
A30: 16 | B30: App.2-EC: Account 1576 - Accounting Changes Under CGAAP (2013 Changes) - CONTACT OEB STAFF IF TAB REQUIRED | E30: 35 | F30: App.2-R: Loss Factors
A31: 17 | B31: App.2-FA: Renewable Generation Connection Investment Summary (TO BE UPDATED AT THE DRAFT RATE ORDER STAGE) | E31: 36 | F31: App.2-S: Stranded Meter Treatment
A32: 18 | B32: App.2-FB: Calculation of Renewable Generation Connection Direct Benefits/Provincial Amount: Renewable Enabling Improvement Investments (TO BE UPDATED AT THE DRAFT RATE ORDER STAGE) | E32: 37 | F32: App.2-Y: Transition to MIFRS Summary Impact - CONTACT OEB STAFF IF TAB REQUIRED
A33: 19 | B33: App.2-FC: Calculation of Renewable Generation Connection Direct Benefits/Provincial Amount: Renewable Expansion Investments (TO BE UPDATED AT THE DRAFT RATE ORDER STAGE) | E33: 38 | F33: App.2-YA: One-Time Incremental IFRS Transition Costs - CONTACT OEB STAFF IF TAB REQUIRED
E34: 39 | F34: App.2-Z: Commodity Expense
A42: Note: | B42: Appendices for the Tariff of Rates and Charges at Current and Proposed Rates, and for the Bill Impacts are now in a separate spreadsheet model. These appendices were formerly 2-Z and 2-W.

Sheet COS Flowchart
B4: Cost of Service Rate Application Schematic
B6: The Cost of Service Rate Application Schematic is a flowchart that is included as a guide for the components of an application. The schematic demonstrates how demand and costs interrelate to derive the revenue requirement and how the revenue requirement is allocated between classes and through fixed/variable splits to derive rates that will be compensatory for the annual revenue requirement, based on the the forecasted demand. There is no form to be filled out; therefore, this Schedule is not required to be filed.

Sheet List of Key References
B2: List of Key References
A4: A list of key references for understanding the Filing Requirements has been embedded in the document below. To access the list of references and associated hyperlinks double-click the icon below.

Sheet App.2-AA_Capital Projects
H1: File Number: | I1: =EBNUMBER -> EB-2019-0049
H2: Exhibit:
H3: Tab:
H4: Schedule:
H5: Page:
H7: Date:
A9: Appendix 2-AA
A10: Capital Projects Table
A13: Projects | B13: 2014 | C13: =D13-1 -> 2015 | D13: =E13-1 -> 2016 | E13: =F13-1 -> 2017 | F13: =BridgeYear - 1 -> 2018 | G13: =BridgeYear & " Bridge Year" -> 2019 Bridge Year | H13: =TestYear & " Test Year" -> 2020 Test Year
A14: Reporting Basis | B14: MIFRS | C14: MIFRS | D14: MIFRS | E14: MIFRS | F14: MIFRS | G14: MIFRS | H14: MIFRS
A15: System Access
A16: LRT Relocations | B16: 4775 | C16: 7374 | D16: 8596 | E16: 2976.5 | F16: 0 | G16: 0 | H16: 0
A17: Roadway Relocations | B17: 1744 | C17: 2822 | D17: 2357 | E17: 2339.23 | F17: 1720 | G17: 1550 | H17: 1700
A18: Underground Residential Distribution | B18: 3531 | C18: 3406 | D18: 2589 | E18: 3086.2 | F18: 3480 | G18: =3708+600 -> 4308 | H18: =3708-600 -> 3108
A19: Commercial, Industrial & Apartment Services | B19: 412 | C19: 1142 | D19: 734 | E19: 1108.8 | F19: 1161 | G19: 1084 | H19: 1209
A20: Revenue Meters & Generation Connections | B20: 656 | C20: 386.5 | D20: 673 | E20: 823.8 | F20: 832 | G20: 640 | H20: 597
A21: System Expansion - Customer Growth | B21: 8 | C21: 12 | D21: 895 | E21: 592.26 | F21: 119.6 | G21: 0 | H21: 0
A22: Miscellaneous U/G Customer Connections | B22: 301 | C22: 370 | D22: 410 | E22: 464.4 | F22: 493 | G22: 450 | H22: 450
A23: Miscellaneous O/H Customer Connections | B23: 51 | C23: 108 | D23: 578 | E23: 278.45 | F23: 198 | G23: 0 | H23: 0
A24: Miscellaneous - Tx installed and Others | B24: 209 | C24: 196 | D24: 98 | E24: 145 | F24: 103 | G24: 0 | H24: 0
A29: Sub-Total | B29: =SUM(B16:B28) -> 11687 | C29: 15816.5 | D29: 16930 | E29: 11814.64 | F29: 8106.6 | G29: 8032 | H29: 7064
A30: System Renewal
A31: TS and DS Renewal | B31: 1669 | C31: 600.3 | D31: 1002 | E31: 1010.5 | F31: 701.545 | G31: 1624.5 | H31: 2004
A32: Replacement of Pole Line Assets | B32: 1804 | C32: 907 | D32: 1570 | E32: 2381.85 | F32: 3017.017 | G32: 2938 | H32: 3404
A33: Voltage Conversion | B33: 0 | C33: 0 | D33: 0 | E33: 161.5 | F33: 1175.207 | G33: 1400 | H33: 1375
A34: Replacement of Primary Cables and Conduits | B34: 195 | C34: 336 | D34: 486 | E34: 435.5 | F34: 965.209 | G34: 800 | H34: 850
A35: Rebuild Transformer Vaults & Pull Boxes | B35: 0 | C35: 0 | D35: 0 | E35: 0 | F35: 61.87 | G35: 240 | H35: 240
A36: Network Transformer Replacement | B36: 96 | C36: 167 | D36: 182.5 | E36: 295.7 | F36: 363.516 | G36: 192 | H36: 192
A37: Distribution Transformer Installation and Replacement | B37: 966 | C37: 1167.5 | D37: 1224.5 | E37: 964 | F37: 1209.545 | G37: 1350 | H37: 1350
A38: Miscellaneous U/G plant replacements | B38: 91 | C38: 130 | D38: 133.7 | E38: 98 | F38: 184.12 | G38: 0 | H38: 0
A39: Miscellaneous O/H plant replacements | B39: 0 | C39: 14 | D39: 17 | E39: 29.9 | F39: 50 | G39: 0 | H39: 0
A46: Sub-Total | B46: =SUM(B31:B45) -> 4821 | C46: =SUM(C31:C45) -> 3321.8 | D46: =SUM(D31:D45) -> 4615.7 | E46: 5376.95 | F46: 7728.029 | G46: 8544.5 | H46: 9415
A47: System Service
A48: System Expansion to Supply New Developments - TS | B48: 0 | C48: -835 | D48: 0 | E48: 0 | F48: 0 | G48: 0 | H48: 0
A49: System Expansion to Supply New Developments - O/H | B49: 720 | C49: 506 | D49: 579.3 | E49: 560.4 | F49: 600.584 | G49: 600 | H49: 700
A50: System Expansion to Supply New Developments - U/G | B50: 406 | C50: 613 | D50: 865 | E50: 354.8 | F50: 486.676 | G50: 700 | H50: 1700
A51: Innovation and Reliability | B51: 211 | C51: 110 | D51: 424.8 | E51: 503.4 | F51: 377.297 | G51: 800 | H51: 800
A52: Voltage Conversion - Reliability/Flexibility | B52: 168 | C52: 389.3 | D52: 483.8 | E52: 0 | F52: 0 | G52: 0 | H52: 0
A53: Miscellaneous | B53: 40 | C53: 55.7 | D53: 67 | E53: 39.2 | F53: 5.4 | G53: 0 | H53: 0
A61: Sub-Total | B61: =SUM(B48:B60) -> 1545 | C61: =SUM(C48:C60) -> 839 | D61: 2419.9 | E61: 1457.8 | F61: 1469.957 | G61: 2100 | H61: 3200
A62: General Plant
A63: Land & Buildings | B63: 725 | C63: 273 | D63: 254.5 | E63: 1140.9 | F63: 750 | G63: 750 | H63: 750
A64: Office Equipment | B64: 58 | C64: 64 | D64: 37 | E64: 53.4 | F64: 108.7 | G64: 70 | H64: 70
A65: IT/OT Systems | B65: 471 | C65: 697 | D65: 800.8 | E65: 593.2 | F65: 1165 | G65: =5190-1100 -> 4090 | H65: =2335+2200 -> 4535
A66: Vehicles | B66: 862 | C66: 661 | D66: 859.7 | E66: 871.2 | F66: 875 | G66: 975 | H66: 1000
A67: Tools & Equipment | B67: 164 | C67: 164 | D67: 140.7 | E67: 147.9 | F67: 130.6 | G67: 140 | H67: 140
A73: Sub-Total | B73: =SUM(B63:B72) -> 2280 | C73: =SUM(C63:C72) -> 1859 | D73: 2092.7 | E73: 2806.6 | F73: 3029.3 | G73: 6025 | H73: 6495
A74: Miscellaneous
A75: Total | B75: =+B73+B61+B46+B29 -> 20333 | C75: =+C73+C61+C46+C29 -> 21836.3 | D75: 26058.3 | E75: 21455.99 | F75: 20333.886 | G75: 24701.5 | H75: 26174
A76: Less Renewable Generation Facility Assets and Other Non-Rate-Regulated Utility Assets (input as negative)
A77: Total | B77: =+B75 -> 20333 | C77: =C75+C76 -> 21836.3 | D77: 26058.3 | E77: 21455.99 | F77: 20333.886 | G77: 24701.5 | H77: 26174
A79: Notes:
A81: 1 Please provide a breakdown of the major components of each capital project undertaken in each year. Please ensure that all projects below the materiality threshold are included in the miscellaneous line. Add more projects as required.
A82: 2 The applicant should group projects appropriately and avoid presentations that result in classification of significant components of the capital budget in the miscellaneous category.

Sheet App.2-A_Requested_Approvals
G1: File Number: | H1: =EBNUMBER -> EB-2019-0049
G2: Exhibit:
G3: Tab:
G4: Schedule:
G5: Page:
G7: Date:
B9: Appendix 2-A
B10: List of Requested Approvals
B12: The distributor must fill out the following sheet with the complete list of specific approvals requested and relevant section(s) of the legislation must be provided. All approvals, including accounting orders (deferral and variance accounts) new rate classes, revised specific service charges or retail service charges which the applicant is seeking, must be separately identified, as well being clearly documented in the appropriate sections of the application.
B14: Additional requests may be added by copying and pasting blank input rows, as needed.
B16: If additional requests arise, or requested approvals are removed, during the processing of the application, the distributor should update this list.
B18: =CONCATENATE('LDC Info'!E14," is seeking the following approvals in this application:") -> Kitchener-Wilmot Hydro Inc. is seeking the following approvals in this application:
B20: 1 | F20: Approval to charge distribution rate effective January 1, 2020 to recover a service revenue requirement of $48,771,171 which includes a revenue deficiency of $3,472,948 as detailed in Exhibit 6. The schedule of proposed rates is in Exhibit 8.
B22: 2 | F22: Approval to adjust the Retail Transmission Rates - Network and connection as detailed in Exhibit 8
B24: 3 | F24: Approval of proposed Loss Factors as detailed in Exhibit 8
B26: 4 | F26: Approval to continue to use the Transformer Allowance and Primary Metering allowance for transformer losses most recently approved as part of the last Cost of Service application (EB-2013-0147). Listed in Appendix 8.
B28: 5 | F28: Approval of te rate riders for disposition of the Group 1 and Group 2 Deferral and Variance Accounts as detailed in Exhibit 9
B30: 6 | F30: Approval of the rate rider for a one-year disposition of the Lost Revenue Adjustment Mechanism Variance Account (LRAMVA) for lost revenue as presented in Exhibit 4 and 9 of this Application
B32: 7 | F32: Approval to increase the Service Charge "Meter Removal without Authorization" detailed in Exhibit 8

Sheet App.2-AB_Capital Expenditures
AE1: File Number: | AG1: =EBNUMBER -> EB-2019-0049
AE2: Exhibit:
AE3: Tab:
AE4: Schedule:
A5: TO BE UPDATED AT THE DRAFT RATE ORDER STAGE | AE5: Page:
AE7: Date:
A9: Appendix 2-AB
A10: Table 2 - Capital Expenditure Summary from Chapter 5 Consolidated Distribution System Plan Filing Requirements
A11: First year of Forecast Period:
A12: =TestYear -> 2020
A13: CATEGORY | B13: Historical Period (previous plan1 & actual) | AC13: Forecast Period (planned)
B14: =E14-1 -> 2011 | E14: =H14-1 -> 2012 | H14: =K14-1 -> 2013 | K14: =N14-1 -> 2014 | N14: =Q14-1 -> 2015 | Q14: =T14-1 -> 2016 | T14: =W14-1 -> 2017 | W14: =Z14-1 -> 2018 | Z14: =AC14-1 -> 2019 | AC14: =A12 -> 2020 | AD14: =AC14+1 -> 2021 | AE14: =AD14+1 -> 2022 | AF14: =AE14+1 -> 2023 | AG14: =AF14+1 -> 2024
B15: Plan | C15: Actual | D15: Var | E15: Plan | F15: Actual | G15: Var | H15: Plan | I15: Actual | J15: Var | K15: Plan | L15: Actual | M15: Var | N15: Plan | O15: Actual | P15: Var | Q15: Plan | R15: Actual | S15: Var | T15: Plan | U15: Actual | V15: Var | W15: Plan | X15: Actual | Y15: Var | Z15: Plan | AA15: Actual2 | AB15: Var
B16: $ '000 | D16: % | E16: $ '000 | G16: % | H16: $ '000 | J16: % | K16: $ '000 | M16: % | N16: $ '000 | P16: % | Q16: $ '000 | S16: % | T16: $ '000 | V16: % | W16: $ '000 | Y16: % | Z16: $ '000 | AB16: % | AC16: $ '000
A17: System Access | D17: =IF(ISERROR((C17-B17)/B17),"--",(C17-B17)/B17) -> -- | G17: =IF(ISERROR((F17-E17)/E17),"--",(F17-E17)/E17) -> -- | J17: =IF(ISERROR((I17-H17)/H17),"--",(I17-H17)/H17) -> -- | K17: 10296 | L17: 11687 | M17: =IF(ISERROR((L17-K17)/K17),"--",(L17-K17)/K17) -> 0.1351010101 | N17: 12255 | O17: 15817 | P17: =IF(ISERROR((O17-N17)/N17),"--",(O17-N17)/N17) -> 0.2906568747 | Q17: 11468 | R17: 16918 | S17: =IF(ISERROR((R17-Q17)/Q17),"--",(R17-Q17)/Q17) -> 0.4752354377 | T17: 8866 | U17: 11815 | V17: =IF(ISERROR((U17-T17)/T17),"--",(U17-T17)/T17) -> 0.3326189939 | W17: 7465 | X17: 8107 | Y17: =IF(ISERROR((X17-W17)/W17),"--",(X17-W17)/W17) -> 0.08600133958 | Z17: =7432+600 -> 8032 | AB17: =IF(ISERROR((AA17-Z17)/Z17),"--",(AA17-Z17)/Z17) -> -1 | AC17: =7665-600 -> 7065 | AD17: 7767 | AE17: 7818 | AF17: 7717 | AG17: 7767
A18: System Renewal | D18: =IF(ISERROR((C18-B18)/B18),"--",(C18-B18)/B18) -> -- | G18: =IF(ISERROR((F18-E18)/E18),"--",(F18-E18)/E18) -> -- | J18: =IF(ISERROR((I18-H18)/H18),"--",(I18-H18)/H18) -> -- | K18: 5970 | L18: 4821 | M18: =IF(ISERROR((L18-K18)/K18),"--",(L18-K18)/K18) -> -0.1924623116 | N18: 4791 | O18: 3322 | P18: =IF(ISERROR((O18-N18)/N18),"--",(O18-N18)/N18) -> -0.3066165727 | Q18: 4805 | R18: 4616 | S18: =IF(ISERROR((R18-Q18)/Q18),"--",(R18-Q18)/Q18) -> -0.03933402706 | T18: 7539 | U18: 5377 | V18: =IF(ISERROR((U18-T18)/T18),"--",(U18-T18)/T18) -> -0.2867754344 | W18: 8159 | X18: 7728 | Y18: =IF(ISERROR((X18-W18)/W18),"--",(X18-W18)/W18) -> -0.05282510112 | Z18: 8545 | AB18: =IF(ISERROR((AA18-Z18)/Z18),"--",(AA18-Z18)/Z18) -> -1 | AC18: 9415 | AD18: 10350 | AE18: 10650 | AF18: 11400 | AG18: 11500
A19: System Service | D19: -- | G19: -- | J19: -- | K19: 1520 | L19: 1545 | M19: 0.01644736842 | N19: 1620 | O19: 839 | P19: -0.4820987654 | Q19: 3050 | R19: 2420 | S19: -0.206557377 | T19: 2630 | U19: 1548 | V19: -0.4114068441 | W19: 2350 | X19: 1476 | Y19: -0.3719148936 | Z19: 2100 | AB19: -1 | AC19: 3200 | AD19: 3200 | AE19: 2800 | AF19: 2300 | AG19: 2300
A20: General Plant | D20: -- | G20: -- | J20: -- | K20: 3150 | L20: 2280 | M20: -0.2761904762 | N20: 1920 | O20: 1859 | P20: -0.03177083333 | Q20: 2229 | R20: 2105 | S20: -0.0556303275 | T20: 3760 | U20: 2807 | V20: -0.2534574468 | W20: 5465 | X20: 3030 | Y20: -0.4455626715 | Z20: =7125-1100 -> 6025 | AB20: -1 | AC20: =4295+2200 -> 6495 | AD20: 3275 | AE20: 3565 | AF20: 3500 | AG20: 3480
A21: TOTAL EXPENDITURE | B21: =SUM(B17:B20) -> 0 | C21: =SUM(C17:C20) -> 0 | D21: -- | E21: =SUM(E17:E20) -> 0 | F21: =SUM(F17:F20) -> 0 | G21: -- | H21: =SUM(H17:H20) -> 0 | I21: =SUM(I17:I20) -> 0 | J21: -- | K21: =SUM(K17:K20) -> 20936 | L21: =SUM(L17:L20) -> 20333 | M21: -0.02880206343 | N21: =SUM(N17:N20) -> 20586 | O21: =SUM(O17:O20) -> 21837 | P21: 0.06076945497 | Q21: 21552 | R21: 26059 | S21: 0.2091221232 | T21: 22795 | U21: 21547 | V21: -0.05474884843 | W21: 23439 | X21: 20341 | Y21: -0.1321728743 | Z21: 24702 | AA21: 0 | AB21: -1 | AC21: 26175 | AD21: 24592 | AE21: 24833 | AF21: 24917 | AG21: =SUM(AG17:AG20) -> 25047
A22: Capital Contributions | D22: -- | G22: -- | J22: -- | K22: =-20936+17154 -> -3782 | L22: -6698 | M22: 0.771020624 | O22: -9460 | P22: -- | R22: -8951 | S22: -- | U22: -6243 | V22: -- | X22: -4697 | Y22: -- | Z22: -4000 | AB22: -1 | AC22: -4000 | AD22: -4000 | AE22: -4000 | AF22: -4000 | AG22: -4000
A23: Net Capital Expenditures | D23: -- | G23: -- | J23: -- | K23: =+K21+K22 -> 17154 | L23: =+L21+L22 -> 13635 | M23: -0.2051416579 | O23: =+O21+O22 -> 12377 | P23: -- | R23: =+R21+R22 -> 17108 | S23: -- | U23: =+U21+U22 -> 15304 | V23: -- | X23: =+X21+X22 -> 15644 | Y23: -- | AA23: =+AA21+AA22 -> 0 | AB23: -- | AC23: =+AC21+AC22 -> 22175 | AD23: =+AD21+AD22 -> 20592 | AE23: =+AE21+AE22 -> 20833 | AF23: =+AF21+AF22 -> 20917 | AG23: =+AG21+AG22 -> 21047
A24: System O&M | D24: -- | G24: -- | J24: -- | K24: 11280 | L24: 10116 | M24: -0.1031914894 | O24: 9377 | P24: -- | R24: 9498 | S24: -- | U24: 10625 | V24: -- | X24: 11811 | Y24: -- | Z24: 12576 | AB24: -1 | AC24: 12427 | AD24: 12427 | AE24: 12427 | AF24: 12427 | AG24: 12427
A26: Notes to the Table:
A27: 1. Historical “previous plan” data is not required unless a plan has previously been filed. However, use the last Board-approved, at least on a Total (Capital) Expenditure basis for the last cost of service rebasing year, and the applicant should include their planned budget in each subsequent historical year up to and including the Bridge Year.
A28: 2. Indicate the number of months of 'actual' data included in the last year of the Historical Period (normally a 'bridge' year):
A30: Explanatory Notes on Variances (complete only if applicable)
A31: Notes on shifts in forecast vs. historical budgets by category
A34: Notes on year over year Plan vs. Actual variances for Total Expenditures
A37: Notes on Plan vs. Actual variance trends for individual expenditure categories

Sheet Hidden_CAPEX (hidden)
A1: Utility Name | B1: EB Number | C1: Test Year | D1: Bridge Year | E1: Last Rebasing Year | F1: Category | G1: Year | H1: Plan | I1: Actual
A2: ='LDC Info'!$E$14 -> Kitchener-Wilmot Hydro Inc. | B2: =EBNUMBER -> EB-2019-0049 | C2: =TestYear -> 2020 | D2: =BridgeYear -> 2019 | E2: =RebaseYear -> 2014 | F2: System Access | G2: 2010 | H2: ='App.2-AB_Capital Expenditures'!B17 -> 0 | I2: ='App.2-AB_Capital Expenditures'!C17 -> 0
A3: ='LDC Info'!$E$14 -> Kitchener-Wilmot Hydro Inc. | B3: EB-2019-0049 | C3: 2020 | D3: 2019 | E3: 2014 | F3: System Renewal | G3: 2010 | H3: ='App.2-AB_Capital Expenditures'!B18 -> 0 | I3: ='App.2-AB_Capital Expenditures'!C18 -> 0
A4: ='LDC Info'!$E$14 -> Kitchener-Wilmot Hydro Inc. | B4: EB-2019-0049 | C4: 2020 | D4: 2019 | E4: 2014 | F4: System Service | G4: 2010 | H4: ='App.2-AB_Capital Expenditures'!B19 -> 0 | I4: ='App.2-AB_Capital Expenditures'!C19 -> 0
A5: ='LDC Info'!$E$14 -> Kitchener-Wilmot Hydro Inc. | B5: EB-2019-0049 | C5: 2020 | D5: 2019 | E5: 2014 | F5: General Plant | G5: 2010 | H5: ='App.2-AB_Capital Expenditures'!B20 -> 0 | I5: ='App.2-AB_Capital Expenditures'!C20 -> 0
A6: ='LDC Info'!$E$14 -> Kitchener-Wilmot Hydro Inc. | B6: EB-2019-0049 | C6: 2020 | D6: 2019 | E6: 2014 | F6: Total Expenditure | G6: 2010 | H6: ='App.2-AB_Capital Expenditures'!B21 -> 0 | I6: ='App.2-AB_Capital Expenditures'!C21 -> 0
A7: ='LDC Info'!$E$14 -> Kitchener-Wilmot Hydro Inc. | B7: EB-2019-0049 | C7: 2020 | D7: 2019 | E7: 2014 | F7: Capital Contributions | G7: 2010 | H7: ='App.2-AB_Capital Expenditures'!B22 -> 0 | I7: ='App.2-AB_Capital Expenditures'!C22 -> 0
A8: ='LDC Info'!$E$14 -> Kitchener-Wilmot Hydro Inc. | B8: EB-2019-0049 | C8: 2020 | D8: 2019 | E8: 2014 | F8: Net Capital Expenditures | G8: 2010 | H8: ='App.2-AB_Capital Expenditures'!B23 -> 0 | I8: ='App.2-AB_Capital Expenditures'!C23 -> 0
A9: ='LDC Info'!$E$14 -> Kitchener-Wilmot Hydro Inc. | B9: EB-2019-0049 | C9: 2020 | D9: 2019 | E9: 2014 | F9: System O&M | G9: 2010 | H9: ='App.2-AB_Capital Expenditures'!B24 -> 0 | I9: ='App.2-AB_Capital Expenditures'!C24 -> 0
A10: ='LDC Info'!$E$14 -> Kitchener-Wilmot Hydro Inc. | B10: EB-2019-0049 | C10: 2020 | D10: 2019 | E10: 2014 | F10: System Access | G10: 2011 | H10: ='App.2-AB_Capital Expenditures'!E17 -> 0 | I10: ='App.2-AB_Capital Expenditures'!F17 -> 0
A11: ='LDC Info'!$E$14 -> Kitchener-Wilmot Hydro Inc. | B11: EB-2019-0049 | C11: 2020 | D11: 2019 | E11: 2014 | F11: System Renewal | G11: 2011 | H11: ='App.2-AB_Capital Expenditures'!E18 -> 0 | I11: ='App.2-AB_Capital Expenditures'!F18 -> 0
A12: ='LDC Info'!$E$14 -> Kitchener-Wilmot Hydro Inc. | B12: EB-2019-0049 | C12: 2020 | D12: 2019 | E12: 2014 | F12: System Service | G12: 2011 | H12: ='App.2-AB_Capital Expenditures'!E19 -> 0 | I12: ='App.2-AB_Capital Expenditures'!F19 -> 0
A13: ='LDC Info'!$E$14 -> Kitchener-Wilmot Hydro Inc. | B13: EB-2019-0049 | C13: 2020 | D13: 2019 | E13: 2014 | F13: General Plant | G13: 2011 | H13: ='App.2-AB_Capital Expenditures'!E20 -> 0 | I13: ='App.2-AB_Capital Expenditures'!F20 -> 0
A14: ='LDC Info'!$E$14 -> Kitchener-Wilmot Hydro Inc. | B14: EB-2019-0049 | C14: 2020 | D14: 2019 | E14: 2014 | F14: Total Expenditure | G14: 2011 | H14: ='App.2-AB_Capital Expenditures'!E21 -> 0 | I14: ='App.2-AB_Capital Expenditures'!F21 -> 0
A15: ='LDC Info'!$E$14 -> Kitchener-Wilmot Hydro Inc. | B15: EB-2019-0049 | C15: 2020 | D15: 2019 | E15: 2014 | F15: Capital Contributions | G15: 2011 | H15: ='App.2-AB_Capital Expenditures'!E22 -> 0 | I15: ='App.2-AB_Capital Expenditures'!F22 -> 0
A16: ='LDC Info'!$E$14 -> Kitchener-Wilmot Hydro Inc. | B16: EB-2019-0049 | C16: 2020 | D16: 2019 | E16: 2014 | F16: Net Capital Expenditures | G16: 2011 | H16: ='App.2-AB_Capital Expenditures'!E23 -> 0 | I16: ='App.2-AB_Capital Expenditures'!F23 -> 0
A17: ='LDC Info'!$E$14 -> Kitchener-Wilmot Hydro Inc. | B17: EB-2019-0049 | C17: 2020 | D17: 2019 | E17: 2014 | F17: System O&M | G17: 2011 | H17: ='App.2-AB_Capital Expenditures'!E24 -> 0 | I17: ='App.2-AB_Capital Expenditures'!F24 -> 0
A18: ='LDC Info'!$E$14 -> Kitchener-Wilmot Hydro Inc. | B18: EB-2019-0049 | C18: 2020 | D18: 2019 | E18: 2014 | F18: System Access | G18: 2012 | H18: ='App.2-AB_Capital Expenditures'!H17 -> 0 | I18: ='App.2-AB_Capital Expenditures'!I17 -> 0
A19: ='LDC Info'!$E$14 -> Kitchener-Wilmot Hydro Inc. | B19: EB-2019-0049 | C19: 2020 | D19: 2019 | E19: 2014 | F19: System Renewal | G19: 2012 | H19: ='App.2-AB_Capital Expenditures'!H18 -> 0 | I19: ='App.2-AB_Capital Expenditures'!I18 -> 0
A20: ='LDC Info'!$E$14 -> Kitchener-Wilmot Hydro Inc. | B20: EB-2019-0049 | C20: 2020 | D20: 2019 | E20: 2014 | F20: System Service | G20: 2012 | H20: ='App.2-AB_Capital Expenditures'!H19 -> 0 | I20: ='App.2-AB_Capital Expenditures'!I19 -> 0
A21: ='LDC Info'!$E$14 -> Kitchener-Wilmot Hydro Inc. | B21: EB-2019-0049 | C21: 2020 | D21: 2019 | E21: 2014 | F21: General Plant | G21: 2012 | H21: ='App.2-AB_Capital Expenditures'!H20 -> 0 | I21: ='App.2-AB_Capital Expenditures'!I20 -> 0
A22: ='LDC Info'!$E$14 -> Kitchener-Wilmot Hydro Inc. | B22: EB-2019-0049 | C22: 2020 | D22: 2019 | E22: 2014 | F22: Total Expenditure | G22: 2012 | H22: ='App.2-AB_Capital Expenditures'!H21 -> 0 | I22: ='App.2-AB_Capital Expenditures'!I21 -> 0
A23: ='LDC Info'!$E$14 -> Kitchener-Wilmot Hydro Inc. | B23: EB-2019-0049 | C23: 2020 | D23: 2019 | E23: 2014 | F23: Capital Contributions | G23: 2012 | H23: ='App.2-AB_Capital Expenditures'!H22 -> 0 | I23: ='App.2-AB_Capital Expenditures'!I22 -> 0
A24: ='LDC Info'!$E$14 -> Kitchener-Wilmot Hydro Inc. | B24: EB-2019-0049 | C24: 2020 | D24: 2019 | E24: 2014 | F24: Net Capital Expenditures | G24: 2012 | H24: ='App.2-AB_Capital Expenditures'!H23 -> 0 | I24: ='App.2-AB_Capital Expenditures'!I23 -> 0
A25: ='LDC Info'!$E$14 -> Kitchener-Wilmot Hydro Inc. | B25: EB-2019-0049 | C25: 2020 | D25: 2019 | E25: 2014 | F25: System O&M | G25: 2012 | H25: ='App.2-AB_Capital Expenditures'!H24 -> 0 | I25: ='App.2-AB_Capital Expenditures'!I24 -> 0
A26: ='LDC Info'!$E$14 -> Kitchener-Wilmot Hydro Inc. | B26: EB-2019-0049 | C26: 2020 | D26: 2019 | E26: 2014 | F26: System Access | G26: 2013 | H26: ='App.2-AB_Capital Expenditures'!K17 -> 10296 | I26: ='App.2-AB_Capital Expenditures'!L17 -> 11687
A27: ='LDC Info'!$E$14 -> Kitchener-Wilmot Hydro Inc. | B27: EB-2019-0049 | C27: 2020 | D27: 2019 | E27: 2014 | F27: System Renewal | G27: 2013 | H27: ='App.2-AB_Capital Expenditures'!K18 -> 5970 | I27: ='App.2-AB_Capital Expenditures'!L18 -> 4821
A28: ='LDC Info'!$E$14 -> Kitchener-Wilmot Hydro Inc. | B28: EB-2019-0049 | C28: 2020 | D28: 2019 | E28: 2014 | F28: System Service | G28: 2013 | H28: ='App.2-AB_Capital Expenditures'!K19 -> 1520 | I28: ='App.2-AB_Capital Expenditures'!L19 -> 1545
A29: ='LDC Info'!$E$14 -> Kitchener-Wilmot Hydro Inc. | B29: EB-2019-0049 | C29: 2020 | D29: 2019 | E29: 2014 | F29: General Plant | G29: 2013 | H29: ='App.2-AB_Capital Expenditures'!K20 -> 3150 | I29: ='App.2-AB_Capital Expenditures'!L20 -> 2280
A30: ='LDC Info'!$E$14 -> Kitchener-Wilmot Hydro Inc. | B30: EB-2019-0049 | C30: 2020 | D30: 2019 | E30: 2014 | F30: Total Expenditure | G30: 2013 | H30: ='App.2-AB_Capital Expenditures'!K21 -> 20936 | I30: ='App.2-AB_Capital Expenditures'!L21 -> 20333
A31: ='LDC Info'!$E$14 -> Kitchener-Wilmot Hydro Inc. | B31: EB-2019-0049 | C31: 2020 | D31: 2019 | E31: 2014 | F31: Capital Contributions | G31: 2013 | H31: ='App.2-AB_Capital Expenditures'!K22 -> -3782 | I31: ='App.2-AB_Capital Expenditures'!L22 -> -6698
A32: ='LDC Info'!$E$14 -> Kitchener-Wilmot Hydro Inc. | B32: EB-2019-0049 | C32: 2020 | D32: 2019 | E32: 2014 | F32: Net Capital Expenditures | G32: 2013 | H32: ='App.2-AB_Capital Expenditures'!K23 -> 17154 | I32: ='App.2-AB_Capital Expenditures'!L23 -> 13635
A33: ='LDC Info'!$E$14 -> Kitchener-Wilmot Hydro Inc. | B33: EB-2019-0049 | C33: 2020 | D33: 2019 | E33: 2014 | F33: System O&M | G33: 2013 | H33: ='App.2-AB_Capital Expenditures'!K24 -> 11280 | I33: ='App.2-AB_Capital Expenditures'!L24 -> 10116
A34: ='LDC Info'!$E$14 -> Kitchener-Wilmot Hydro Inc. | B34: =EBNUMBER -> EB-2019-0049 | C34: =TestYear -> 2020 | D34: =BridgeYear -> 2019 | E34: =RebaseYear -> 2014 | F34: System Access | G34: 2014 | H34: ='App.2-AB_Capital Expenditures'!N17 -> 12255 | I34: ='App.2-AB_Capital Expenditures'!O17 -> 15817
A35: ='LDC Info'!$E$14 -> Kitchener-Wilmot Hydro Inc. | B35: EB-2019-0049 | C35: 2020 | D35: 2019 | E35: 2014 | F35: System Renewal | G35: 2014 | H35: ='App.2-AB_Capital Expenditures'!N18 -> 4791 | I35: ='App.2-AB_Capital Expenditures'!O18 -> 3322
A36: ='LDC Info'!$E$14 -> Kitchener-Wilmot Hydro Inc. | B36: EB-2019-0049 | C36: 2020 | D36: 2019 | E36: 2014 | F36: System Service | G36: 2014 | H36: ='App.2-AB_Capital Expenditures'!N19 -> 1620 | I36: ='App.2-AB_Capital Expenditures'!O19 -> 839
A37: ='LDC Info'!$E$14 -> Kitchener-Wilmot Hydro Inc. | B37: EB-2019-0049 | C37: 2020 | D37: 2019 | E37: 2014 | F37: General Plant | G37: 2014 | H37: ='App.2-AB_Capital Expenditures'!N20 -> 1920 | I37: ='App.2-AB_Capital Expenditures'!O20 -> 1859
A38: ='LDC Info'!$E$14 -> Kitchener-Wilmot Hydro Inc. | B38: EB-2019-0049 | C38: 2020 | D38: 2019 | E38: 2014 | F38: Total Expenditure | G38: 2014 | H38: ='App.2-AB_Capital Expenditures'!N21 -> 20586 | I38: ='App.2-AB_Capital Expenditures'!O21 -> 21837
A39: ='LDC Info'!$E$14 -> Kitchener-Wilmot Hydro Inc. | B39: EB-2019-0049 | C39: 2020 | D39: 2019 | E39: 2014 | F39: Capital Contributions | G39: 2014 | H39: ='App.2-AB_Capital Expenditures'!N22 -> 0 | I39: ='App.2-AB_Capital Expenditures'!O22 -> -9460
A40: ='LDC Info'!$E$14 -> Kitchener-Wilmot Hydro Inc. | B40: EB-2019-0049 | C40: 2020 | D40: 2019 | E40: 2014 | F40: Net Capital Expenditures | G40: 2014 | H40: ='App.2-AB_Capital Expenditures'!N23 -> 0 | I40: ='App.2-AB_Capital Expenditures'!O23 -> 12377
A41: ='LDC Info'!$E$14 -> Kitchener-Wilmot Hydro Inc. | B41: EB-2019-0049 | C41: 2020 | D41: 2019 | E41: 2014 | F41: System O&M | G41: 2014 | H41: ='App.2-AB_Capital Expenditures'!N24 -> 0 | I41: ='App.2-AB_Capital Expenditures'!O24 -> 9377
A42: ='LDC Info'!$E$14 -> Kitchener-Wilmot Hydro Inc. | B42: EB-2019-0049 | C42: 2020 | D42: 2019 | E42: 2014 | F42: System Access | G42: 2015 | H42: ='App.2-AB_Capital Expenditures'!Q17 -> 11468 | I42: ='App.2-AB_Capital Expenditures'!R17 -> 16918
A43: ='LDC Info'!$E$14 -> Kitchener-Wilmot Hydro Inc. | B43: EB-2019-0049 | C43: 2020 | D43: 2019 | E43: 2014 | F43: System Renewal | G43: 2015 | H43: ='App.2-AB_Capital Expenditures'!Q18 -> 4805 | I43: ='App.2-AB_Capital Expenditures'!R18 -> 4616
A44: ='LDC Info'!$E$14 -> Kitchener-Wilmot Hydro Inc. | B44: EB-2019-0049 | C44: 2020 | D44: 2019 | E44: 2014 | F44: System Service | G44: 2015 | H44: ='App.2-AB_Capital Expenditures'!Q19 -> 3050 | I44: ='App.2-AB_Capital Expenditures'!R19 -> 2420
A45: ='LDC Info'!$E$14 -> Kitchener-Wilmot Hydro Inc. | B45: EB-2019-0049 | C45: 2020 | D45: 2019 | E45: 2014 | F45: General Plant | G45: 2015 | H45: ='App.2-AB_Capital Expenditures'!Q20 -> 2229 | I45: ='App.2-AB_Capital Expenditures'!R20 -> 2105
A46: ='LDC Info'!$E$14 -> Kitchener-Wilmot Hydro Inc. | B46: EB-2019-0049 | C46: 2020 | D46: 2019 | E46: 2014 | F46: Total Expenditure | G46: 2015 | H46: ='App.2-AB_Capital Expenditures'!Q21 -> 21552 | I46: ='App.2-AB_Capital Expenditures'!R21 -> 26059
A47: ='LDC Info'!$E$14 -> Kitchener-Wilmot Hydro Inc. | B47: EB-2019-0049 | C47: 2020 | D47: 2019 | E47: 2014 | F47: Capital Contributions | G47: 2015 | H47: ='App.2-AB_Capital Expenditures'!Q22 -> 0 | I47: ='App.2-AB_Capital Expenditures'!R22 -> -8951
A48: ='LDC Info'!$E$14 -> Kitchener-Wilmot Hydro Inc. | B48: EB-2019-0049 | C48: 2020 | D48: 2019 | E48: 2014 | F48: Net Capital Expenditures | G48: 2015 | H48: ='App.2-AB_Capital Expenditures'!Q23 -> 0 | I48: ='App.2-AB_Capital Expenditures'!R23 -> 17108
A49: ='LDC Info'!$E$14 -> Kitchener-Wilmot Hydro Inc. | B49: EB-2019-0049 | C49: 2020 | D49: 2019 | E49: 2014 | F49: System O&M | G49: 2015 | H49: ='App.2-AB_Capital Expenditures'!Q24 -> 0 | I49: ='App.2-AB_Capital Expenditures'!R24 -> 9498
A50: ='LDC Info'!$E$14 -> Kitchener-Wilmot Hydro Inc. | B50: EB-2019-0049 | C50: 2020 | D50: 2019 | E50: 2014 | F50: System Access | G50: 2016 | H50: ='App.2-AB_Capital Expenditures'!T17 -> 8866 | I50: ='App.2-AB_Capital Expenditures'!U17 -> 11815
A51: ='LDC Info'!$E$14 -> Kitchener-Wilmot Hydro Inc. | B51: EB-2019-0049 | C51: 2020 | D51: 2019 | E51: 2014 | F51: System Renewal | G51: 2016 | H51: ='App.2-AB_Capital Expenditures'!T18 -> 7539 | I51: ='App.2-AB_Capital Expenditures'!U18 -> 5377
A52: ='LDC Info'!$E$14 -> Kitchener-Wilmot Hydro Inc. | B52: EB-2019-0049 | C52: 2020 | D52: 2019 | E52: 2014 | F52: System Service | G52: 2016 | H52: ='App.2-AB_Capital Expenditures'!T19 -> 2630 | I52: ='App.2-AB_Capital Expenditures'!U19 -> 1548
A53: ='LDC Info'!$E$14 -> Kitchener-Wilmot Hydro Inc. | B53: EB-2019-0049 | C53: 2020 | D53: 2019 | E53: 2014 | F53: General Plant | G53: 2016 | H53: ='App.2-AB_Capital Expenditures'!T20 -> 3760 | I53: ='App.2-AB_Capital Expenditures'!U20 -> 2807
A54: ='LDC Info'!$E$14 -> Kitchener-Wilmot Hydro Inc. | B54: EB-2019-0049 | C54: 2020 | D54: 2019 | E54: 2014 | F54: Total Expenditure | G54: 2016 | H54: ='App.2-AB_Capital Expenditures'!T21 -> 22795 | I54: ='App.2-AB_Capital Expenditures'!U21 -> 21547
A55: ='LDC Info'!$E$14 -> Kitchener-Wilmot Hydro Inc. | B55: EB-2019-0049 | C55: 2020 | D55: 2019 | E55: 2014 | F55: Capital Contributions | G55: 2016 | H55: ='App.2-AB_Capital Expenditures'!T22 -> 0 | I55: ='App.2-AB_Capital Expenditures'!U22 -> -6243
A56: ='LDC Info'!$E$14 -> Kitchener-Wilmot Hydro Inc. | B56: EB-2019-0049 | C56: 2020 | D56: 2019 | E56: 2014 | F56: Net Capital Expenditures | G56: 2016 | H56: ='App.2-AB_Capital Expenditures'!T23 -> 0 | I56: ='App.2-AB_Capital Expenditures'!U23 -> 15304
A57: ='LDC Info'!$E$14 -> Kitchener-Wilmot Hydro Inc. | B57: EB-2019-0049 | C57: 2020 | D57: 2019 | E57: 2014 | F57: System O&M | G57: 2016 | H57: ='App.2-AB_Capital Expenditures'!T24 -> 0 | I57: ='App.2-AB_Capital Expenditures'!U24 -> 10625
A58: ='LDC Info'!$E$14 -> Kitchener-Wilmot Hydro Inc. | B58: EB-2019-0049 | C58: 2020 | D58: 2019 | E58: 2014 | F58: System Access | G58: 2017 | H58: ='App.2-AB_Capital Expenditures'!W17 -> 7465 | I58: ='App.2-AB_Capital Expenditures'!X17 -> 8107
A59: ='LDC Info'!$E$14 -> Kitchener-Wilmot Hydro Inc. | B59: EB-2019-0049 | C59: 2020 | D59: 2019 | E59: 2014 | F59: System Renewal | G59: 2017 | H59: ='App.2-AB_Capital Expenditures'!W18 -> 8159 | I59: ='App.2-AB_Capital Expenditures'!X18 -> 7728
A60: ='LDC Info'!$E$14 -> Kitchener-Wilmot Hydro Inc. | B60: EB-2019-0049 | C60: 2020 | D60: 2019 | E60: 2014 | F60: System Service | G60: 2017 | H60: ='App.2-AB_Capital Expenditures'!W19 -> 2350 | I60: ='App.2-AB_Capital Expenditures'!X19 -> 1476
A61: ='LDC Info'!$E$14 -> Kitchener-Wilmot Hydro Inc. | B61: EB-2019-0049 | C61: 2020 | D61: 2019 | E61: 2014 | F61: General Plant | G61: 2017 | H61: ='App.2-AB_Capital Expenditures'!W20 -> 5465 | I61: ='App.2-AB_Capital Expenditures'!X20 -> 3030
A62: ='LDC Info'!$E$14 -> Kitchener-Wilmot Hydro Inc. | B62: EB-2019-0049 | C62: 2020 | D62: 2019 | E62: 2014 | F62: Total Expenditure | G62: 2017 | H62: ='App.2-AB_Capital Expenditures'!W21 -> 23439 | I62: ='App.2-AB_Capital Expenditures'!X21 -> 20341
A63: ='LDC Info'!$E$14 -> Kitchener-Wilmot Hydro Inc. | B63: EB-2019-0049 | C63: 2020 | D63: 2019 | E63: 2014 | F63: Capital Contributions | G63: 2017 | H63: ='App.2-AB_Capital Expenditures'!W22 -> 0 | I63: ='App.2-AB_Capital Expenditures'!X22 -> -4697
A64: ='LDC Info'!$E$14 -> Kitchener-Wilmot Hydro Inc. | B64: EB-2019-0049 | C64: 2020 | D64: 2019 | E64: 2014 | F64: Net Capital Expenditures | G64: 2017 | H64: ='App.2-AB_Capital Expenditures'!W23 -> 0 | I64: ='App.2-AB_Capital Expenditures'!X23 -> 15644
A65: ='LDC Info'!$E$14 -> Kitchener-Wilmot Hydro Inc. | B65: EB-2019-0049 | C65: 2020 | D65: 2019 | E65: 2014 | F65: System O&M | G65: 2017 | H65: ='App.2-AB_Capital Expenditures'!W24 -> 0 | I65: ='App.2-AB_Capital Expenditures'!X24 -> 11811
A66: ='LDC Info'!$E$14 -> Kitchener-Wilmot Hydro Inc. | B66: =EBNUMBER -> EB-2019-0049 | C66: =TestYear -> 2020 | D66: =BridgeYear -> 2019 | E66: =RebaseYear -> 2014 | F66: System Access | G66: 2018 | H66: ='App.2-AB_Capital Expenditures'!Z17 -> 8032 | I66: ='App.2-AB_Capital Expenditures'!AA17 -> 0
A67: ='LDC Info'!$E$14 -> Kitchener-Wilmot Hydro Inc. | B67: EB-2019-0049 | C67: 2020 | D67: 2019 | E67: 2014 | F67: System Renewal | G67: 2018 | H67: ='App.2-AB_Capital Expenditures'!Z18 -> 8545 | I67: ='App.2-AB_Capital Expenditures'!AA18 -> 0
A68: ='LDC Info'!$E$14 -> Kitchener-Wilmot Hydro Inc. | B68: EB-2019-0049 | C68: 2020 | D68: 2019 | E68: 2014 | F68: System Service | G68: 2018 | H68: ='App.2-AB_Capital Expenditures'!Z19 -> 2100 | I68: ='App.2-AB_Capital Expenditures'!AA19 -> 0
A69: ='LDC Info'!$E$14 -> Kitchener-Wilmot Hydro Inc. | B69: EB-2019-0049 | C69: 2020 | D69: 2019 | E69: 2014 | F69: General Plant | G69: 2018 | H69: ='App.2-AB_Capital Expenditures'!Z20 -> 6025 | I69: ='App.2-AB_Capital Expenditures'!AA20 -> 0
A70: ='LDC Info'!$E$14 -> Kitchener-Wilmot Hydro Inc. | B70: EB-2019-0049 | C70: 2020 | D70: 2019 | E70: 2014 | F70: Total Expenditure | G70: 2018 | H70: ='App.2-AB_Capital Expenditures'!Z21 -> 24702 | I70: ='App.2-AB_Capital Expenditures'!AA21 -> 0
A71: ='LDC Info'!$E$14 -> Kitchener-Wilmot Hydro Inc. | B71: EB-2019-0049 | C71: 2020 | D71: 2019 | E71: 2014 | F71: Capital Contributions | G71: 2018 | H71: ='App.2-AB_Capital Expenditures'!Z22 -> -4000 | I71: ='App.2-AB_Capital Expenditures'!AA22 -> 0
A72: ='LDC Info'!$E$14 -> Kitchener-Wilmot Hydro Inc. | B72: EB-2019-0049 | C72: 2020 | D72: 2019 | E72: 2014 | F72: Net Capital Expenditures | G72: 2018 | H72: ='App.2-AB_Capital Expenditures'!Z23 -> 0 | I72: ='App.2-AB_Capital Expenditures'!AA23 -> 0
A73: ='LDC Info'!$E$14 -> Kitchener-Wilmot Hydro Inc. | B73: EB-2019-0049 | C73: 2020 | D73: 2019 | E73: 2014 | F73: System O&M | G73: 2018 | H73: ='App.2-AB_Capital Expenditures'!Z24 -> 12576 | I73: ='App.2-AB_Capital Expenditures'!AA24 -> 0
A74: ='LDC Info'!$E$14 -> Kitchener-Wilmot Hydro Inc. | B74: EB-2019-0049 | C74: 2020 | D74: 2019 | E74: 2014 | F74: System Access | G74: 2019 | H74: ='App.2-AB_Capital Expenditures'!AC17 -> 7065
A75: ='LDC Info'!$E$14 -> Kitchener-Wilmot Hydro Inc. | B75: EB-2019-0049 | C75: 2020 | D75: 2019 | E75: 2014 | F75: System Renewal | G75: 2019 | H75: ='App.2-AB_Capital Expenditures'!AC18 -> 9415
A76: ='LDC Info'!$E$14 -> Kitchener-Wilmot Hydro Inc. | B76: EB-2019-0049 | C76: 2020 | D76: 2019 | E76: 2014 | F76: System Service | G76: 2019 | H76: ='App.2-AB_Capital Expenditures'!AC19 -> 3200
A77: ='LDC Info'!$E$14 -> Kitchener-Wilmot Hydro Inc. | B77: EB-2019-0049 | C77: 2020 | D77: 2019 | E77: 2014 | F77: General Plant | G77: 2019 | H77: ='App.2-AB_Capital Expenditures'!AC20 -> 6495
A78: ='LDC Info'!$E$14 -> Kitchener-Wilmot Hydro Inc. | B78: EB-2019-0049 | C78: 2020 | D78: 2019 | E78: 2014 | F78: Total Expenditure | G78: 2019 | H78: ='App.2-AB_Capital Expenditures'!AC21 -> 26175
A79: ='LDC Info'!$E$14 -> Kitchener-Wilmot Hydro Inc. | B79: EB-2019-0049 | C79: 2020 | D79: 2019 | E79: 2014 | F79: Capital Contributions | G79: 2019 | H79: ='App.2-AB_Capital Expenditures'!AC22 -> -4000
A80: ='LDC Info'!$E$14 -> Kitchener-Wilmot Hydro Inc. | B80: EB-2019-0049 | C80: 2020 | D80: 2019 | E80: 2014 | F80: Net Capital Expenditures | G80: 2019 | H80: ='App.2-AB_Capital Expenditures'!AC23 -> 22175
A81: ='LDC Info'!$E$14 -> Kitchener-Wilmot Hydro Inc. | B81: EB-2019-0049 | C81: 2020 | D81: 2019 | E81: 2014 | F81: System O&M | G81: 2019 | H81: ='App.2-AB_Capital Expenditures'!AC24 -> 12427
A82: ='LDC Info'!$E$14 -> Kitchener-Wilmot Hydro Inc. | B82: EB-2019-0049 | C82: 2020 | D82: 2019 | E82: 2014 | F82: System Access | G82: 2020 | H82: ='App.2-AB_Capital Expenditures'!AD17 -> 7767
A83: ='LDC Info'!$E$14 -> Kitchener-Wilmot Hydro Inc. | B83: EB-2019-0049 | C83: 2020 | D83: 2019 | E83: 2014 | F83: System Renewal | G83: 2020 | H83: ='App.2-AB_Capital Expenditures'!AD18 -> 10350
A84: ='LDC Info'!$E$14 -> Kitchener-Wilmot Hydro Inc. | B84: EB-2019-0049 | C84: 2020 | D84: 2019 | E84: 2014 | F84: System Service | G84: 2020 | H84: ='App.2-AB_Capital Expenditures'!AD19 -> 3200
A85: ='LDC Info'!$E$14 -> Kitchener-Wilmot Hydro Inc. | B85: EB-2019-0049 | C85: 2020 | D85: 2019 | E85: 2014 | F85: General Plant | G85: 2020 | H85: ='App.2-AB_Capital Expenditures'!AD20 -> 3275
A86: ='LDC Info'!$E$14 -> Kitchener-Wilmot Hydro Inc. | B86: EB-2019-0049 | C86: 2020 | D86: 2019 | E86: 2014 | F86: Total Expenditure | G86: 2020 | H86: ='App.2-AB_Capital Expenditures'!AD21 -> 24592
A87: ='LDC Info'!$E$14 -> Kitchener-Wilmot Hydro Inc. | B87: EB-2019-0049 | C87: 2020 | D87: 2019 | E87: 2014 | F87: Capital Contributions | G87: 2020 | H87: ='App.2-AB_Capital Expenditures'!AD22 -> -4000
A88: ='LDC Info'!$E$14 -> Kitchener-Wilmot Hydro Inc. | B88: EB-2019-0049 | C88: 2020 | D88: 2019 | E88: 2014 | F88: Net Capital Expenditures | G88: 2020 | H88: ='App.2-AB_Capital Expenditures'!AD23 -> 20592
A89: ='LDC Info'!$E$14 -> Kitchener-Wilmot Hydro Inc. | B89: EB-2019-0049 | C89: 2020 | D89: 2019 | E89: 2014 | F89: System O&M | G89: 2020 | H89: ='App.2-AB_Capital Expenditures'!AD24 -> 12427
A90: ='LDC Info'!$E$14 -> Kitchener-Wilmot Hydro Inc. | B90: EB-2019-0049 | C90: 2020 | D90: 2019 | E90: 2014 | F90: System Access | G90: 2021 | H90: ='App.2-AB_Capital Expenditures'!AE17 -> 7818
A91: ='LDC Info'!$E$14 -> Kitchener-Wilmot Hydro Inc. | B91: EB-2019-0049 | C91: 2020 | D91: 2019 | E91: 2014 | F91: System Renewal | G91: 2021 | H91: ='App.2-AB_Capital Expenditures'!AE18 -> 10650
A92: ='LDC Info'!$E$14 -> Kitchener-Wilmot Hydro Inc. | B92: EB-2019-0049 | C92: 2020 | D92: 2019 | E92: 2014 | F92: System Service | G92: 2021 | H92: ='App.2-AB_Capital Expenditures'!AE19 -> 2800
A93: ='LDC Info'!$E$14 -> Kitchener-Wilmot Hydro Inc. | B93: EB-2019-0049 | C93: 2020 | D93: 2019 | E93: 2014 | F93: General Plant | G93: 2021 | H93: ='App.2-AB_Capital Expenditures'!AE20 -> 3565
A94: ='LDC Info'!$E$14 -> Kitchener-Wilmot Hydro Inc. | B94: EB-2019-0049 | C94: 2020 | D94: 2019 | E94: 2014 | F94: Total Expenditure | G94: 2021 | H94: ='App.2-AB_Capital Expenditures'!AE21 -> 24833
A95: ='LDC Info'!$E$14 -> Kitchener-Wilmot Hydro Inc. | B95: EB-2019-0049 | C95: 2020 | D95: 2019 | E95: 2014 | F95: Capital Contributions | G95: 2021 | H95: ='App.2-AB_Capital Expenditures'!AE22 -> -4000
A96: ='LDC Info'!$E$14 -> Kitchener-Wilmot Hydro Inc. | B96: EB-2019-0049 | C96: 2020 | D96: 2019 | E96: 2014 | F96: Net Capital Expenditures | G96: 2021 | H96: ='App.2-AB_Capital Expenditures'!AE23 -> 20833
A97: ='LDC Info'!$E$14 -> Kitchener-Wilmot Hydro Inc. | B97: EB-2019-0049 | C97: 2020 | D97: 2019 | E97: 2014 | F97: System O&M | G97: 2021 | H97: ='App.2-AB_Capital Expenditures'!AE24 -> 12427
A98: ='LDC Info'!$E$14 -> Kitchener-Wilmot Hydro Inc. | B98: =EBNUMBER -> EB-2019-0049 | C98: =TestYear -> 2020 | D98: =BridgeYear -> 2019 | E98: =RebaseYear -> 2014 | F98: System Access | G98: 2022 | H98: ='App.2-AB_Capital Expenditures'!AF17 -> 7717
A99: ='LDC Info'!$E$14 -> Kitchener-Wilmot Hydro Inc. | B99: EB-2019-0049 | C99: 2020 | D99: 2019 | E99: 2014 | F99: System Renewal | G99: 2022 | H99: ='App.2-AB_Capital Expenditures'!AF18 -> 11400
A100: ='LDC Info'!$E$14 -> Kitchener-Wilmot Hydro Inc. | B100: EB-2019-0049 | C100: 2020 | D100: 2019 | E100: 2014 | F100: System Service | G100: 2022 | H100: ='App.2-AB_Capital Expenditures'!AF19 -> 2300
A101: ='LDC Info'!$E$14 -> Kitchener-Wilmot Hydro Inc. | B101: EB-2019-0049 | C101: 2020 | D101: 2019 | E101: 2014 | F101: General Plant | G101: 2022 | H101: ='App.2-AB_Capital Expenditures'!AF20 -> 3500
A102: ='LDC Info'!$E$14 -> Kitchener-Wilmot Hydro Inc. | B102: EB-2019-0049 | C102: 2020 | D102: 2019 | E102: 2014 | F102: Total Expenditure | G102: 2022 | H102: ='App.2-AB_Capital Expenditures'!AF21 -> 24917
A103: ='LDC Info'!$E$14 -> Kitchener-Wilmot Hydro Inc. | B103: EB-2019-0049 | C103: 2020 | D103: 2019 | E103: 2014 | F103: Capital Contributions | G103: 2022 | H103: ='App.2-AB_Capital Expenditures'!AF22 -> -4000
A104: ='LDC Info'!$E$14 -> Kitchener-Wilmot Hydro Inc. | B104: EB-2019-0049 | C104: 2020 | D104: 2019 | E104: 2014 | F104: Net Capital Expenditures | G104: 2022 | H104: ='App.2-AB_Capital Expenditures'!AF23 -> 20917
A105: ='LDC Info'!$E$14 -> Kitchener-Wilmot Hydro Inc. | B105: EB-2019-0049 | C105: 2020 | D105: 2019 | E105: 2014 | F105: System O&M | G105: 2022 | H105: ='App.2-AB_Capital Expenditures'!AF24 -> 12427
A106: ='LDC Info'!$E$14 -> Kitchener-Wilmot Hydro Inc. | B106: EB-2019-0049 | C106: 2020 | D106: 2019 | E106: 2014 | F106: System Access | G106: 2023 | H106: ='App.2-AB_Capital Expenditures'!AG17 -> 7767
A107: ='LDC Info'!$E$14 -> Kitchener-Wilmot Hydro Inc. | B107: EB-2019-0049 | C107: 2020 | D107: 2019 | E107: 2014 | F107: System Renewal | G107: 2023 | H107: ='App.2-AB_Capital Expenditures'!AG18 -> 11500
A108: ='LDC Info'!$E$14 -> Kitchener-Wilmot Hydro Inc. | B108: EB-2019-0049 | C108: 2020 | D108: 2019 | E108: 2014 | F108: System Service | G108: 2023 | H108: ='App.2-AB_Capital Expenditures'!AG19 -> 2300
A109: ='LDC Info'!$E$14 -> Kitchener-Wilmot Hydro Inc. | B109: EB-2019-0049 | C109: 2020 | D109: 2019 | E109: 2014 | F109: General Plant | G109: 2023 | H109: ='App.2-AB_Capital Expenditures'!AG20 -> 3480
A110: ='LDC Info'!$E$14 -> Kitchener-Wilmot Hydro Inc. | B110: EB-2019-0049 | C110: 2020 | D110: 2019 | E110: 2014 | F110: Total Expenditure | G110: 2023 | H110: ='App.2-AB_Capital Expenditures'!AG21 -> 25047
A111: ='LDC Info'!$E$14 -> Kitchener-Wilmot Hydro Inc. | B111: EB-2019-0049 | C111: 2020 | D111: 2019 | E111: 2014 | F111: Capital Contributions | G111: 2023 | H111: ='App.2-AB_Capital Expenditures'!AG22 -> -4000
A112: ='LDC Info'!$E$14 -> Kitchener-Wilmot Hydro Inc. | B112: EB-2019-0049 | C112: 2020 | D112: 2019 | E112: 2014 | F112: Net Capital Expenditures | G112: 2023 | H112: ='App.2-AB_Capital Expenditures'!AG23 -> 21047
A113: ='LDC Info'!$E$14 -> Kitchener-Wilmot Hydro Inc. | B113: EB-2019-0049 | C113: 2020 | D113: 2019 | E113: 2014 | F113: System O&M | G113: 2023 | H113: ='App.2-AB_Capital Expenditures'!AG24 -> 12427

Sheet App.2-AC_Customer Engagement
B1: File Number: | C1: =EBNUMBER -> EB-2019-0049
B2: Exhibit:
B3: Tab:
B4: Schedule:
B5: Page:
B7: Date:
A9: Appendix 2-AC
A10: Customer Engagement Activities Summary
A12: Provide a list of customer engagement activities | B12: Provide a list of customer needs and preferences identified through each engagement activity | C12: Actions taken to respond to identified needs and preferences. If no action was taken, explain why.
A13: Enhanced Customer Engagement - Distribution System Plan & Cost of Service Rate Application
A14: Stakeholder Intervenor OEB Workshop | B14: KWHI engaged Innovative Research Group (IRG) to support enhanced customer engagement outreach for its Cost of Service Rate Application, and together KWHI and IRG developed a workbook that explained what is in KWHI's proposed plan, the cost pressures that drive KWHI's decision-making process, and the choices customers have that can help inform KWHI's plans. A technical conference with key stakeholders, including Intervenors and Board Staff was held on July 17, 2018. KWHI presented their draft Cost of Service Customer Engagement Plan including the draft customer workbook In addition, an overall review of proposed Cost of Service Plan with timelines was presented, for feedback. FINDINGS: KWHI considers two key outcomes from the meeting, to be (i) improved clarity and (ii) better transparency of information for our customers. The Consideration Document summarizes the discussions at the workshop. Refer to IRG Customer Engagement Report: Priorities, Needs and Preferences Appendix 1-15. | C14: ACTIONS based on OEB Staff and Intervenor feedback: KWHI considered the discussions and specific recommendations from the stakeholder workshop to be extremely valuable. A Consideration Document was created identifying 40 specific recommendations made by OEB staff, Intervenors, and customers to improve clarity and shorten the content. KWHI adopted 30 of the 40 recommendations. The decision to exclude the remaining 10 recommendations were made in an effort to keep the workbook to a manageable size. The changes and recommendations were incorporated into all customer engagement collateral throughout the customer engagement outreach. Refer to IRG Customer Engagement Report: Priorities, Needs and Preferences Appendix 1-15.
A15: Testing Work Book Focus Groups | B15: Two workbook testing focus groups were held on July 18, 2018; one group of residential customers, and one group of small business customers. The purpose of the testing focus groups was to gauge whether the draft workbooks provided an appropriate amount of background information so that customers could provide an informed opinion of KWHI's proposed capital spending plan. The draft content was also used to capture what the customers stated needs and expectations were, and to ensure the informational content was understood. FINDINGS: Customer feedback said the workbook was too long and the amount of information in some areas was overwhelming. Refer to IRG Customer Engagement Report: Priorities, Needs and Preferences Appendix 1-15 | C15: ACTIONS based on customer feedback: Customer feedback to shorten the workbook and improve clarity was captured and incorporated into a revised workbook and included in the Consideration Document.
A16: Residential & Small Commercial Customer Focus Groups | B16: On September 19 & 20, KWHI held 4 focus groups, each moderated by IRG. The focus groups were divided, one with a group of residential customers, one with a group of small business customers, and two with medium and large-use customers. The content presented in the focus groups was customized to each rate class and based on the content of the final workbook to educate and inform customers about the utility, KWHI's role as an electricity distributor, share proposed capital plans, and the rate impact of the proposed plan for the respective rate class. The purpose was to listen and assess genuine customer stated preferences and priorities, gauge customer reaction to rate changes, inform subsequent phases of the consultation, and assess the range of views held by KWHI customers regarding the proposed distribution system plan and overall business plan. 14 residential and small business customers were randomly recruited and participated and received a financial incentive for their time commitment. 37 medium and large-use customers were invited to attend based on their consumption and did not receive financial incentive. FINDINGS: Customers appreciate low rates, but not at the expense of reliability, conservation programs, or customer service. Customers are interested in new technology investments, but not at undue expense. EV charging stations were raised frequently as an area of potential investment. Customers have a long memory when it comes to negative experiences. Customers appreciate ongoing and proactive communications. Customers are split when it comes to KWHI's investment in a new CIS. Some see value in including value-add features now, and some feel these features are not necessary or worth the investment. Overall, focus group participants were supportive of KWHI's capital investment plan as it was presented. Refer to IRG Customer Engagement Report: Priorities, Needs and Preferences Appendix 1-15 | C16: ACTIONS based on Cost of Service Customer Engagement feedback: While the feedback obtained during the focus groups is not a representative sample, KWHI appreciates the candor of customers in each of these rate classes. KWHI will continue to take a prudent approach to investment to minimize the impact to rates, and is exploring ways to enhance its customer service offerings based on the feedback from the both the focus groups, the online survey, and the representative sample groups in the telephone survey. For the larger commercial customers, KWHI values the importance these organizations have in our communities and is considering options that will satisfy their need for more specialized care, including the potential for dedicated key account customer service. KWHI also used these customers' desire for proactive communications to update customer contact information and ensure they are notified on important issues. In the small business focus groups, some customers were not aware of the incentives and support available through KWHI. KWHI has followed up with increased promotion of its services to this market in an attempt to build stronger awareness.
A17: Online Workbook Survey (residential/small commercial customers) | B17: An Online Workbook/Survey was created and accessible for all KWHI customers from October 12 to November 11, 2018, and customers were offered the chance to win one of five $100 on-bill credits for their participation. FINDINGS: 1,749 people completed the online survey and shared their thoughts on KWHI's plans for 2020-2024. KWHI's approach to capital spending: 34% of respondents feel KWHI should keep it's spending cap, 43% of respondents feel KWHI should not cap spending. KWHI's Pole Replacement program: 52% of respondents are willing to pay more for KWHI to accelerate its pole replacement plan, and 31% would like to see KWHI stick with its proposed pace. KWHI's Power Transformer Replacement Plan: 50% of online survey respondents are willing to pay an additional $0.20 per month annual so KWHI can accelerate its transformer replacement plan and 37% would like KWHI to stick with its proposed plan. KWHI's spending on automated switches: 45% of respondents feel KWHI should invest in automated switches now, and 46% KWHI should keep rate increases down by modernizing as part of the normal replacement of aging equipment. KWHI's spending on vehicles and equipment: 25% of online survey respondents said KWHI should find ways to make do with the business equipment it already has, and 67% said KWHI should make the investments necessary to ensure staff have the equipment they need to manage the system efficiently and reliably. CIS: 56% of online survey respondents said KWHI should stick with the basic CIS solution, and 35% said KWHI should invest in the enhanced CIS solution for an additional $0.46 per month. Overall plan: 31% of survey respondents feel KWHI should improve service, even if that means an increase exceeding the proposed $2.36 per month, and 51% feel KWHI should stick with its proposed plan. Refer to IRG Customer Engagement Report: Priorities, Needs and Preferences Appendix 1-15 | C17: ACTIONS based on online Cost of Service Customer Engagement feedback: KWHI's approach to capital spending: KWHI will maintain its approach to spending, which means it will not exceed its annual budgets, mandatory system access projects excluded, and instead adjust spending within the different spending categories if more or less investment is required in one area each year. KWHI's Pole Replacement program: KWHI will accelerate its pole replacement program modestly in response to customer preference while minimizing rate impact. KWHI's Power Transformer Replacement Plan: In response to customer preference, KWHI will prioritize its power transformer replacement plan to ensure that the replacement program is not deferred. KWHI's spending on automated switches: KWHI will make no change to its plans for installation of automated switches, which already included increased spending over historical years. KWHI's spending on vehicles and equipment: KWHI will maintain its current approach to spending on vehicles and equipment. CIS: KWHI will respond to customer preference by investing in a reasonably-priced core CIS that meets the needs of the business. KWHI believes that the proposed enhanced features will provide long-term benefits for our customers. Some of the proposed enhanced features will be revisited at a later date and evaluated to determine if they can be implemented with little or no impact on customer rates. Overall plan: KWHI will adjust its plans slightly to incorporate customer preferences in specific areas, while working to minimize rate impact.
A18: Residential & Small Commercial Customer Telephone Survey | B18: IRG conducted a a representative sample telephone survey of residential and small business customers based on the workbook and online survey from October 31, 2018 through November 14, 2018. 511 residential and 204 small business customers provided feedback for a total 715 customers. FINDINGS: KWHI's approach to capital spending: 62% of residential and 66% of small business respondents believe KWHI should keep spending levels consistent year over year, even if that means deferring investments to other years to lessen the impact of any bill increase, and 27% of residential and 19% of small business respondents feel KWHI should not cap spending and defer investments. KWHI's Pole Replacement program: 50% of residential and 35% of small business respondents are willing to pay more for KW Hydro to accelerate its pole replacement plan, and 30% of residential and 40% of small business respondents would like to see KWH stick with it's proposed pace. KWHI's Power Transformer Replacement Plan: 43% of residential and 31% of small business respondents would like to see KWHI accelerate its transformer replacement plan, and 41% of residential and and 49% of small business respondents would like KWHI to stick with its proposed plan. KWHI's spending on automated switches: 43% of residential and 31% of small business respondents feel KWHI should invest in automated switches now, and 45% of residential and 53% of small business respondents feel KWHI should keep rate increases down by modernizing as part of the normal replacement of aging equipment. KWHI's spending on vehicles and equipment:This question was excluded from the telephone survey in an effort to keep it as short as possible. CIS: 70% of residential and 75% of small business respondents said KWHI should stick with the core CIS solution, and 24% of residential and 20% of small business respondents said KWHI should invest in the enhanced CIS solution. Overall plan: 26% of residential and 13% of small business survey respondents feel KWHI should improve service, even if that means an increase exceeding the one being proposed, and 51% of residential and 49% of small business respondents feel KWHI should stick with its proposed plan. 36% of small business customers feel KWHI should keep the increase below what is being proposed. Refer to IRG Customer Engagement Report: Priorities, Needs and Preferences Appendix 1-15 | C18: ACTIONS based on telephone survey Cost of Service Customer Engagement feedback: KWHI's approach to capital spending: KWHI will maintain its approach to spending, which means it will not exceed its annual budgets, mandatory system access projects excluded, and instead adjust spending within the different spending categories if more or less investment is required in one area each year. KWHI's Pole Replacement program: KWHI will accelerate its pole replacement program modestly in response to customer preference while minimizing rate impact. KWHI's Power Transformer Replacement Plan: In response to customer preference, KWHI will prioritize its power transformer replacement plan to ensure that the replacement program is not deferred. KWHI's spending on automated switches: KWHI will make no change to its plans for installation of automated switches, which already included increased spending over historical years. KWHI's spending on vehicles and equipment: KWHI will maintain its current approach to spending on vehicles and equipment. CIS: KWHI will respond to customer preference by investing in a reasonably-priced core CIS that meets the needs of the business. KWHI believes that the proposed enhanced features will provide long-term benefits for our customers. Some of the proposed enhanced features will be revisited at a later date and evaluated to determine if they can be implemented with little or no impact on customer rates. Overall plan: KWHI will adjust its plans slightly to incorporate customer preferences in specific areas, while working to minimize rate impact.
A19: ONGOING CUSTOMER ENGAGEMENT
A20: Surveys
A21: Review of bi-annual Customer Satisfaction Survey Results | B21: On a bi-annual basis, KWHI engages UtilityPULSE to survey its customers to assess their satisfaction with the service KWHI provides, and tracks the results year over year to analyze trends and determine where improvement is needed. In the 10 years the utility has been undertaking these surveys, KWHI has consistently exceeded industry standards as regulated by the Ontario Energy Board, as well as National and Provincial standards in many key areas. In 2015, KWHI identified 6 key areas where satisfaction levels were beneath its standards of service, including: Quickly handles outages and restores power; Makes electricity safety a top priority; and customer service measurements including: Deals professionally with customers' problems; Time it took to contact someone, helpfulness, knowledge and courtesy of the staff that helped you. | C21: To improve performance in these areas, KWHI undertook the following: Quickly handles outages and restores power: To improve outage restoration and help customers get timely and relevent information about outages, in 2016, KWHI introduced its Outage Management System (OMS). The OMS allows Control Room operators to identify the location of the problem in the distribution system, the number of customers impacted and dispatch a crew to that location, improving restoration times. It also pushes real-time updates to a publicly-facing outage map, providing customers with information about the affected area, cause of the outage, and estimated times of restoration. In addition, Communications staff provide information about outages to more than 6,600 followers on Twitter, which are often retweeted and picked up by local media, amplifying the reach of the messages. The outage map and OMS have proven successful, with 2017 survey results showing a 3% improvement in customer satisfaction scores in the category of "Provides consistent, reliable electricity" and a 4% improvement in "Quickly handles outages and restores power." Details about KWHI's response to safety findings are provided in the results of the bi-annual safety survey provided in the next section, but efforts have resulted in an improvement in safety scores of 4% in 2017 over 2015 results. To improve results in the customer service areas identified, KWHI undertook improved training for its customer service staff using courses available through MEARIE and customer service best practices. Part of the training included "Bridges Out of Poverty," a program delivered by Dufferin-Wellington-Guelph Public Health. Bridges Out of Poverty gave customer service staff additional perspective of those living in poverty, and how to communicate with them more effectively to improve service and relationships. Success will be assessed when the next Customer Satisfaction Survey is conducted in 2019. Customers also expressed interest in more self-serve options, so in response, KWHI introduced online move in/move out/account update forms, pre-authorized payment, paperless billing. KWHI also launched My Account, an online portal that allows customers to manage their electricity accounts, view current and past bills, and monitor electricity consumption. As of December, 2018, more than 13,000 customers have registered for My Account, and there have been more than 32,000 logins for commercial and residential customers since January 1, 2017. KWHI continues to explore ways to improve the My Account experience for customers.
A22: Review of bi-annual Public Awareness of Safety Survey Results | B22: In 2016 and 2018, KWHI engaged UtilityPULSE to conduct a bi-annual survey to assess public awareness of the risks associated with electricity. KWHI reviews the results of these surveys closely and comes up with action plans to address gaps in public understanding of the risks associated with electricity. While KWHI's Public Safety Awareness Index score remained unchanged at 83% in 2016 and 2018, there were improvements in awareness in some key areas: Regarding the importance of calling for an underground locate (49.6% definitely would call in 2016, 52.2% definitely would call in 2018), the impact of touching an overhead powerline (93.5% said it was very dangerous in 2016, in 2018, 96.7% said it was very dangerous), dangers of tampering with electrical equipment (87.9% said it was very dangerous in 2016; 88.6% said it was very dangerous in 2018). There were decreases in awareness in a couple of areas, including proximity to an overhead powerline (20.8% were aware they needed to remain 3-6 metres away from an overhead powerline in 2016 versus 16.7% in 2018) and what to do if powerlines fall on your vehicle when you are inside (in 2016, 90.7% said stay in your car until the hydro could be turned off versus 88.7% in 2018). Further, with an eye to improving safety communications efforts, in 2018, KWHI, as a member of the GridSmartCity Partnership, supplemented the standard safety questions with some regarding where the public find information related to electrical safety, and how many actively speak to their children about electrical safety. This revealed that 24% of survey respondents had school aged children at home, and of that 24%, only 51% claimed to have had conversations with their children about electrical safety. | C22: Electricity safety is one of KWHI's key priorities. To improve customer awareness of electricity safety, KWHI introduced a series of 11 videos to help educate customers on what they need to do to ensure the safety of themselves and their loved ones around electricity. Topics of the videos include "How Electricity Hurts", "Powerline Car Safety," "Look Up and Look Out for Overhead Powerlines", "Emergency Preparedness", and "Call Before You Dig." In addition, in 2017, KWHI led the introduction of a series of six more safety videos featuring Lucky the Squirrel, a squirrel who finds himself getting into trouble because he isn't aware of the hazards of electricity, and what he can do to ensure he stays safe in future. Lucky helps people learn about the importance of calling for a free underground cable locate before you dig, limits of approach for both overhead and downed power lines, what to do if a power line falls on your car, the dangers of equipment inside padmount transformers and on a power line. 45 utilities and the ESA partnered on payment for the development of the videos, helping keep costs low and amplifying the messages across Ontario. Collectively, the videos on KWHI's YouTube channel have been viewed more than 13,000 times, and are used in KWHI's electrical safety school program, which is delivered for no charge to more than 1,000 Grade 5 and 6 students each year in Kitchener and Wilmot. They are also run at every Kitchener Rangers Ontario Hockey League home game, resulting in approximately 188,000 views as of February, 2019. KWHI also actively uses radio, print, and social media to promote electrical safety messages and the videos, providing seasonally and topically relevant tips and information to more than 6,600 followers. The inclusion of the supplementary questions supplied by the GridSmartCity Communications Committee revealed that 56.6% of respondents get their electrical safety information via online searches (31.2%) or from their local electricity distributor website (25.4%). By comparing these results with website analytics provided by Google Analytics, KWHI identified that hits to safety pages are low, but there are regular, easily identifiable spikes in site visits during outages. KWHI used this information to enhance its outages pages to include links to safety information and the videos.
A23: Outage Communications Survey | B23: Following the ice storm in 2013, KWHI recognized the need to improve communication with customers during outages to provide updates on restoration efforts, including regular and timely updates, areas impacted, and estimated time to restore power, as well as safety information. The addition of a Communications Specialist in 2015 helped improve communications during outages, but with an eye to continuous improvement, following the ice storm in the spring of 2016, KWHI decided to benchmark customer expectations when it comes to outage communications through an outage communications survey. The survey was promoted on Twitter and KWHI's website, as well as being sent via email directly to any customers who called the call centre during the outage. More than 300 people responded to the survey, with 40% reporting they went to KWHI's website for outage updates, 30% from social media, and 23% from KWHI's call centre. The remaining respondents got information from news outlets and other sources. Overall, respondents were satisfied with KWHI's online communications during the outage, though there were suggestions made for improvement. 26% of suggestions made were for more timely updates - KWHI's Communications Specialist signed off for the evening after midnight, and customers expressed frustration that there were no updates after that time. 20% of suggestions were to add staff to the call centre during outages, and 12% wanted 24-hour updates. KWHI also asked respondents where the first place is they would go to get information about outages. Close to a third of respondents said they would go to KWHI's website, followed very closely by local news outlets (28% and 27% respectively). 20% of respondents said they would go to Twitter, 16% said they would call KWHI's call centre, and 9% chose "other." | C23: In response to feedback from the survey, KWHI launched an outage map in September, 2016. The link to KWHI's outage map is available on KWHI's website landing page and is updated directly from KWHI's OMS system, providing customers with information about areas impacted, the cause of the outage if known, a high-level status of repair (Under investigation, Crews responding, etc), and the ETR. In addition, for large, extended outages (>3,000 customers, 1 hour or more), KWHI posts an alert on its website to notify customers that we are aware of the outage and are responding, ETR if available, and providing a link to our outage map. KWHI also uses Twitter to provide outage updates and safety information. KWHI tweets are typically picked up and shared by local media outlets, amplifying the messages. While 24-hour updates on social media are not an option for KWHI's communications team, the utility does make every effort to ensure that updates are made as frequently as possible, often tweeting late into the night. If severe weather is in the forecast, the communications team convenes ahead of time to develop a response plan to ensure appropriate staffing is available to provide updates. When necessary, if outages are still active and KWHI's communications team has to step away from social media for rest, a tweet is "pinned" to the KWHI Twitter feed advising that live updates have stopped for the night, when they will resume, and providing a link to the outage map. KWHI is planning another survey to gather customer feedback on outage communications following the next large outage. KWHI also introduced a Crisis Communications Plan in 2018 to help guide communications in the event of a crisis, which includes outages. The introduction of this Crisis Communications Plan will help ensure that processes are in place and can be executed by any authorized personnel in the company, providing a high, consistent level of service and messaging for customers.
A24: Commercial Customer Meetings | B24: Business customers appreciate on-site visits to ask questions related to their bill, and are looking for ways to reduce their electricity bills through energy efficiency. Recognizing this, KWHI saw an opportunity to assist customers with billing and energy literacy information providing information and programs that will assist customers with reducing hydro bills. In addition, many commercial customers rely heavily on peer-to-peer groups and industry partners to help them identify project opportunities. | C24: In 2018, the CDM Team held over 100 on-site customer meetings to provide advice and insight on opportunities for businesses to manage their energy use. The Small Business lighting program and Business Refrigeration Incentive, both aimed to help support small business customers were provided over 300 site visits offering a proposal on how they can lower their electricity bills. Ongoing proactive outreach via site visits helped raise awareness of conservation programs and energy reducing services. To help address commercial customers' need for peer-to-peer learning, KWHI has twice hosted the Save On Energy Building Operators Certification course, giving customers the opportunity to learn and share best practices, many going on to apply what they have learned in their own facilities.
A25: Online
A26: Corporate Website (kwhydro.ca)
A27: Review of website analytics assess customer use of website | B27: Recognizing that KWHI's website is it's first point of contact for many customers, KWHI pays close attention to data analytics about how customers are using the site to ensure relevant information is available and to provide customers with the most seamless experience possible. The data points KWHI pays closest attention to are: the number of visitors, landing pages, top pages visited, and exit pages, search terms customers use to find information on the website, the devices visitors are using to access the site, "bounce rates" to determine which pages could be causing customers the most frustration or which provide irrelevant information. KWHI supplements the data it gleans from website statistics with anecdotal feedback received from customer service staff as well as comments from the interior pages of My Account. Review of this information revealed that customers were struggling to find the login page for My Account, looking for information about electricity rates, and payment options. Within My Account, customers wanted to be able to access more than 12 months past electricity bills, and an easy way to track bills, payments, and current account status. Using this information, KWHI identified opportunities to make it easier for customers to login to My Account and more prominently provide information customers are looking for most often. | C27: To address some of the challenges customers have when navigating KWHI's website, the utility did the following: Changed the name of the My Account landing page link from "View Electricity Use Online" to "Login to My Account Online" to make it more clear to customers what the link is for. Also moved the link in to the top of the "Residential" and "Commercial" menus so they will be the first items visitors find. Change the name of the "Billing" menu, which also includes rates pages, to "Billing & Rates" to help customers find the information more easily. Worked with SilverBlaze, the company that hosts KWHI's My Account online portal, to add up to 24 months of past bills and to improve the My Account dashboard to show billing and payment activity and display the information more prominently. The improvements to the dashboard are still pending roll out to ensure absolute security of customer data, but are anticipated to be rolled out in 2019/2020.
A28: My Account Online | B28: KWHI's customer portal, My Account, allows customers provide feedback on features they would like to see or features that aren't working the way they believe they should. As of December 3, 2018, approximately 13,000 customers have registered for My Account, and there have been more than 32,000 logins for commercial and residential customers since January 1, 2017. KWHI Communications and IT team routinely review the feedback provided on the internal pages of My Account in an effort to respond to this feedback in a timely basis. Review of this feedback revealed that on the landing page dashboard of My Account, customers wanted an easy way to see what they currently owe, billing and payment history, access to past bills, consumption information, a way to compare bills and consumption over a period of time. | C28: To address the issues identified with My Account, KWHI Worked with SilverBlaze, the company that hosts KWHI's My Account online portal, to add up to 24 months of past bills and to improve the My Account dashboard to show billing and payment activity and display the information more prominently. The improvements to the dashboard are still pending roll out to ensure absolute security of customer data, but are anticipated to be rolled out in 2019/2020. In 2019, KWHI will continue to explore ways to improve the My Account experience for customers, including making it easier for customers to register their accounts for My Account and ebilling at the time they open their account, and to provide tools and resources within My Account that customers who use the service find valuable.
A29: Online Web Forms | B29: On an annual basis, KWHI serves approximately 45,900 customers at its customer service counter. The top two reasons a customer comes to KWHI’s customer service counter are to open up a new account, or to make a payment. Customer satisfaction scores indicated that customers prefer to use online, self-serve tools, and through Google Analytics, KWHI determined that many customers were accessing the website from the Customer Forms page, suggesting that there is a strong desire to complete applications online and that customers are specifically looking for web forms. Analysis also revealed that nearly 75% of all customer forms are accessed using a mobile device. | C29: In 2015, KWHI launched an updated website and included more self-serve options for customers, including digital forms and flexible options to provide new account details. In 2016, KWHI introduced mobile-responsive forms to allow customers flexible options for opening, closing, and updating their account information. In 2017 , KWHI launched a new online platform called “FormBuilder” that allows the utility to create forms that are both accessible and optimized for mobile use. Since being launched, web access to online forms has consistently been one of the most-used features on the website, with approximately 55,000 views and more than 30,000 forms completed and submitted, and continuing to grow.
A30: Direct, person-to-person engagement
A31: Customer Service | B31: In 2015, KWHI began taking a close look at its customer interactions in an effort to provide a seamless, effortless experience for its customers. KWHI customers can reach KWHI customer service through walk-ins at its service centre, over the telephone, and via email. The top two reasons a customer visits KWHI in person is to set up a new account or to pay a bill. The top two reasons a customer calls KWHI customer service is bill inquiries (including high bills) and for outage updates. In keeping with KWHI's efforts to continually enhance its customer service offering, in 2017, KWHI's Communications Staff began hosting roundtable meetings with Customer Service Staff to discuss the most frequent customer complaints they receive in an effort to improve the service and options to address those customer concerns. The complaints were tracked and broken down into categories, including if the resolution timeline was a short-term, mid-term, or long-term proposition. 23 unique issues were identified throughthe roundtables.The top three were related to KWHI's processes (39%), My Account customer portal (17%), and online forms (13%). When it came to processes, there were inefficiencies identified with respect to account set up and management, including forms that required customer service representatives to follow up with the customer, customers to wait until they receive their first bill to be able to sign up for My Account and paperless billing, and the timing of automatic reminder calls for past due accounts. When it came to KWHI's My Account customer portal, customer service staff reported that customers found it confusing and often tried to create a login when they really wanted to set up a new account or update account information, which is not an option through My Account. When it came to forms, customer service staff reported that the forms customers use to set up or move their account were confusing and required a lot of follow up from customer service staff. | C31: Until 2015, customers could only sign up for a new account by completing a form at KWHI's front counter. Customer satisfaction scores indicated that customer preference has shifted, and many customers indicated they wanted more digital, self-serve options such as mobile forms . Further, using Google Analytics, KWHI identified that many customers enter our website on our Customer Forms page, suggesting that there is a strong desire to complete applications online and that they are specifically searching for web forms. A closer look revealed that in 2015, 30% of all customer forms are completed using a mobile device. In response, KWHI introduced digital, mobile-responsive forms to allow customers flexible options for opening, closing, and updating their account information in 2016. The online move forms have proven to be the most frequently-used form on KWHI's website. Based on feedback from the customer service roundtables, KWHI took a close look at the process and forms related to opening and closing accounts. First, to try to make it more clear to customers who go to the My Account page to try to set up a new account, KWHI added a link at the top of the page that says "Opening a new account? Fill out a new account application" and provides a link directly to the page. Next, KWHI changed the name of it's Are You Moving? web page to "Move In/Move Out" in an effort to make it more clear to customers what they will find on the page. In addition, KWHI moved to a flexible web-based platform for its forms called FormBuilder. FormBuilder forms can easily be configured to follow required formats for account numbers and prevent inaccurate or missing information from being submitted. It also allows KWHI to build "conditions" into the form which unlock different entry fields or options based on criteria that users enter, such as they are a residential or business customer, or a landlords. In addition, FormBuilder can generate automatic responses and track the status of the form, eliminating the need for CSRs to complete these processes manually and improving efficiency for customers and staff. This work is in progress and is expected to be complete in 2019. A big source of frustration for customers who want to do most of their KWHI account management using My Account or who want to sign up for paperless billing is KWHI's ebill verification code. The code is changed and issued on every hard copy bill that is sent to a customer. However, customers who open a new account must wait to receive a hard copy bill to be able to register their account with My Account, which is frustrating for the customer. This could also be causing fewer sign ups in My Account and paperless billing because customers have to do double the work to register. To simplify the process, KWHI is looking at issuing temporary verification codes that can be used to create a My Account login as soon as new accounts are opened. This work is in progress and is expected to be complete in 2019.
A32: Community Events | B32: In 2017, KWHI opened its doors to the public as part of Doors Open Waterloo Region. More than 500 visitors came through KWHI's facility that day to get a behind-the-scenes view of what it takes to operate an electrical utility, including customer service, engineering, purchasing, locates, and the control room. Through conversations with visitors, KWHI identified need to assist customers with billing, energy literacy, as well as the opportunity to provide more information about Save on Energy programs, low income support programs, and some of the capital projects KWHI invests in to ensure a safe, reliable supply of electricity. In addition, KWHI holds in-store retailer events to support Save on Energy Deal Days at participating stores including Home Hardware and Home Depot locations. These events present a great opportunity to meet/engage with customers that may not call into the Call Centre or have an opportunity to review new services, low income support programs, energy efficiency programs, and safety awareness. Customers request KWHI presence at high-traffic events to have this opportunity to engage and ask questions. These events allow KWHI to provide more education on the electricity system, low income support programs, ways to reduce energy, electrical safety, account management options such as equal billing or pre-authorized payment, and hear first-hand from customers about their experiences as a KWHI customer. | C32: KWHI employees track customer feedback and follow up via phone call or email following the event to ensure the customer gets the information or support they are looking for. Because these face-to-face interactions are so well received, in 2019 KWHI is exploring opportunities to have even greater presence at community events.
A33: Training/ Education Events | B33: Business customers request information sessions to learn about industry trends and to discuss new opportunities for energy savings to ultimately lower their electricity bill. KWHI identified a need to assist customers with billing and energy literacy information as well as additional information and programs that will assist customers with reducing hydro bills through energy conservation. | C33: In coordination with Waterloo North Hydro, Energy + and IESO, KWHI hosted a Building Operator Course for all its commercial customers. Over 25 customers from KWHI attended. In partnership with Sustainable Waterloo Region, KWHI co-supported an event focused on incentives available to all commerial customers with over 20 customers in attendance. In addition to partner events KWHI holds regular information sessions focused on industry, technology and energy efficiency which are well attended by commerical customers.
A34: Participation in Local Community Emergency Preparedness Planning | B34: KWHI representatives collaborate with local and regional emergency planners and other LDCs to ensure that comprehensive, effective plans are in place and ready for execution in the event of a large scale emergency. | C34: Agreements are in place with GridSmartCity Cooperative members to provide mutual aid, and KWHI played a role in the development of Waterloo Region's custom "Alert Waterloo Region" system, which allows residents to subscribe to receive important public safety messages in the event of large scale emergencies such as floods, severe weather, or significant power outages. Notifications can be delivered to home phones, mobile phones, text, and email. In addition, strong, trusted relationships with municipal and emergency partners as a result of this collaboration ensures that safety messages that may be sent out by KWHI or other partners are shared and amplified to reach even more residents.
A35: Employee Volunteerism & Corporate Donations | B35: Through customer comments, we hear that it is important that our organization and workforce be committed to our communities, and give back to persons less fortunate in our communities. Reminder that some KWHI customers are in challenging personal and financial circumstances. | C35: To promote continued employee sensitivity and empathy in community interactions and account collection activities, KWHI management and customer service employees underwent training with Bridges Through Poverty to help them understand the perspective of customers living in poverty, and how to communicate with them more effectively. In addition, the utility has a continued focus on monitoring of bill impacts and maintaining competitive distribution rates. KWHI holds an annual employee fundraising drive for the United Way, and in 2017 and 2018 exceeded its United Way workplace campaign fundraising goal. Weekly dress-down campaigns on Fridays have raised over $5,000 for a number of local charities each year, including United Way, Waterloo Region Food Bank, Tree of Angels, and St. Mary’s General Hospital. Employees also volunteer their time to participate in the Santa Claus Parade, and to hang Christmas Tree lights in Victoria Park. The Strong Start Program – Employees volunteer to participate (1.5 hours, during work hours, for 10 weeks), to help children learn to read at a nearby school. The volunteers work directly with children ages 5-7 by playing carefully designed games and activities that boast literacy skills. In addition, a Corporate Donations Review Committee has been established to identify opportunities for corporate support up to a maximum each year.
A36: Other
A37: Bill inserts | B37: With the introduction of the moratorium on disconnections and the Ontario Energy Board's Consumer Charter, KWHI saw an opportunity to more proactively help customers understand the rules and rights of distributors and customers, and what options they have when their accounts are overdue. Some customers who are regularly good paying customers may find themselves in a financially vulnerable position, and KWHI wanted to ensure that these customers had the information they need to comfortably manage their electricity accounts, and to position KWHI as a resource to help them as opposed to a threat. Time-of-use schedule change In 2017, customers expressed frustration through calls to our call centre that they were not aware that the time-of-use schedule changed on November 1. KWHI had updated the time-of-use charges on its website to the winter schedule and sent out social media messages to let customers know that the schedule had changed, but it was clear we had not reached enough customers. The Ontario Energy Board sends out a bill insert to notify customers of the change to summer schedule, but not winter. KWHI recognized that customers would like this information provided proactively. | C37: To address this, KWHI introduced a Customer Rules and Rights Information Web page and bill insert. The bill insert is included with all disconnection notices, and the link to the Customer Rules and Rights page is provided right on KWHI's landing page. Between March 6, 2017 when the web page was launched and December 2, 2018, the page received 505 page views, placing it in the top 100 pages visited on KW Hydro's website. In response, in the fall of 2018, KWHI developed a communications plan to notify customers that the schedule is changing and to make changes to when they are using electricity. The plan included a bill insert, a web banner, notification on rates pages on our website, and social media messages. The bill insert also included winter-specific energy-saving tips to help customers maximize energy-efficiency and keep electricity costs as low as possible. To keep costs low, KWHI partnered with neighbouring utilities to design and print the bill insert. The result was fewer calls and complaints to customer service about the change in the time-of-use schedule.
A38: Safety | B38: Electricity safety is one of KWHI's key priorities, and KWHI is committed to promoting electrical safety education. KWHI employees volunteer their time to present electrical safety at no charge to grade 6 students in Kitchener and Wilmot Township, presenting up to 20 each school year. The utility has created 11 safety videos, garnering close to 200,000 views collectively on YouTube and by being run during all Kitchener Rangers Ontario Hockey League home games. KWHI is a member of many safety programs including Infrastructure Health & Safety Association, the CEO Health & Safety Leadership Network, the Association of Electrical Utility Safety Professionals, and the Provincial Labour-Management Health & Safety Committee for Construction. KWHI plays an active role in promoting Electrical Safety Authority programs and other programs including Dig Safe Month, Ontario One Call, Powerline Safety Week, Emergency Preparedness Week, and Fire Prevention Week. Of particular note, each spring there is a spike in dig-ins and overhead powerline contacts by construction and other contractor trades. | C38: To address the spike in dig-ins and overhead power line contacts by construction and other contractor trades, every two years KWHI teams up with neighbouring utilities Energy+, Guelph Hydro, and Waterloo North Hydro to host a free Contractor Safety Event. The 2018 event was an overwhelming success, attended by 175 contractors and making it the largest contractor safety event in Waterloo Region. In addition, in 2018, KWHI's relentless pursuit of a safe work environment resulted in the achievement of 1 million hours worked with no lost-time injuries and Winner of 2 Silver Canada’s Safest Employers awards, one for Utilities and Electrical, and one for Wellness. In addition, each year, KWHI partners with the Region of Waterloo, the local municipalities, and Energy+ and Waterloo North Hydro to promote traffic safety in construction zones. The joint campaigns run from May until October each year and include radio and print ads, social media campaigns, vehicle wrapping, and pre-roll on YouTube. The collaboration ensures consistency of messaging and broad reach while helping keep costs manageable for all partners. KWHI's commitment and successes in safety have been recognized with several awards, including multiple Platinum Wellness awards for Project Health in Waterloo Region, two Silver Canada’s Safest Employers awards, one for Utilities and Electrical, and one for Wellness, and the Infrastructure Health and Safety Association's President's Award for one million consecutive hours worked without no lost-time injuries. In addition, in April, 2019, KWHI proudly accepted both the EDA's Electrical Safety Authority Public Safety Excellence Award and the EDA's Ontario Power Generation LDC Performance Excellence Award at the Electricity Distributor's Association Awards gala for its ongoing attention and diligence to both public and employee safety, and overall performance excellence.
A39: Media Releases & Alerts | B39: Identified need that customers are looking for timely information about new conservation programs, ways to increase energy literacy, avoid hydro scams, stay safe around electricity. | C39: KWHI monitors news outlets and interactions on social media channels regularly to provide important information, and to understand public and customer expectations, preferences and needs. For example, KWHI issues media releases during high-peak summer heatwave, offering suggestions for reducing electricity consumption; importance of power line safety, calling before digging; warning of local scams, and monitors comments and social media forums such as Twitter, Facebook, and Reddit to assess customer response to the information.
A50: Note: Use "ALT-ENTER" to go to the next line within a cell

Sheet App.2-B_Acctg Instructions
A1: General Instructions to MIFRS Appendices
A2: Types of Schedules to File
A4: The purpose of this tab is to provide general instructions. The specific instructions to each appendix are listed in footnotes of each appendix.
A6: The typical applicant is expected to have made capitalization and depreciation policy changes under CGAAP as permitted by the Board on January 1, 2012 or mandated by the Board by January 1, 2013, and adopted IFRS for reporting purposes on January 1, 2015 (transition date January 1, 2014). Some distributors filing for 2018 rates have rebased with these accounting changes reflected in a prior rebasing application. If that is the case, information relating to pre-accounting policy changes is not generally required. The information to be provided by applicants will depend on when the accounting policy changes were made and when they last rebased. In general, applicants should provide the following information in the appendices:
E9: Reflecting Accounting Policy Changes in Current Application | G9: Reflected Accounting Policy Changes in Prior Application3
E10: Accounting Policy Changes in 2012 and Adopted IFRS in 2015 | F10: Accounting Policy Changes in 2013 and Adopted IFRS in 2015 | G10: Adopted IFRS in 2015
A11: Information to be filed in 2019 CoS Application | B11: 2019 | C11: Test | E11: MIFRS | F11: MIFRS | G11: MIFRS
B12: 2018 | C12: Bridge | E12: MIFRS | F12: MIFRS | G12: MIFRS
B13: 2017 | C13: Historical | E13: MIFRS | F13: MIFRS | G13: MIFRS
B14: 2016 | C14: Historical | E14: MIFRS | F14: MIFRS | G14: MIFRS
B15: 2015 | C15: Historical | E15: MIFRS and Revised CGAAP1 | F15: MIFRS and Revised CGAAP1 | G15: MIFRS and Revised CGAAP1
B16: 2014 | C16: Historical | E16: Revised CGAAP | F16: CGAAP and Revised CGAAP2 | G16: N/A
B17: 2013 | C17: Historical | E17: CGAAP and Revised CGAAP2 | F17: N/A | G17: N/A
A19: 1) For the transition year (2014), the applicant may file two appendices, one under Revised CGAAP and one under MIFRS, depending on the materiality of impacts. See the specific instructions under each appendix below for further details.
A20: 2) For applicants that are reflecting accounting policy changes for the first time in a rebasing application, the applicant must file two appendices in the year that the applicant implemented changes to its capitalization and depreciation policies (2012 or 2013), one before and one after the policy changes.
A21: 3) Applicants should provide CGAAP and Revised CGAAP schedules (i.e. as indicated in the first two columns of the above table) to support balances in Account 1576 if the account has yet to be disposed of.
A24: Appendix 2-BA - Fixed Asset Schedule
A26: Applicants are to provide Appendix 2-BA in accordance with the years and corresponding accounting standards noted in the above table to provide a year over year continuity in fixed assets.
A27: For the transition year (2014), the applicant should file two appendices, one under Revised CGAAP and one under MIFRS if the change between Revised CGAAP and MIFRS is material. If the change from the accounting standards is not material, the applicant may choose to only provide one appendix under MIFRS. However, the applicant must also indicate the fixed asset net book value balance under Revised CGAAP, the total dollar value of the change and explain why it is not material.
A31: The applicant must establish the continuity of historic cost for gross assets and accumulated depreciation by asset class by ensuring that the opening balance in the year agrees to the closing balance in the prior year.
A34: Appendix 2-Cx - Depreciation and Amortization
A36: Applicants are to provide Appendix 2-C in accordance with the years and corresponding accounting standards listed in the above table.
A37: Appendix 2-C is to be used under all three of the scenarios presented in the table above. In the appendix, the applicant will need to indicate which scenario applies. The appendix is to be duplicated for each year and accounting standard required under the scenario.
A38: Depreciation accounting policy changes were mandated by the Board by January 1, 2013. In general, no further changes to an applicant's depreciation policy (i.e. assets' service lives) are expected after the Board mandated changes by January 1, 2013. If the applicant has made any changes to its depreciation policy subsequent to the Board mandated changes, for the year of the change, applicants must complete Appendix 2-C before and after the change. Applicants must also explain the nature of the change, the reason for the change, quantify the impact of the change, and quantify the depreciation expense before and after the change.
A40: Appendix 2-E - Account 1575, IFRS-CGAAP Transitional PP&E Amounts (2-EA), Account 1576, Accounting Changes Under CGAAP (2-EB, 2-EC) CONTACT OEB STAFF IF TAB REQUIRED
A42: 1) For an applicant that has a balance in Account 1576 to dispose:
A43: · | B43: If an applicant changed capitalization and depreciation policies effective January 1, 2012, the applicant must complete Appendix 2-EB
A44: · | B44: If an applicant changed capitalization and depreciation policies effective January 1, 2013, the applicant must complete Appendix 2-EC
A46: 2) For an applicant that has a balance in Account 1575 to dispose:
A47: · | B47: The applicant must complete 2-EA
A48: If the applicant did not make any further PP&E accounting policy changes beyond the capitalization and depreciation policy changes as mandated by the Board by January 1, 2013 (i.e. no further changes made on transition to IFRS), the applicant must indicate this and does not need to complete Appendix 2-EA.
A52: Appendix 2-Y - Summary of Impacts to Revenue Requirement from Transition to MIFRS CONTACT OEB STAFF IF TAB REQUIRED
A54: An applicant must provide a summary of the dollar impacts of MIFRS to each component of the revenue requirement (e.g. rate base, operating costs, etc.), including the overall impact on the proposed revenue requirement. Accordingly, the applicant must identify financial differences and resulting revenue requirement impacts arising from the adoption of MIFRS as compared to CGAAP. If the applicant is reflecting the changes in capitalization and depreciation policies for the first time in a rebasing application, then a comparison between MIFRS and CGAAP before the change in accounting policies should be completed. If the applicant changed capitalization and depreciation policies and reflected these changes in a prior rebasing application, then a comparison between MIFRS and CGAAP after the change in accounting policies should be completed.

Sheet App.2-BA_Fixed Asset Cont
L1: File Number: | M1: =EBNUMBER -> EB-2019-0049
L2: Exhibit:
L3: Tab:
L4: Schedule:
L5: Page:
C6: 3
L7: Date:
A9: Appendix 2-BA
A10: Fixed Asset Continuity Schedule 1
E12: Accounting Standard | F12: CGAAP
E13: Year | F13: 2014
D15: Cost | J15: Accumulated Depreciation
A16: CCA Class 2 | B16: OEB Account 3 | C16: Description 3 | D16: Opening Balance | E16: Additions 4 | F16: Disposals 6 | G16: Closing Balance | I16: Opening Balance | J16: Additions | K16: Disposals 6 | L16: Closing Balance | M16: Net Book Value
B17: 1609 | C17: Capital Contributions Paid | G17: =D17+E17+F17 -> 0 | L17: =I17+J17+K17 -> 0 | M17: =G17+L17 -> 0
A18: 12 | B18: 1611 | C18: Computer Software (Formally known as Account 1925) | D18: 3795945 | E18: 384294 | G18: =D18+E18+F18 -> 4180239 | I18: -3044321 | J18: -443395 | L18: =I18+J18+K18 -> -3487716 | M18: =G18+L18 -> 692523
A19: CEC | B19: 1612 | C19: Land Rights (Formally known as Account 1906) | D19: 265448 | E19: 0 | G19: =D19+E19+F19 -> 265448 | I19: -257874 | J19: -2653 | L19: =I19+J19+K19 -> -260527 | M19: =G19+L19 -> 4921
A20: N/A | B20: 1805 | C20: Land | D20: 2339958 | E20: 0 | G20: =D20+E20+F20 -> 2339958 | I20: 0 | J20: 0 | L20: =I20+J20+K20 -> 0 | M20: =G20+L20 -> 2339958
A21: 47 | B21: 1808 | C21: Buildings | D21: 9823770 | E21: 0 | F21: -3372 | G21: =D21+E21+F21 -> 9820398 | I21: -2419009 | J21: -210808 | K21: 3372 | L21: =I21+J21+K21 -> -2626445 | M21: =G21+L21 -> 7193953
A22: 13 | B22: 1810 | C22: Leasehold Improvements | E22: 0 | F22: 0 | G22: 0 | I22: 0 | J22: 0 | L22: 0 | M22: 0
A23: 47 | B23: 1815 | C23: Transformer Station Equipment >50 kV | D23: 62560429 | E23: 1092997 | F23: -170704 | G23: 63482722 | I23: -20336071 | J23: -1579813 | K23: 170704 | L23: -21745180 | M23: 41737542
A24: 47 | B24: 1820 | C24: Distribution Station Equipment <50 kV | D24: 2930968 | E24: 9577 | F24: -7627 | G24: 2932918 | I24: -2005202 | J24: -49381 | K24: 7627 | L24: -2046956 | M24: 885962
A25: 47 | B25: 1825 | C25: Storage Battery Equipment | E25: 0 | F25: 0 | G25: 0 | I25: 0 | J25: 0 | L25: 0 | M25: 0
A26: 47 | B26: 1830 | C26: Poles, Towers & Fixtures | D26: 34476322 | E26: 2044655 | F26: 0 | G26: 36520977 | I26: -13872816 | J26: -681835 | L26: -14554651 | M26: 21966326
A27: 47 | B27: 1835 | C27: Overhead Conductors & Devices | D27: 36019501 | E27: 1328124 | F27: 0 | G27: 37347625 | I27: -16356833 | J27: -451141 | L27: -16807974 | M27: 20539651
A28: 47 | B28: 1840 | C28: Underground Conduit | D28: 26645676 | E28: 3084780 | F28: 0 | G28: 29730456 | I28: -10104108 | J28: -344750 | L28: -10448858 | M28: 19281598
A29: 47 | B29: 1845 | C29: Underground Conductors & Devices | D29: 41755423 | E29: 3095730 | F29: 0 | G29: 44851153 | I29: -20831641 | J29: -762311 | L29: -21593952 | M29: 23257201
A30: 47 | B30: 1850 | C30: Line Transformers | D30: 55053765 | E30: 2329756 | F30: -7523 | G30: 57375998 | I30: -26688890 | J30: -754220 | K30: 7523 | L30: -27435587 | M30: 29940411
A31: 47 | B31: 1855 | C31: Services (Overhead & Underground) | D31: 46548487 | E31: 2014667 | F31: 0 | G31: 48563154 | I31: -18729644 | J31: -896802 | L31: -19626446 | M31: 28936708
A32: 47 | B32: 1860 | C32: Meters | D32: 2349703 | E32: 706384 | F32: 0 | G32: 3056087 | I32: -568636 | J32: -142904 | L32: -711540 | M32: 2344547
A33: 47 | B33: 1860 | C33: Meters (Smart Meters) | D33: 12361936 | E33: 132171 | F33: 0 | G33: 12494107 | I33: -3211808 | J33: -828535 | L33: -4040343 | M33: 8453764
A34: N/A | B34: 1905 | C34: Land | D34: 1395300 | E34: 0 | F34: 0 | G34: 1395300 | I34: 0 | J34: 0 | L34: 0 | M34: 1395300
A35: 47 | B35: 1908 | C35: Buildings & Fixtures | D35: 16544993 | E35: 807288 | F35: 0 | G35: 17352281 | I35: -4433364 | J35: -613604 | L35: -5046968 | M35: 12305313
A36: 13 | B36: 1910 | C36: Leasehold Improvements | E36: 0 | F36: 0 | G36: 0 | I36: 0 | J36: 0 | L36: 0 | M36: 0
A37: 8 | B37: 1915 | C37: Office Furniture & Equipment (10 years) | D37: 1263381 | E37: 57713 | F37: 0 | G37: 1321094 | I37: -902816 | J37: -70928 | L37: -973744 | M37: 347350
A38: 8 | B38: 1915 | C38: Office Furniture & Equipment (5 years) | D38: 0 | E38: 0 | F38: 0 | G38: 0 | I38: 0 | J38: 0 | L38: 0 | M38: 0
A39: 10 | B39: 1920 | C39: Computer Equipment - Hardware | D39: 0 | E39: 0 | F39: 0 | G39: 0 | I39: 0 | J39: 0 | L39: 0 | M39: 0
A40: 45 | B40: 1920 | C40: Computer Equip.-Hardware(Post Mar. 22/04) | D40: 0 | E40: 0 | F40: 0 | G40: 0 | I40: 0 | J40: 0 | L40: 0 | M40: 0
A41: 45.1 | B41: 1920 | C41: Computer Equip.-Hardware(Post Mar. 19/07) | D41: 2534427 | E41: 175363 | F41: -487154 | G41: 2222636 | I41: -1891762 | J41: -229493 | K41: 487154 | L41: -1634101 | M41: 588535
A42: 10 | B42: 1930 | C42: Transportation Equipment | D42: 8954354 | E42: 767172 | F42: -192537 | G42: 9528989 | I42: -5318477 | J42: -609430 | K42: 192538 | L42: -5735369 | M42: 3793620
A43: 8 | B43: 1935 | C43: Stores Equipment | D43: 64072 | E43: 0 | F43: 0 | G43: 64072 | I43: -50129 | J43: -4724 | L43: -54853 | M43: 9219
A44: 8 | B44: 1940 | C44: Tools, Shop & Garage Equipment | D44: 892235 | E44: 76230 | F44: 0 | G44: 968465 | I44: -552854 | J44: -66746 | L44: -619600 | M44: 348865
A45: 8 | B45: 1945 | C45: Measurement & Testing Equipment | D45: 965036 | E45: 56975 | F45: 0 | G45: 1022011 | I45: -763758 | J45: -34426 | L45: -798184 | M45: 223827
A46: 8 | B46: 1950 | C46: Power Operated Equipment | D46: 818647 | E46: 94765 | F46: -62888 | G46: 850524 | I46: -570046 | J46: -55442 | K46: 60327 | L46: -565161 | M46: 285363
A47: 8 | B47: 1955 | C47: Communications Equipment | D47: 849352 | E47: 31176 | F47: 0 | G47: 880528 | I47: -454066 | J47: -80088 | L47: -534154 | M47: 346374
A48: 8 | B48: 1955 | C48: Communication Equipment (Smart Meters) | D48: 0 | F48: 0 | G48: 0 | I48: 0 | J48: 0 | L48: 0 | M48: 0
A49: 8 | B49: 1960 | C49: Miscellaneous Equipment | D49: 109010 | F49: 0 | G49: 109010 | I49: -88848 | J49: -13393 | L49: -102241 | M49: 6769
A50: 47 | B50: 1970 | C50: Load Management Controls Customer Premises | D50: 0 | F50: 0 | G50: 0 | I50: 0 | J50: 0 | L50: 0 | M50: 0
A51: 47 | B51: 1975 | C51: Load Management Controls Utility Premises | D51: 0 | F51: 0 | G51: 0 | I51: 0 | J51: 0 | L51: 0 | M51: 0
A52: 47 | B52: 1980 | C52: System Supervisor Equipment | D52: 1566480 | F52: 0 | G52: 1566480 | I52: -1551390 | J52: -4059 | L52: -1555449 | M52: 11031
A53: 47 | B53: 1985 | C53: Miscellaneous Fixed Assets | D53: 0 | G53: 0 | I53: 0 | J53: 0 | L53: 0 | M53: 0
A54: 47 | B54: 1990 | C54: Other Tangible Property | D54: 0 | G54: 0 | I54: 0 | J54: 0 | L54: 0 | M54: 0
A55: 47 | B55: 1995 | C55: Contributions & Grants | D55: -54079649 | E55: -6698313 | G55: -60777962 | I55: 13484099 | J55: 1258945 | L55: 14743044 | M55: -46034918
A56: 47 | B56: 2440 | C56: Deferred Revenue5 | I56: 0
G57: 0 | L57: 0 | M57: 0
C58: Sub-Total | D58: =SUM(D17:D57) -> 318804969 | E58: =SUM(E17:E57) -> 11591504 | F58: =SUM(F17:F57) -> -931805 | G58: =SUM(G17:G57) -> 329464668 | I58: =SUM(I17:I57) -> -141520264 | J58: =SUM(J17:J57) -> -7671936 | K58: =SUM(K17:K57) -> 929245 | L58: =SUM(L17:L57) -> -148262955 | M58: =SUM(M17:M57) -> 181201713
C59: Less Socialized Renewable Energy Generation Investments (input as negative) | G59: =D59+E59+F59 -> 0 | L59: =I59+J59+K59 -> 0 | M59: =G59+L59 -> 0
C60: Less Other Non Rate-Regulated Utility Assets (input as negative) | G60: 0 | L60: =I60+J60+K60 -> 0 | M60: 0
C61: Total PP&E | D61: =SUM(D58:D60) -> 318804969 | E61: =SUM(E58:E60) -> 11591504 | F61: =SUM(F58:F60) -> -931805 | G61: =SUM(G58:G60) -> 329464668 | I61: =SUM(I58:I60) -> -141520264 | J61: =SUM(J58:J60) -> -7671936 | K61: =SUM(K58:K60) -> 929245 | L61: =SUM(L58:L60) -> -148262955 | M61: =SUM(M58:M60) -> 181201713
C62: Depreciation Expense adj. from gain or loss on the retirement of assets (pool of like assets), if applicable6
C63: Total | J63: =J61+J62 -> -7671936
I65: Less: Fully Allocated Depreciation
A66: 10 | C66: Transportation | I66: Transportation
A67: 8 | C67: Stores Equipment | I67: Stores Equipment
I68: Net Depreciation | K68: =J63-K66-K67 -> -7671936
E70: Accounting Standard | F70: MIFRS
E71: Year | F71: 2015
D73: Cost | J73: Accumulated Depreciation
A74: CCA Class 2 | B74: OEB Account 3 | C74: Description 3 | D74: Opening Balance | E74: Additions 4 | F74: Disposals 6 | G74: Closing Balance | I74: Opening Balance | J74: Additions | K74: Disposals 6 | L74: Closing Balance | M74: Net Book Value
B75: 1609 | C75: Capital Contributions Paid | D75: 0 | E75: 0 | F75: 0 | G75: =D75+E75+F75 -> 0 | I75: 0 | J75: 0 | K75: 0 | L75: =I75+J75+K75 -> 0 | M75: =G75+L75 -> 0
A76: 12 | B76: 1611 | C76: Computer Software (Formally known as Account 1925) | D76: 4180239 | E76: 443103.49 | F76: 0 | G76: =D76+E76+F76 -> 4623342.49 | I76: -3487716 | J76: -273938 | K76: 0 | L76: =I76+J76+K76 -> -3761654 | M76: =G76+L76 -> 861688.49
A77: CEC | B77: 1612 | C77: Land Rights (Formally known as Account 1906) | D77: 265448 | E77: 0 | F77: 0 | G77: =D77+E77+F77 -> 265448 | I77: -260527 | J77: -2653 | K77: 0 | L77: =I77+J77+K77 -> -263180 | M77: =G77+L77 -> 2268
A78: N/A | B78: 1805 | C78: Land | D78: 2339958 | E78: 0 | F78: 0 | G78: =D78+E78+F78 -> 2339958 | I78: 0 | J78: 0 | K78: 0 | L78: =I78+J78+K78 -> 0 | M78: =G78+L78 -> 2339958
A79: 47 | B79: 1808 | C79: Buildings | D79: 9820398 | E79: -124006.2 | F79: -9157.76 | G79: =D79+E79+F79 -> 9687234.04 | I79: -2626445 | J79: -211049 | K79: 9158 | L79: =I79+J79+K79 -> -2828336 | M79: =G79+L79 -> 6858898.04
A80: 13 | B80: 1810 | C80: Leasehold Improvements | D80: 0 | E80: 0 | F80: 0 | G80: 0 | I80: 0 | J80: 0 | K80: 0 | L80: 0 | M80: 0
A81: 47 | B81: 1815 | C81: Transformer Station Equipment >50 kV | D81: 63482722 | E81: -307610.38 | F81: -38826.29 | G81: 63136285.33 | I81: -21745180 | J81: -1583700 | K81: 38826 | L81: -23290054 | M81: 39846231.33
A82: 47 | B82: 1820 | C82: Distribution Station Equipment <50 kV | D82: 2932918 | E82: 0 | F82: -23033.33 | G82: 2909884.67 | I82: -2046956 | J82: -48787 | K82: 23034 | L82: -2072709 | M82: 837175.67
A83: 47 | B83: 1825 | C83: Storage Battery Equipment | D83: 0 | E83: 0 | F83: 0 | G83: 0 | I83: 0 | J83: 0 | K83: 0 | L83: 0 | M83: 0
A84: 47 | B84: 1830 | C84: Poles, Towers & Fixtures | D84: 36520977 | E84: 3374648.03 | F84: 0 | G84: 39895625.03 | I84: -14554651 | J84: -731757 | K84: 0 | L84: -15286408 | M84: 24609217.03
A85: 47 | B85: 1835 | C85: Overhead Conductors & Devices | D85: 37347625 | E85: 2995429.08 | F85: 0 | G85: 40343054.08 | I85: -16807974 | J85: -490131 | K85: 0 | L85: -17298105 | M85: 23044949.08
A86: 47 | B86: 1840 | C86: Underground Conduit | D86: 29730456 | E86: 4356441.81 | F86: 0 | G86: 34086897.81 | I86: -10448858 | J86: -406761 | K86: 0 | L86: -10855619 | M86: 23231278.81
A87: 47 | B87: 1845 | C87: Underground Conductors & Devices | D87: 44851153 | E87: 2991710.85 | F87: 0 | G87: 47842863.85 | I87: -21593952 | J87: -838202 | K87: 0 | L87: -22432154 | M87: 25410709.85
A88: 47 | B88: 1850 | C88: Line Transformers | D88: 57375998 | E88: 3236192.54 | F88: -25310 | G88: 60586880.54 | I88: -27435587 | J88: -825114 | K88: 20206 | L88: -28240495 | M88: 32346385.54
A89: 47 | B89: 1855 | C89: Services (Overhead & Underground) | D89: 48563154 | E89: 3335155.92 | F89: 0 | G89: 51898309.92 | I89: -19626446 | J89: -960945 | K89: 0 | L89: -20587391 | M89: 31310918.92
A90: 47 | B90: 1860 | C90: Meters | D90: 3056087 | E90: 87170.55 | F90: 0 | G90: 3143257.55 | I90: -711540 | J90: -97668 | K90: 0 | L90: -809208 | M90: 2334049.55
A91: 47 | B91: 1860 | C91: Meters (Smart Meters) | D91: 12494107 | E91: 156433.03 | F91: 0 | G91: 12650540.03 | I91: -4040343 | J91: -838155 | K91: 0 | L91: -4878498 | M91: 7772042.03
A92: N/A | B92: 1905 | C92: Land | D92: 1395300 | E92: 0 | F92: 0 | G92: 1395300 | I92: 0 | J92: 0 | K92: 0 | L92: 0 | M92: 1395300
A93: 47 | B93: 1908 | C93: Buildings & Fixtures | D93: 17352281 | E93: 88366.86 | F93: -130328.15 | G93: 17310319.71 | I93: -5046968 | J93: -608466 | K93: 130328 | L93: -5525106 | M93: 11785213.71
A94: 13 | B94: 1910 | C94: Leasehold Improvements | D94: 0 | E94: 0 | F94: 0 | G94: 0 | I94: 0 | J94: 0 | K94: 0 | L94: 0 | M94: 0
A95: 8 | B95: 1915 | C95: Office Furniture & Equipment (10 years) | D95: 1321094 | E95: 64368.1 | F95: -398345.97 | G95: 987116.13 | I95: -973744 | J95: -67374 | K95: 398346 | L95: -642772 | M95: 344344.13
A96: 8 | B96: 1915 | C96: Office Furniture & Equipment (5 years) | D96: 0 | E96: 0 | F96: 0 | G96: 0 | I96: 0 | J96: 0 | K96: 0 | L96: 0 | M96: 0
A97: 10 | B97: 1920 | C97: Computer Equipment - Hardware | D97: 0 | E97: 0 | F97: 0 | G97: 0 | I97: 0 | J97: 0 | K97: 0 | L97: 0 | M97: 0
A98: 45 | B98: 1920 | C98: Computer Equip.-Hardware(Post Mar. 22/04) | D98: 0 | E98: 0 | F98: 0 | G98: 0 | I98: 0 | J98: 0 | K98: 0 | L98: 0 | M98: 0
A99: 45.1 | B99: 1920 | C99: Computer Equip.-Hardware(Post Mar. 19/07) | D99: 2222636 | E99: 174117.14 | F99: -105933.69 | G99: 2290819.45 | I99: -1634101 | J99: -224629 | K99: 105385 | L99: -1753345 | M99: 537474.45
A100: 10 | B100: 1930 | C100: Transportation Equipment | D100: 9528989 | E100: 482300.25 | F100: -208989.92 | G100: 9802299.33 | I100: -5735369 | J100: -661497 | K100: 208990 | L100: -6187876 | M100: 3614423.33
A101: 8 | B101: 1935 | C101: Stores Equipment | D101: 64072 | E101: 0 | F101: 0 | G101: 64072 | I101: -54853 | J101: -5711 | K101: 0 | L101: -60564 | M101: 3508
A102: 8 | B102: 1940 | C102: Tools, Shop & Garage Equipment | D102: 968465 | E102: 67711.67 | F102: -285883.3 | G102: 750293.37 | I102: -619600 | J102: -69763 | K102: 285883 | L102: -403480 | M102: 346813.37
A103: 8 | B103: 1945 | C103: Measurement & Testing Equipment | D103: 1022011 | E103: 18213.04 | F103: 0 | G103: 1040224.04 | I103: -798184 | J103: -37576 | K103: 0 | L103: -835760 | M103: 204464.04
A104: 8 | B104: 1950 | C104: Power Operated Equipment | D104: 850524 | E104: 179117.07 | F104: -136649.16 | G104: 892991.91 | I104: -565161 | J104: -62365 | K104: 119019 | L104: -508507 | M104: 384484.91
A105: 8 | B105: 1955 | C105: Communications Equipment | D105: 880528 | E105: 55700.42 | F105: 0 | G105: 936228.42 | I105: -534154 | J105: -84461 | K105: 0 | L105: -618615 | M105: 317613.42
A106: 8 | B106: 1955 | C106: Communication Equipment (Smart Meters) | D106: 0 | E106: 0 | F106: 0 | G106: 0 | I106: 0 | J106: 0 | K106: 0 | L106: 0 | M106: 0
A107: 8 | B107: 1960 | C107: Miscellaneous Equipment | D107: 109010 | E107: 0 | F107: 0 | G107: 109010 | I107: -102241 | J107: -2031 | K107: 0 | L107: -104272 | M107: 4738
A108: 47 | B108: 1970 | C108: Load Management Controls Customer Premises | D108: 0 | E108: 0 | F108: 0 | G108: 0 | I108: 0 | J108: 0 | K108: 0 | L108: 0 | M108: 0
A109: 47 | B109: 1975 | C109: Load Management Controls Utility Premises | D109: 0 | E109: 0 | F109: 0 | G109: 0 | I109: 0 | J109: 0 | K109: 0 | L109: 0 | M109: 0
A110: 47 | B110: 1980 | C110: System Supervisor Equipment | D110: 1566480 | E110: 0 | F110: -1539501.15 | G110: 26978.85 | I110: -1555449 | J110: -4059 | K110: 1539501 | L110: -20007 | M110: 6971.85
A111: 47 | B111: 1985 | C111: Miscellaneous Fixed Assets | D111: 0 | E111: 0 | F111: 0 | G111: 0 | I111: 0 | J111: 0 | K111: 0 | L111: 0 | M111: 0
A112: 47 | B112: 1990 | C112: Other Tangible Property | D112: 0 | E112: 0 | F112: 0 | G112: 0 | I112: 0 | J112: 0 | K112: 0 | L112: 0 | M112: 0
A113: 47 | B113: 1995 | C113: Contributions & Grants | D113: -54079649 | E113: 0 | F113: 13642.77 | G113: -54066006.23 | I113: 14637386 | J113: 1182463 | K113: -13642.77 | L113: 15806206.23 | M113: -38259800
A114: 47 | B114: 2440 | C114: Deferred Revenue5 | D114: -6698313 | E114: -9459986 | F114: 0 | G114: -16158299 | I114: 105658 | J114: 250078 | K114: 0 | L114: =I114+J114+K114 -> 355736 | M114: =G114+L114 -> -15802563
G115: =D115+E115+F115 -> 0 | L115: =I115+J115+K115 -> 0 | M115: =G115+L115 -> 0
C116: Sub-Total | D116: =SUM(D75:D115) -> 329464668 | E116: =SUM(E75:E115) -> 12214577.27 | F116: =SUM(F75:F115) -> -2888315.95 | G116: =SUM(G75:G115) -> 338790929.3 | I116: =SUM(I75:I115) -> -148262955 | J116: =SUM(J75:J115) -> -7704251 | K116: =SUM(K75:K115) -> 2865033.23 | L116: =SUM(L75:L115) -> -153102172.8 | M116: =SUM(M75:M115) -> 185688756.5
C117: Less Socialized Renewable Energy Generation Investments (input as negative) | G117: =D117+E117+F117 -> 0 | L117: =I117+J117+K117 -> 0 | M117: =G117+L117 -> 0
C118: Less Other Non Rate-Regulated Utility Assets (input as negative) | G118: =D118+E118+F118 -> 0 | L118: =I118+J118+K118 -> 0 | M118: =G118+L118 -> 0
C119: Total PP&E | D119: =SUM(D116:D118) -> 329464668 | E119: =SUM(E116:E118) -> 12214577.27 | F119: =SUM(F116:F118) -> -2888315.95 | G119: =SUM(G116:G118) -> 338790929.3 | I119: =SUM(I116:I118) -> -148262955 | J119: =SUM(J116:J118) -> -7704251 | K119: =SUM(K116:K118) -> 2865033.23 | L119: =SUM(L116:L118) -> -153102172.8 | M119: =SUM(M116:M118) -> 185688756.5
C120: Depreciation Expense adj. from gain or loss on the retirement of assets (pool of like assets), if applicable6
C121: Total | J121: =J119+J120 -> -7704251
I123: Less: Fully Allocated Depreciation
A124: 10 | C124: Transportation | I124: Transportation | K124: -367216.33
A125: 8 | C125: Stores Equipment | I125: Stores Equipment | K125: 250078
I126: Net Depreciation | K126: =J121-K124-K125 -> -7587112.67
E128: Accounting Standard | F128: MIFRS
E129: Year | F129: 2016
D131: Cost | J131: Accumulated Depreciation
A132: CCA Class 2 | B132: OEB Account 3 | C132: Description 3 | D132: Opening Balance | E132: Additions 4 | F132: Disposals 6 | G132: Closing Balance | I132: Opening Balance | J132: Additions | K132: Disposals 6 | L132: Closing Balance | M132: Net Book Value
B133: 1609 | C133: Capital Contributions Paid | D133: 0 | G133: =D133+E133+F133 -> 0 | I133: 0 | J133: 0 | L133: =I133+J133+K133 -> 0 | M133: =G133+L133 -> 0
A134: 12 | B134: 1611 | C134: Computer Software (Formally known as Account 1925) | D134: 4623342.49 | E134: 710077.69 | F134: 0 | G134: =D134+E134+F134 -> 5333420.18 | I134: -3761654 | J134: -397815 | L134: =I134+J134+K134 -> -4159469 | M134: =G134+L134 -> 1173951.18
A135: CEC | B135: 1612 | C135: Land Rights (Formally known as Account 1906) | D135: 265448 | F135: 0 | G135: =D135+E135+F135 -> 265448 | I135: -263180 | J135: -2269 | L135: =I135+J135+K135 -> -265449 | M135: =G135+L135 -> -1
A136: N/A | B136: 1805 | C136: Land | D136: 2339958 | F136: 0 | G136: =D136+E136+F136 -> 2339958 | I136: 0 | J136: 0 | L136: =I136+J136+K136 -> 0 | M136: =G136+L136 -> 2339958
A137: 47 | B137: 1808 | C137: Buildings | D137: 9687234.04 | F137: -11187 | G137: =D137+E137+F137 -> 9676047.04 | I137: -2828336 | J137: -210295 | K137: 11187 | L137: =I137+J137+K137 -> -3027444 | M137: =G137+L137 -> 6648603.04
A138: 13 | B138: 1810 | C138: Leasehold Improvements | D138: 0 | F138: 0 | G138: 0 | I138: 0 | J138: 0 | L138: 0 | M138: 0
A139: 47 | B139: 1815 | C139: Transformer Station Equipment >50 kV | D139: 63136285.33 | E139: 190239 | F139: -499325 | G139: 62827199.33 | I139: -23290054 | J139: -1576758 | K139: 499325 | L139: -24367487 | M139: 38459712.33
A140: 47 | B140: 1820 | C140: Distribution Station Equipment <50 kV | D140: 2909884.67 | F140: -16218 | G140: 2893666.67 | I140: -2072709 | J140: -48224 | K140: 16218 | L140: -2104715 | M140: 788951.67
A141: 47 | B141: 1825 | C141: Storage Battery Equipment | D141: 0 | F141: 0 | G141: 0 | I141: 0 | J141: 0 | L141: 0 | M141: 0
A142: 47 | B142: 1830 | C142: Poles, Towers & Fixtures | D142: 39895625.03 | E142: 3525628 | F142: 0 | G142: 43421253.03 | I142: -15286408 | J142: -836577 | L142: -16122985 | M142: 27298268.03
A143: 47 | B143: 1835 | C143: Overhead Conductors & Devices | D143: 40343054.08 | E143: 2757286 | F143: 0 | G143: 43100340.08 | I143: -17298105 | J143: -542946 | L143: -17841051 | M143: 25259289.08
A144: 47 | B144: 1840 | C144: Underground Conduit | D144: 34086897.81 | E144: 2655417 | F144: 0 | G144: 36742314.81 | I144: -10855619 | J144: -465193 | L144: -11320812 | M144: 25421502.81
A145: 47 | B145: 1845 | C145: Underground Conductors & Devices | D145: 47842863.85 | E145: 4941322 | F145: 0 | G145: 52784185.85 | I145: -22432154 | J145: -933328 | L145: -23365482 | M145: 29418703.85
A146: 47 | B146: 1850 | C146: Line Transformers | D146: 60586880.54 | E146: 4141737 | F146: 0 | G146: 64728617.54 | I146: -28240495 | J146: -1710860 | L146: -29951355 | M146: 34777262.54
A147: 47 | B147: 1855 | C147: Services (Overhead & Underground) | D147: 51898309.92 | E147: 3320173 | F147: 0 | G147: 55218482.92 | I147: -20587391 | J147: -1040794 | L147: -21628185 | M147: 33590297.92
A148: 47 | B148: 1860 | C148: Meters | D148: 3143257.55 | E148: 265312 | F148: 0 | G148: 3408569.55 | I148: -809208 | J148: -143228 | L148: -952436 | M148: 2456133.55
A149: 47 | B149: 1860 | C149: Meters (Smart Meters) | D149: 12650540.03 | E149: 407305 | F149: 0 | G149: 13057845.03 | I149: -4878498 | J149: -856947 | L149: -5735445 | M149: 7322400.03
A150: N/A | B150: 1905 | C150: Land | D150: 1395300 | F150: 0 | G150: 1395300 | I150: 0 | J150: 0 | L150: 0 | M150: 1395300
A151: 47 | B151: 1908 | C151: Buildings & Fixtures | D151: 17310319.71 | E151: 221770 | F151: -1475987 | G151: 16056102.71 | I151: -5525106 | J151: -613557 | K151: 1475987 | L151: -4662676 | M151: 11393426.71
A152: 13 | B152: 1910 | C152: Leasehold Improvements | D152: 0 | F152: 0 | G152: 0 | I152: 0 | J152: 0 | L152: 0 | M152: 0
A153: 8 | B153: 1915 | C153: Office Furniture & Equipment (10 years) | D153: 987116.13 | E153: 36970 | F153: -9747 | G153: 1014339.13 | I153: -642772 | J153: -70563.17 | K153: 9747 | L153: -703588.17 | M153: 310750.96
A154: 8 | B154: 1915 | C154: Office Furniture & Equipment (5 years) | D154: 0 | F154: 0 | G154: 0 | I154: 0 | J154: 0 | L154: 0 | M154: 0
A155: 10 | B155: 1920 | C155: Computer Equipment - Hardware | D155: 0 | F155: 0 | G155: 0 | I155: 0 | J155: 0 | L155: 0 | M155: 0
A156: 45 | B156: 1920 | C156: Computer Equip.-Hardware(Post Mar. 22/04) | D156: 0 | F156: 0 | G156: 0 | I156: 0 | J156: 0 | L156: 0 | M156: 0
A157: 45.1 | B157: 1920 | C157: Computer Equip.-Hardware(Post Mar. 19/07) | D157: 2290819.45 | E157: 90770 | F157: -35795 | G157: 2345794.45 | I157: -1753345 | J157: -211185 | K157: 35288 | L157: -1929242 | M157: 416552.45
A158: 10 | B158: 1930 | C158: Transportation Equipment | D158: 9802299.33 | E158: 733066 | F158: -503480 | G158: 10031885.33 | I158: -6187876 | J158: -664631 | K158: 503480 | L158: -6349027 | M158: 3682858.33
A159: 8 | B159: 1935 | C159: Stores Equipment | D159: 64072 | E159: 2552 | F159: 0 | G159: 66624 | I159: -60564 | J159: -3215 | L159: -63779 | M159: 2845
A160: 8 | B160: 1940 | C160: Tools, Shop & Garage Equipment | D160: 750293.37 | E160: 95003 | F160: 0 | G160: 845296.37 | I160: -403480 | J160: -72734 | L160: -476214 | M160: 369082.37
A161: 8 | B161: 1945 | C161: Measurement & Testing Equipment | D161: 1040224.04 | E161: 3849 | F161: 0 | G161: 1044073.04 | I161: -835760 | J161: -36709 | L161: -872469 | M161: 171604.04
A162: 8 | B162: 1950 | C162: Power Operated Equipment | D162: 892991.91 | E162: 126680 | F162: -153996 | G162: 865675.91 | I162: -508507 | J162: -66839 | K162: 136605 | L162: -438741 | M162: 426934.91
A163: 8 | B163: 1955 | C163: Communications Equipment | D163: 936228.42 | E163: 61266 | F163: 0 | G163: 997494.42 | I163: -618615 | J163: -80930 | L163: -699545 | M163: 297949.42
A164: 8 | B164: 1955 | C164: Communication Equipment (Smart Meters) | D164: 0 | F164: 0 | G164: 0 | I164: 0 | J164: 0 | L164: 0 | M164: 0
A165: 8 | B165: 1960 | C165: Miscellaneous Equipment | D165: 109010 | F165: 0 | G165: 109010 | I165: -104272 | J165: -2031 | L165: -106303 | M165: 2707
A166: 47 | B166: 1970 | C166: Load Management Controls Customer Premises | D166: 0 | F166: 0 | G166: 0 | I166: 0 | J166: 0 | L166: 0 | M166: 0
A167: 47 | B167: 1975 | C167: Load Management Controls Utility Premises | D167: 0 | F167: 0 | G167: 0 | I167: 0 | J167: 0 | L167: 0 | M167: 0
A168: 47 | B168: 1980 | C168: System Supervisor Equipment | D168: 26978.85 | F168: 10800 | G168: 37778.85 | I168: -20007 | J168: -1942.56 | K168: -10800 | L168: -32749.56 | M168: 5029.29
A169: 47 | B169: 1985 | C169: Miscellaneous Fixed Assets | D169: 0 | F169: 0 | G169: 0 | I169: 0 | J169: 0 | L169: 0 | M169: 0
A170: 47 | B170: 1990 | C170: Other Tangible Property | D170: 0 | F170: 0 | G170: 0 | I170: 0 | J170: 0 | L170: 0 | M170: 0
A171: 47 | B171: 1995 | C171: Contributions & Grants | D171: -54066006.23 | E171: 0 | F171: 5228 | G171: -54060778.23 | I171: 15806206.23 | J171: 1180976 | K171: -5229 | L171: 16981953.23 | M171: -37078825
A172: 47 | B172: 2440 | C172: Deferred Revenue5 | D172: -16158299 | E172: -8950517 | F172: 0 | G172: -25108816 | I172: 355736 | J172: 487557 | L172: 843293 | M172: -24265523
G173: =D173+E173+F173 -> 0 | L173: =I173+J173+K173 -> 0 | M173: =G173+L173 -> 0
C174: Sub-Total | D174: =SUM(D133:D173) -> 338790929.3 | E174: =SUM(E133:E173) -> 15335905.69 | F174: =SUM(F133:F173) -> -2689707 | G174: =SUM(G133:G173) -> 351437128 | I174: =SUM(I133:I173) -> -153102172.8 | J174: =SUM(J133:J173) -> -8921037.73 | K174: =SUM(K133:K173) -> 2671808 | L174: =SUM(L133:L173) -> -159351402.5 | M174: =SUM(M133:M173) -> 192085725.5
C175: Less Socialized Renewable Energy Generation Investments (input as negative) | G175: =D175+E175+F175 -> 0 | L175: =I175+J175+K175 -> 0 | M175: =G175+L175 -> 0
C176: Less Other Non Rate-Regulated Utility Assets (input as negative) | G176: =D176+E176+F176 -> 0 | L176: =I176+J176+K176 -> 0 | M176: =G176+L176 -> 0
C177: Total PP&E | D177: =SUM(D174:D176) -> 338790929.3 | E177: =SUM(E174:E176) -> 15335905.69 | F177: =SUM(F174:F176) -> -2689707 | G177: =SUM(G174:G176) -> 351437128 | I177: =SUM(I174:I176) -> -153102172.8 | J177: =SUM(J174:J176) -> -8921037.73 | K177: =SUM(K174:K176) -> 2671808 | L177: =SUM(L174:L176) -> -159351402.5 | M177: =SUM(M174:M176) -> 192085725.5
C178: Depreciation Expense adj. from gain or loss on the retirement of assets (pool of like assets), if applicable6
C179: Total | J179: =J177+J178 -> -8921037.73
I181: Less: Fully Allocated Depreciation
A182: 10 | C182: Transportation | I182: Transportation | K182: -382349
A183: 8 | C183: Stores Equipment | I183: Stores Equipment | K183: 487557
I184: Net Depreciation | K184: =J179-K182-K183 -> -9026245.73
E186: Accounting Standard | F186: MIFRS
E187: Year | F187: 2017
D189: Cost | J189: Accumulated Depreciation
A190: CCA Class 2 | B190: OEB Account 3 | C190: Description 3 | D190: Opening Balance | E190: Additions 4 | F190: Disposals 6 | G190: Closing Balance | I190: Opening Balance | J190: Additions | K190: Disposals 6 | L190: Closing Balance | M190: Net Book Value
B191: 1609 | C191: Capital Contributions Paid | D191: 0 | G191: =D191+E191+F191 -> 0 | I191: 0 | J191: 0 | L191: =I191+J191+K191 -> 0 | M191: =G191+L191 -> 0
A192: 12 | B192: 1611 | C192: Computer Software (Formally known as Account 1925) | D192: 5333420.18 | E192: 136147 | G192: =D192+E192+F192 -> 5469567.18 | I192: -4159469 | J192: -419965 | L192: =I192+J192+K192 -> -4579434 | M192: =G192+L192 -> 890133.18
A193: CEC | B193: 1612 | C193: Land Rights (Formally known as Account 1906) | D193: 265448 | G193: =D193+E193+F193 -> 265448 | I193: -265449 | J193: 0 | L193: =I193+J193+K193 -> -265449 | M193: =G193+L193 -> -1
A194: N/A | B194: 1805 | C194: Land | D194: 2339958 | G194: =D194+E194+F194 -> 2339958 | I194: 0 | J194: 0 | L194: =I194+J194+K194 -> 0 | M194: =G194+L194 -> 2339958
A195: 47 | B195: 1808 | C195: Buildings | D195: 9676047.04 | G195: =D195+E195+F195 -> 9676047.04 | I195: -3027444 | J195: -189033 | L195: =I195+J195+K195 -> -3216477 | M195: =G195+L195 -> 6459570.04
A196: 13 | B196: 1810 | C196: Leasehold Improvements | D196: 0 | G196: 0 | I196: 0 | J196: 0 | L196: 0 | M196: 0
A197: 47 | B197: 1815 | C197: Transformer Station Equipment >50 kV | D197: 62827199.33 | E197: 2484885 | G197: 65312084.33 | I197: -24367487 | J197: -1520336 | L197: -25887823 | M197: 39424261.33
A198: 47 | B198: 1820 | C198: Distribution Station Equipment <50 kV | D198: 2893666.67 | G198: 2893666.67 | I198: -2104715 | J198: -44883 | L198: -2149598 | M198: 744068.67
A199: 47 | B199: 1825 | C199: Storage Battery Equipment | D199: 0 | G199: 0 | I199: 0 | J199: 0 | L199: 0 | M199: 0
A200: 47 | B200: 1830 | C200: Poles, Towers & Fixtures | D200: 43421253.03 | E200: 2823048 | G200: 46244301.03 | I200: -16122985 | J200: -899198 | L200: -17022183 | M200: 29222118.03
A201: 47 | B201: 1835 | C201: Overhead Conductors & Devices | D201: 43100340.08 | E201: 2875991 | G201: 45976331.08 | I201: -17841051 | J201: -586226 | L201: -18427277 | M201: 27549054.08
A202: 47 | B202: 1840 | C202: Underground Conduit | D202: 36742314.81 | E202: 2850149 | G202: 39592463.81 | I202: -11320812 | J202: -506681 | L202: -11827493 | M202: 27764970.81
A203: 47 | B203: 1845 | C203: Underground Conductors & Devices | D203: 52784185.85 | E203: 2941745 | G203: 55725930.85 | I203: -23365482 | J203: -1005936 | L203: -24371418 | M203: 31354512.85
A204: 47 | B204: 1850 | C204: Line Transformers | D204: 64728617.54 | E204: 2712202 | F204: -21883 | G204: 67418936.54 | I204: -29951355 | J204: -1378915 | K204: 21883 | L204: -31308387 | M204: 36110549.54
A205: 47 | B205: 1855 | C205: Services (Overhead & Underground) | D205: 55218482.92 | E205: 3479238 | G205: 58697720.92 | I205: -21628185 | J205: -1099297 | L205: -22727482 | M205: 35970238.92
A206: 47 | B206: 1860 | C206: Meters | D206: 3408569.55 | E206: 600897 | G206: 4009466.55 | I206: -952436 | J206: -159098 | L206: -1111534 | M206: 2897932.55
A207: 47 | B207: 1860 | C207: Meters (Smart Meters) | D207: 13057845.03 | E207: 222909 | G207: 13280754.03 | I207: -5735445 | J207: -878535 | L207: -6613980 | M207: 6666774.03
A208: N/A | B208: 1905 | C208: Land | D208: 1395300 | G208: 1395300 | I208: 0 | J208: 0 | L208: 0 | M208: 1395300
A209: 47 | B209: 1908 | C209: Buildings & Fixtures | D209: 16056102.71 | E209: 1015633 | F209: -24376 | G209: 17047359.71 | I209: -4662676 | J209: -466747 | K209: 24376 | L209: -5105047 | M209: 11942312.71
A210: 13 | B210: 1910 | C210: Leasehold Improvements | D210: 0 | G210: 0 | I210: 0 | J210: 0 | L210: 0 | M210: 0
A211: 8 | B211: 1915 | C211: Office Furniture & Equipment (10 years) | D211: 1014339.13 | E211: 53399 | F211: -293671 | G211: 774067.13 | I211: -703588.17 | J211: -68483 | K211: 293671 | L211: -478400.17 | M211: 295666.96
A212: 8 | B212: 1915 | C212: Office Furniture & Equipment (5 years) | D212: 0 | G212: 0 | I212: 0 | J212: 0 | L212: 0 | M212: 0
... 201 more rows

Sheet Appendix 2-BB Service Life
N1: File Number: | P1: ='LDC Info'!E16 -> EB-2019-0049
N2: Exhibit:
N3: Tab:
N4: Schedule:
N5: Page:
N7: Date:
A9: Appendix 2-BB
A10: Service Life Comparison
A11: Table F-1 from Kinetrics Report1
C15: Asset Details | F15: Useful Life | J15: USoA Account Number | K15: USoA Account Description | L15: Current | N15: Proposed | P15: Outside Range of Min, Max TUL?
A16: Parent* | B16: # | C16: Category| Component | Type | F16: MIN UL | G16: TUL | H16: MAX UL | L16: Years | M16: Rate | N16: Years | O16: Rate | P16: Below Min TUL | Q16: Above Max TUL
A17: OH | B17: 1 | C17: Fully Dressed Wood Poles | D17: Overall | F17: 35 | G17: 45 | H17: 75 | J17: 1830 | K17: Poles Towers and fixtures | L17: 40 | M17: =IF(ISERROR(1/L17), "", 1/L17) -> 0.025 | N17: 40 | O17: =IF(ISERROR(1/N17), "", 1/N17) -> 0.025 | P17: =IF(ISBLANK(N17),"",IF(N17<F17,"Yes","No")) -> No | Q17: =IF(ISBLANK(N17),"",IF(N17>H17,"Yes","No")) -> No
D18: Cross Arm | E18: Wood | F18: 20 | G18: 40 | H18: 55 | M18: =IF(ISERROR(1/L18), "", 1/L18) ->  | O18: =IF(ISERROR(1/N18), "", 1/N18) ->  | P18: =IF(ISBLANK(N18),"",IF(N18<F18,"Yes","No")) ->  | Q18: =IF(ISBLANK(N18),"",IF(N18>H18,"Yes","No")) -> 
E19: Steel | F19: 30 | G19: 70 | H19: 95
B20: 2 | C20: Fully Dressed Concrete Poles | D20: Overall | F20: 50 | G20: 60 | H20: 80
D21: Cross Arm | E21: Wood | F21: 20 | G21: 40 | H21: 55
E22: Steel | F22: 30 | G22: 70 | H22: 95
B23: 3 | C23: Fully Dressed Steel Poles | D23: Overall | F23: 60 | G23: 60 | H23: 80
D24: Cross Arm | E24: Wood | F24: 20 | G24: 40 | H24: 55
E25: Steel | F25: 30 | G25: 70 | H25: 95
B26: 4 | C26: OH Line Switch | F26: 30 | G26: 45 | H26: 55 | J26: 1835 | K26: Overhead Conductors and Devices | L26: 40 | M26: 0.025 | N26: 40 | O26: 0.025 | P26: No | Q26: No
B27: 5 | C27: OH Line Switch Motor | F27: 15 | G27: 25 | H27: 25
B28: 6 | C28: OH Line Switch RTU | F28: 15 | G28: 20 | H28: 20
B29: 7 | C29: OH Integral Switches | F29: 35 | G29: 45 | H29: 60
B30: 8 | C30: OH Conductors | F30: 50 | G30: 60 | H30: 75 | J30: 1835 | K30: Overhead Conductors and Devices | L30: 60 | M30: 0.01666666667 | N30: 60 | O30: 0.01666666667 | P30: No | Q30: No
B31: 9 | C31: OH Transformers & Voltage Regulators | F31: 30 | G31: 40 | H31: 60 | J31: 1835 | K31: Overhead Conductors and Devices | L31: 30 | M31: 0.03333333333 | N31: 30 | O31: 0.03333333333 | P31: No | Q31: No
B32: 10 | C32: OH Shunt Capacitor Banks | F32: 25 | G32: 30 | H32: 40 | J32: 1835 | K32: Overhead Conductors and Devices | L32: 25 | M32: 0.04 | N32: 25 | O32: 0.04 | P32: No | Q32: No
B33: 11 | C33: Reclosers | F33: 25 | G33: 40 | H33: 55 | J33: 1835 | K33: Overhead Conductors and Devices | L33: 25 | M33: 0.04 | N33: 25 | O33: 0.04 | P33: No | Q33: No
A34: TS & MS | B34: 12 | C34: Power Transformers | D34: Overall | F34: 30 | G34: 45 | H34: 60 | J34: 1815 | K34: TS Equipment
D35: Bushing | F35: 10 | G35: 20 | H35: 30
D36: Tap Changer | F36: 20 | G36: 30 | H36: 60
B37: 13 | C37: Station Service Transformer | F37: 30 | G37: 45 | H37: 55 | J37: 1815 | K37: TS Equipment | L37: 40 | M37: 0.025 | N37: 40 | O37: 0.025 | P37: No | Q37: No
B38: 14 | C38: Station Grounding Transformer | F38: 30 | G38: 40 | H38: 40
B39: 15 | C39: Station DC System | D39: Overall | F39: 10 | G39: 20 | H39: 30
D40: Battery Bank | F40: 10 | G40: 15 | H40: 15
D41: Charger | F41: 20 | G41: 20 | H41: 30
B42: 16 | C42: Station Metal Clad Switchgear | D42: Overall | F42: 30 | G42: 40 | H42: 60 | J42: 1815 | K42: TS Equipment | L42: 50 | M42: 0.02 | N42: 50 | O42: 0.02 | P42: No | Q42: No
D43: Removable Breaker | F43: 25 | G43: 40 | H43: 60
B44: 17 | C44: Station Independent Breakers | F44: 35 | G44: 45 | H44: 65
B45: 18 | C45: Station Switch | F45: 30 | G45: 50 | H45: 60
B46: 19 | C46: Electromechanical Relays | F46: 25 | G46: 35 | H46: 50 | J46: 1815 | K46: TS Equipment | L46: 25 | M46: 0.04 | N46: 25 | O46: 0.04 | P46: No | Q46: No
B47: 20 | C47: Solid State Relays | F47: 10 | G47: 30 | H47: 45 | J47: 1815 | K47: TS Equipment | L47: 25 | M47: 0.04 | N47: 25 | O47: 0.04 | P47: No | Q47: No
B48: 21 | C48: Digital & Numeric Relays | F48: 15 | G48: 20 | H48: 20 | J48: 1815 | K48: TS Equipment | L48: 15 | M48: 0.06666666667 | N48: 15 | O48: 0.06666666667 | P48: No | Q48: No
B49: 22 | C49: Rigid Busbars | F49: 30 | G49: 55 | H49: 60
B50: 23 | C50: Steel Structure | F50: 35 | G50: 50 | H50: 90 | J50: 1815 | K50: TS Equipment | L50: 50 | M50: 0.02 | N50: 50 | O50: 0.02 | P50: No | Q50: No
A51: UG | B51: 24 | C51: Primary Paper Insulated Lead Covered (PILC) Cables | F51: 60 | G51: 65 | H51: 75 | J51: 1845 | K51: UG Conductors and Devices | L51: 60 | M51: 0.01666666667 | N51: 60 | O51: 0.01666666667 | P51: No | Q51: No
B52: 25 | C52: Primary Ethylene-Propylene Rubber (EPR) Cables | F52: 20 | G52: 25 | H52: 25 | J52: 1845 | K52: UG Conductors and Devices | L52: 40 | M52: 0.025 | N52: 40 | O52: 0.025 | P52: No | Q52: Yes
B53: 26 | C53: Primary Non-Tree Retardant (TR) Cross Linked Polyethylene (XLPE) Cables Direct Buried | F53: 20 | G53: 25 | H53: 30 | J53: 1845 | K53: UG Conductors and Devices | L53: 40 | M53: 0.025 | N53: 40 | O53: 0.025 | P53: No | Q53: Yes
B54: 27 | C54: Primary Non-TR XLPE Cables in Duct | F54: 20 | G54: 25 | H54: 30 | J54: 1845 | K54: UG Conductors and Devices | L54: 40 | M54: 0.025 | N54: 40 | O54: 0.025 | P54: No | Q54: Yes
B55: 30 | C55: Secondary PILC Cables | F55: 70 | G55: 75 | H55: 80
B56: 31 | C56: Secondary Cables Direct Buried | F56: 25 | G56: 35 | H56: 40 | J56: 1845 | K56: UG Conductors and Devices | L56: 40 | M56: 0.025 | N56: 40 | O56: 0.025 | P56: No | Q56: No
B57: 32 | C57: Secondary Cables in Duct | F57: 35 | G57: 40 | H57: 60 | J57: 1845 | K57: UG Conductors and Devices | L57: 40 | M57: 0.025 | N57: 40 | O57: 0.025 | P57: No | Q57: No
B58: 33 | C58: Network Tranformers | D58: Overall | F58: 20 | G58: 35 | H58: 50 | J58: 1850 | K58: Line Transformers | L58: 40 | M58: 0.025 | N58: 40 | O58: 0.025 | P58: No | Q58: No
D59: Protector | F59: 20 | G59: 35 | H59: 40 | J59: 1850 | K59: Line Transformers | L59: 40 | M59: 0.025 | N59: 40 | O59: 0.025 | P59: No | Q59: No
B60: 34 | C60: Pad-Mounted Transformers | F60: 25 | G60: 40 | H60: 45 | J60: 1850 | K60: Line Transformers | L60: 40 | M60: 0.025 | N60: 40 | O60: 0.025 | P60: No | Q60: No
B61: 35 | C61: Submersible/Vault Transformers | F61: 25 | G61: 35 | H61: 45 | L61: 30 | M61: 0.03333333333 | N61: 30 | O61: 0.03333333333 | P61: No | Q61: No
B62: 36 | C62: UG Foundation | F62: 35 | G62: 55 | H62: 70 | J62: 1850 | K62: Line Transformers | L62: 60 | M62: 0.01666666667 | N62: 60 | O62: 0.01666666667 | P62: No | Q62: No
B63: 37 | C63: UG Vaults | D63: Overall | F63: 40 | G63: 60 | H63: 80 | J63: 1850 | K63: Line Transformers | L63: 60 | M63: 0.01666666667 | N63: 60 | O63: 0.01666666667 | P63: No | Q63: No
D64: Roof | F64: 20 | G64: 30 | H64: 45 | J64: 1850 | K64: Line Transformers | L64: 30 | M64: 0.03333333333 | N64: 30 | O64: 0.03333333333 | P64: No | Q64: No
B65: 38 | C65: UG Vault Switches | F65: 20 | G65: 35 | H65: 50 | J65: 1840 | K65: UG Conduit | L65: 40 | M65: 0.025 | N65: 40 | O65: 0.025 | P65: No | Q65: No
B66: 39 | C66: Pad-Mounted Switchgear | F66: 20 | G66: 30 | H66: 45 | J66: 1840 | K66: UG Conduit | L66: 40 | M66: 0.025 | N66: 40 | O66: 0.025 | P66: No | Q66: No
B67: 40 | C67: Ducts | F67: 30 | G67: 50 | H67: 85 | J67: 1840 | K67: UG Conduit | L67: 60 | M67: 0.01666666667 | N67: 60 | O67: 0.01666666667 | P67: No | Q67: No
B68: 41 | C68: Concrete Encased Duct Banks | F68: 35 | G68: 55 | H68: 80
B69: 42 | C69: Cable Chambers | F69: 50 | G69: 60 | H69: 80
A70: S | B70: 43 | C70: Remote SCADA | F70: 15 | G70: 20 | H70: 30
A73: Table F-2 from Kinetrics Report1
C75: Asset Details | F75: Useful Life Range | J75: USoA Account Number | K75: USoA Account Description | L75: Current | N75: Proposed | P75: Outside Range of Min, Max TUL?
B76: # | C76: Category| Component | Type | L76: Years | M76: Rate | N76: Years | O76: Rate | P76: Below Min Range | Q76: Above Max Range
B77: 1 | C77: Office Equipment | F77: 5 | G77: 15 | J77: 1915 | K77: Office Furniture and Equipment | L77: 10 | M77: =IF(ISERROR(1/L77), "", 1/L77) -> 0.1 | N77: 10 | O77: =IF(ISERROR(1/N77), "", 1/N77) -> 0.1 | P77: =IF(ISBLANK(N77),"",IF(N77<F77,"Yes","No")) -> No | Q77: =IF(ISBLANK(N77),"",IF(N77>G77,"Yes","No")) -> No
B78: 2 | C78: Vehicles | D78: Trucks & Buckets | F78: 5 | G78: 15 | J78: 1930 | K78: Transportation Equipment | L78: 10 | M78: =IF(ISERROR(1/L78), "", 1/L78) -> 0.1 | N78: 10 | O78: =IF(ISERROR(1/N78), "", 1/N78) -> 0.1 | P78: =IF(ISBLANK(N78),"",IF(N78<F78,"Yes","No")) -> No | Q78: =IF(ISBLANK(N78),"",IF(N78>G78,"Yes","No")) -> No
D79: Trailers | F79: 5 | G79: 20 | J79: 1930 | K79: Transportation Equipment | L79: 8 | M79: 0.125 | N79: 8 | O79: 0.125 | P79: No | Q79: No
D80: Vans | F80: 5 | G80: 10 | J80: 1930 | K80: Transportation Equipment | L80: 8 | M80: 0.125 | N80: 8 | O80: 0.125 | P80: No | Q80: No
B81: 3 | C81: Administrative Buildings | F81: 50 | G81: 75 | J81: 1908 | K81: Buidlings and Fixtures | L81: 50 | M81: 0.02 | N81: 50 | O81: 0.02 | P81: No | Q81: No
B82: 4 | C82: Leasehold Improvements | F82: Lease dependent
B83: 5 | C83: Station Buildings | D83: Station Buildings | F83: 50 | G83: 75 | J83: 1808 | K83: Buildings and Fixtures | L83: 50 | M83: 0.02 | N83: 50 | O83: 0.02 | P83: No | Q83: No
D84: Parking | F84: 25 | G84: 30
D85: Fence | F85: 25 | G85: 60
D86: Roof | F86: 20 | G86: 30 | J86: 1808 | K86: Buildings and Fixtures | L86: 20 | M86: 0.05 | N86: 20 | O86: 0.05 | P86: No | Q86: No
B87: 6 | C87: Computer Equipment | D87: Hardware | F87: 3 | G87: 5 | J87: 1920 | K87: Computer Hardware | L87: 4 | M87: 0.25 | N87: 4 | O87: 0.25 | P87: No | Q87: No
D88: Software | F88: 2 | G88: 5 | J88: 1611 | K88: Computer Software | L88: 3 | M88: 0.3333333333 | N88: 3 | O88: 0.3333333333 | P88: No | Q88: No
B89: 7 | C89: Equipment | D89: Power Operated | F89: 5 | G89: 10
D90: Stores | F90: 5 | G90: 10
D91: Tools, Shop, Garage Equipment | F91: 5 | G91: 10
D92: Measurement & Testing Equipment | F92: 5 | G92: 10
B93: 8 | C93: Communication | D93: Towers | F93: 60 | G93: 70
D94: Wireless | F94: 2 | G94: 10
B95: 9 | C95: Residential Energy Meters | F95: 25 | G95: 35 | J95: 1860 | K95: Meters | L95: 25 | M95: 0.04 | N95: 25 | O95: 0.04 | P95: No | Q95: No
B96: 10 | C96: Industrial/Commercial Energy Meters | F96: 25 | G96: 35 | J96: 1860 | K96: Meters | L96: 25 | M96: 0.04 | N96: 25 | O96: 0.04 | P96: No | Q96: No
B97: 11 | C97: Wholesale Energy Meters | F97: 15 | G97: 30 | J97: 1860 | K97: Meters | L97: 25 | M97: 0.04 | N97: 25 | O97: 0.04 | P97: No | Q97: No
B98: 12 | C98: Current & Potential Transformer (CT & PT) | F98: 35 | G98: 50
B99: 13 | C99: Smart Meters | F99: 5 | G99: 15 | J99: 1860 | K99: Meters | L99: 15 | M99: 0.06666666667 | N99: 15 | O99: 0.06666666667 | P99: No | Q99: No
B100: 14 | C100: Repeaters - Smart Metering | F100: 10 | G100: 15
B101: 15 | C101: Data Collectors - Smart Metering | F101: 15 | G101: 20
A104: * TS & MS = Transformer and Municipal Stations UG = Underground Systems S = Monitoring and Control Systems
A106: Note 1: | B106: Tables F-1 and F-2 above are to be used as a reference in order to complete columns J, K, L and N.
B107: See pages 17-19 of Kinetrics Report

Sheet App.2-C_DepExp
A9: Appendix 2-C | Y9: CGAAP
A10: Depreciation and Amortization Expense | Y10: Revised CGAAP
Y11: MIFRS
A12: This appendix is to be completed in conjunction with the accounting instructions in Appendix 2-B
A14: Scenario that applies | C14: Applicable Years and Accounting Standard | R14: Year Reflected in Schedule Below | S14: Accounting Standard Reflected in Schedule Below | Y14: 2012
A15: Rebasing for the first time with depreciation policy changes made in 2012. | C15: This appendix must be duplicated and completed for the years 2012 to 2018. The appendix for 2012 is to be completed under CGAAP (prior to changes in depreciation policies). The appendix for 2012 to 2014 must be completed under Revised CGAAP (after changes in depreciation policies). The appendix for 2014 to 2018 is to be completed under MIFRS (2014 if changes to MIFRS are material). | Y15: 2013
A16: Rebasing for the first time with depreciation policy changes made in 2013. | C16: This appendix must be duplicated and completed for the years 2013 to 2018. The appendix for 2013 is to be completed under CGAAP (prior to changes in depreciation policies). The appendix for 2013 to 2014 must be completed under Revised CGAAP (after changes in depreciation policies). The appendix for 2014 to 2018 is to be completed under MIFRS (2014 if changes to MIFRS are material). | Y16: 2014
A17: Already rebased with depreciation policy changes in a prior rate application | C17: This appendix must be completed for 2014 to 2018. The appendix for 2014 is to be completed under Revised CGAAP (after changes in depreciation policies). The appendix for 2014 to 2018 is to be completed under MIFRS (2014 if changes to MIFRS are material). | R17: 2014 | S17: MIFRS | Y17: 2015
Y18: 2016
Y19: 2017
A20: 2014 | C20: Book Values | J20: Service Lives | N20: Depreciation Expense | Y20: 2018
A21: Account | B21: Description | C21: Opening Net Book Value of Existing Assets as at Date of Policy Change (Jan. 1) 1 | D21: Less Fully Depreciated 7 | E21: Net Amount of Existing Assets Before Policy Change to be Depreciated | F21: Opening Gross Book Value of Assets Acquired After Policy Change 2 | G21: Less Fully Depreciated 8 | H21: Net Amount of Assets Acquired After Policy Change to be Depreciated | I21: Current Year Additions | J21: Average Remaining Life of Assets Existing Before Policy Change 3 | K21: Depreciation Rate Assets Acquired After Policy Change | L21: Life of Assets Acquired After Policy Change 4 | M21: Depreciation Rate on New Additions | N21: Depreciation Expense on Assets Existing Before Policy Change | O21: Depreciation Expense on Assets Acquired After Policy Change | P21: Depreciation Expense on Current Year Additions 5 | Q21: Total Current Year Depreciation Expense | R21: Depreciation Expense per Appendix 2-BA Fixed Assets, Column J | S21: Variance 6
C22: a | D22: b | E22: c = a-b | F22: d | G22: e | H22: f = d- e | I22: g | J22: h | K22: i = 1/h | L22: j | M22: k = 1/j | N22: l = c/h | O22: m = f/j | P22: n = g*0.5/j | Q22: o = l+m+n | R22: p | S22: q = p-o
A23: 1611 | B23: Computer Software (Formally known as Account 1925) | C23: 928634 | D23: 484030 | E23: =C23-D23 -> 444604 | F23: 437818 | H23: =F23-G23 -> 437818 | I23: 288888 | J23: 2.25 | K23: =IF(J23=0,0,1/J23) -> 0.4444444444 | L23: 5 | M23: =IF(L23=0,0,1/L23) -> 0.2 | N23: =IF(J23=0,0,+E23/J23) -> 197601.7778 | O23: =IF(L23=0,0,+H23/L23) -> 87563.6 | P23: =IF(L23=0,0,+(I23*0.5)/L23) -> 28888.8 | Q23: =IF(ISERROR(+N23+O23+P23), 0, +N23+O23+P23) -> 314054.1778 | R23: 331208.53 | S23: =IF(ISERROR(+R23-122), 0, +R23-Q23) -> 17154.35222
A24: 1611 | B24: Computer Software (Formally known as Account 1925) | E24: =C24-D24 -> 0 | G24: 0 | H24: =F24-G24 -> 0 | I24: 88614 | J24: 0 | K24: =IF(J24=0,0,1/J24) -> 0 | L24: 3 | M24: =IF(L24=0,0,1/L24) -> 0.3333333333 | N24: =IF(J24=0,0,+E24/J24) -> 0 | O24: =IF(L24=0,0,+H24/L24) -> 0 | P24: =IF(L24=0,0,+(I24*0.5)/L24) -> 14769 | Q24: =IF(ISERROR(+N24+O24+P24), 0, +N24+O24+P24) -> 14769 | R24: 86741 | S24: =IF(ISERROR(+R24-122), 0, +R24-Q24) -> 71972
A25: 1611 | B25: Computer Software (Formally known as Account 1925) - Smart Meters | C25: 0 | E25: 0 | F25: 591890 | G25: 518014 | H25: 73876 | I25: 6791 | J25: 0 | K25: 0 | L25: 3 | M25: 0.3333333333 | N25: 0 | O25: =IF(L25=0,0,+H25/L25) -> 24625.33333 | P25: 1131.833333 | Q25: 25757.16667 | R25: 25444.82 | S25: -312.3466667
A26: 1612 | B26: Land Rights (Formally known as Account 1906) | C26: 12881 | E26: 12881 | H26: 0 | J26: 4.855258198 | K26: 0.20596227 | L26: 50 | M26: 0.02 | N26: 2653 | O26: 0 | P26: 0 | Q26: 2653 | R26: 2653 | S26: 0
A27: 1805 | B27: Land | C27: 2339958 | E27: 2339958 | H27: 0 | J27: 0 | K27: 0 | M27: 0 | N27: 0 | O27: 0 | P27: 0 | Q27: 0 | S27: 0
A28: 1808 | B28: Buildings - Structure | C28: 7099490 | E28: 7099490 | F28: 585080 | H28: 585080 | I28: 0 | J28: 38.0813863 | K28: 0.02625954822 | L28: 50 | M28: 0.02 | N28: 186429.4 | O28: 11701.6 | P28: 0 | Q28: 198131 | R28: 198131 | S28: 0
A29: 1808 | B29: Buildings - Roof | C29: 144989 | D29: 34742 | E29: 110247 | F29: 0 | H29: 0 | I29: 0 | J29: 11.43842387 | K29: 0.08742463221 | L29: 20 | M29: 0.05 | N29: 9638.303428 | O29: 0 | P29: 0 | Q29: 9638.303428 | R29: 12675.61 | S29: 3037.306572
A30: 1810 | B30: Leasehold Improvements | E30: 0 | H30: 0 | K30: 0 | M30: 0 | N30: 0 | O30: 0 | P30: 0 | Q30: 0 | S30: 0
A31: 1815 | B31: Transformer Station Equipment >50 kV 50 yrs | C31: 15658085 | D31: 12312 | E31: 15645773 | F31: 1531177 | H31: 1531177 | I31: 423640 | J31: 41.16316677 | K31: 0.02429356336 | L31: 50 | M31: 0.02 | N31: 380091.5776 | O31: 30623.54 | P31: 4236.4 | Q31: 414951.5176 | R31: 415250.62 | S31: 299.1023521
A32: 1815 | B32: Transformer Station Equipment >50 kV 40 yrs | C32: 24475179 | E32: 24475179 | F32: 1080100 | H32: 1080100 | I32: 164079 | J32: 28.75801659 | K32: 0.03477291269 | L32: 40 | M32: 0.025 | N32: 851073.2625 | O32: 27002.5 | P32: 2050.9875 | Q32: 880126.75 | R32: 880126.75 | S32: 0
A33: 1815 | B33: Transformer Station Equipment >50 kV 30 yrs | E33: 0 | H33: 0 | K33: 0 | M33: 0 | N33: 0 | O33: 0 | P33: 0 | Q33: 0 | S33: 0
A34: 1815 | B34: Transformer Station Equipment >50 kV 25 yrs | C34: 887028 | D34: 25692 | E34: 861336 | F34: 0 | H34: 0 | I34: 0 | J34: 12.07200349 | K34: 0.08283629153 | L34: 25 | M34: 0.04 | N34: 71349.88 | O34: 0 | P34: 0 | Q34: 71349.88 | R34: 73478.11 | S34: 2128.230002
A35: 1815 | B35: Transformer Station Equipment >50 kV 20 yrs | C35: 392015 | D35: 45826 | E35: 346189 | F35: 23880 | H35: 23880 | I35: -389 | J35: 9.764080692 | K35: 0.1024161958 | L35: 20 | M35: 0.05 | N35: 35455.36041 | O35: 1194 | P35: -9.725 | Q35: 36639.63541 | R35: 41332.96 | S35: 4693.324589
A36: 1815 | B36: Transformer Station Equipment >50 kV 15 yrs | C36: 1087574 | E36: 1087574 | F36: 367520 | H36: 367520 | I36: 505667 | J36: 8.478937647 | K36: 0.1179393034 | L36: 15 | M36: 0.06666666667 | N36: 128267.72 | O36: 24501.33333 | P36: 16855.56667 | Q36: 169624.62 | R36: 169624.62 | S36: 0
A37: 1820 | B37: Distribution Station Equipment <50 kV 50 yrs | C37: 200427 | E37: 200427 | F37: 0 | H37: 0 | I37: 0 | J37: 22.74196678 | K37: 0.0439715707 | L37: 50 | M37: 0.02 | N37: 8813.09 | O37: 0 | P37: 0 | Q37: 8813.09 | R37: 8813.09 | S37: 0
A38: 1820 | B38: Distribution Station Equipment <50 kV 40 yrs | C38: 649832 | E38: =C38-D38 -> 649832 | F38: 0 | H38: =F38-G38 -> 0 | I38: 0 | J38: 25.47430722 | K38: =IF(J38=0,0,1/J38) -> 0.03925523828 | L38: 40 | M38: =IF(L38=0,0,1/L38) -> 0.025 | N38: =IF(J38=0,0,+E38/J38) -> 25509.31 | O38: =IF(L38=0,0,+H38/L38) -> 0 | P38: =IF(L38=0,0,+(I38*0.5)/L38) -> 0 | Q38: =IF(ISERROR(+N38+O38+P38), 0, +N38+O38+P38) -> 25509.31 | R38: 25509.31 | S38: =IF(ISERROR(+R38-122), 0, +R38-Q38) -> 0
A39: 1820 | B39: Distribution Station Equipment <50 kV 25 yrs | C39: 13287 | E39: 13287 | F39: 0 | H39: 0 | I39: 0 | J39: 5.926193535 | K39: 0.1687423798 | L39: 25 | M39: 0.04 | N39: 2242.08 | O39: 0 | P39: 0 | Q39: 2242.08 | R39: 2242.08 | S39: 0
A40: 1820 | B40: Distribution Station Equipment <50 kV 20 yrs | C40: 6078 | D40: 6078 | E40: 0 | F40: 0 | H40: 0 | I40: 0 | J40: 5.661748267 | K40: 0.1766238894 | L40: 20 | M40: 0.05 | N40: 0 | O40: 0 | P40: 0 | Q40: 0 | R40: 1073.52 | S40: 1073.52
A41: 1820 | B41: Distribution Station Equipment <50 kV 15 hrs | C41: 17551 | D41: 17551 | E41: 0 | F41: 144060 | H41: 144060 | I41: 9576 | J41: 9.64266485 | K41: 0.1037057718 | L41: 15 | M41: 0.06666666667 | N41: 0 | O41: 9604 | P41: 319.2 | Q41: 9923.2 | R41: 11743.34 | S41: 1820.14
A42: 1825 | B42: Storage Battery Equipment | E42: 0 | H42: 0 | J42: 0 | K42: 0 | M42: 0 | N42: 0 | O42: 0 | P42: 0 | Q42: 0 | S42: 0
A43: 1830 | B43: Poles, Towers & Fixtures | C43: 17028402 | E43: 17028402 | F43: 4831550 | H43: 4831550 | I43: 2044655 | J43: 32.16 | K43: 0.03109452736 | L43: 40 | M43: 0.025 | N43: 529490.1119 | O43: 120788.75 | P43: 25558.1875 | Q43: 675837.0494 | R43: 681835.19 | S43: 5998.14056
A44: 1835 | B44: Overhead Conductors | C44: 14319062 | E44: 14319062 | F44: 3391666 | H44: 3391666 | I44: 1108823 | J44: 51.16127779 | K44: 0.01954603253 | L44: 60 | M44: 0.01666666667 | N44: 279880.8517 | O44: 56527.76667 | P44: 9240.191667 | Q44: 345648.81 | R44: 345648.81 | S44: 0
A45: 1835 | B45: Overhead Devices | C45: 1591007 | E45: 1591007 | F45: 419494 | H45: 419494 | I45: 129915 | J45: 30.5664788 | K45: 0.0327155773 | L45: 40 | M45: 0.025 | N45: 52050.7125 | O45: 10487.35 | P45: 1623.9375 | Q45: 64162 | R45: 64162 | S45: 0
A46: 1835 | B46: Voltage Regulators | C46: 163109 | E46: 163109 | F46: 0 | H46: 0 | I46: 0 | J46: 19.99995095 | K46: 0.05000012262 | L46: 30 | M46: 0.03333333333 | N46: 8155.47 | O46: 0 | P46: 0 | Q46: 8155.47 | R46: 8155.47 | S46: 0
A47: 1835 | B47: Capacitor Banks | C47: 618096 | E47: 618096 | F47: 4080 | H47: 4080 | I47: 89387 | J47: 19.79572575 | K47: 0.05051595545 | L47: 25 | M47: 0.04 | N47: 31223.71 | O47: 163.2 | P47: 1787.74 | Q47: 33174.65 | R47: 33174.65 | S47: 0
A48: 1840 | B48: Underground Conduit | C48: 12527558 | E48: 12527558 | F48: 4604937 | H48: 4604937 | I48: 3084780 | J48: 51.70374557 | K48: 0.01934095855 | L48: 60 | M48: 0.01666666667 | N48: 242294.98 | O48: 76748.95 | P48: 25706.5 | Q48: 344750.43 | R48: 344750.43 | S48: 0
A49: 1845 | B49: Underground Conductors & Devices - PILC | C49: 414000 | E49: 414000 | F49: 465861 | H49: 465861 | I49: 0 | J49: 58.00025218 | K49: 0.01724130435 | L49: 60 | M49: 0.01666666667 | N49: 7137.9 | O49: 7764.35 | P49: 0 | Q49: 14902.25 | R49: 14902.25 | S49: 0
A50: 1845 | B50: Underground Cables | C50: 15726653 | E50: 15726653 | F50: 3513152 | H50: 3513152 | I50: 2778593 | J50: 28.66494171 | K50: 0.03488582011 | L50: 40 | M50: 0.025 | N50: 548637.1875 | O50: 87828.8 | P50: 34732.4125 | Q50: 671198.4 | R50: 671198.4 | S50: 0
A51: 1845 | B51: Underground Devices | C51: 1747406 | E51: 1747406 | F51: 451452 | H51: 451452 | I51: 317137 | J51: 28.66492472 | K51: 0.03488584078 | L51: 40 | M51: 0.025 | N51: 60959.7275 | O51: 11286.3 | P51: 3964.2125 | Q51: 76210.24 | R51: 76210.24 | S51: =ROUND((IF(ISERROR(+R51-122), 0, +R51-Q51)),0) -> 0
A52: 1850 | B52: Line Transformers - Overhead | C52: 15713833 | D52: 307197 | E52: 15406636 | F52: 1548214 | H52: 1548214 | I52: 825759 | J52: 27.98435547 | K52: 0.03573425163 | L52: 40 | M52: 0.025 | N52: 550544.6076 | O52: 38705.35 | P52: 10321.9875 | Q52: 599571.9451 | R52: 610549.4 | S52: 10977.4549
A53: 1850 | B53: Line Transformers - Network | C53: 5503 | E53: 5503 | F53: 202577 | H53: 202577 | I53: 99626 | J53: 9.378941269 | K53: 0.1066218426 | L53: 40 | M53: 0.025 | N53: 586.74 | O53: 5064.425 | P53: 1245.325 | Q53: 6896.49 | R53: 6896.49 | S53: 0
A54: 1850 | B54: Line Transformers - Vault | C54: 0 | E54: 0 | F54: 5849 | H54: 5849 | I54: 0 | J54: 0 | K54: 0 | L54: 60 | M54: 0.01666666667 | N54: 0 | O54: 97.48333333 | P54: 0 | Q54: 97.48333333 | R54: 97.43 | S54: =ROUND((IF(ISERROR(+R54-122), 0, +R54-Q54)),0) -> 0
A55: 1850 | B55: Line Transformers - Roof | C55: 497948 | E55: 497948 | F55: 0 | H55: 0 | I55: 0 | J55: 23.84196394 | K55: 0.04194285347 | L55: 30 | M55: 0.03333333333 | N55: 20885.36 | O55: 0 | P55: 0 | Q55: 20885.36 | R55: 20885.36 | S55: 0
A56: 1850 | B56: Line Transformers -Network Protectors | C56: 91592 | E56: 91592 | F56: 234492 | H56: 234492 | I56: 81112 | J56: 39.5 | K56: 0.0253164557 | L56: 40 | M56: 0.025 | N56: 2318.78481 | O56: 5862.3 | P56: 1013.9 | Q56: 9194.98481 | R56: 9128.54 | S56: -66.44481013
A57: 1850 | B57: Line Transformers - Padmount | C57: 3991872 | E57: 3991872 | F57: 1590190 | H57: 1590190 | I57: 551107 | J57: 36.76889683 | K57: 0.02719689973 | L57: 40 | M57: 0.025 | N57: 108566.5425 | O57: 39754.75 | P57: 6888.8375 | Q57: 155210.13 | R57: 41687.13 | S57: -113523
A58: 1850 | B58: Line Transformers - Submersible | C58: 3195923 | E58: 3195923 | F58: 1117616 | H58: 1117616 | I58: 705781 | J58: 24.08939976 | K58: 0.04151203476 | L58: 30 | M58: 0.03333333333 | N58: 132669.2667 | O58: 37253.86667 | P58: 11763.01667 | Q58: 181686.15 | R58: 54134.15 | S58: -127552
A59: 1850 | B59: Line Transformers - Foundation | C59: 1427416 | E59: 1427416 | F59: 580905 | H59: 580905 | I59: 66370 | J59: 58.08298984 | K59: 0.01721674457 | L59: 60 | M59: 0.01666666667 | N59: 24575.45667 | O59: 9681.75 | P59: 553.0833333 | Q59: 34810.29 | R59: 10839.29 | S59: -23971
A60: 1855 | B60: Services - Overhead | C60: 1887728 | E60: 1887728 | F60: 1009574 | H60: 1009574 | I60: 213550 | J60: 52.19901604 | K60: 0.01915744924 | L60: 60 | M60: 0.01666666667 | N60: 36164.05333 | O60: 16826.23333 | P60: 1779.583333 | Q60: 54769.87 | R60: 54769.87 | S60: 0
A61: 1855 | B61: Services - Underground | C61: 22543287 | E61: 22543287 | F61: 4063210 | H61: 4063210 | I61: 1801118 | J61: 31.40005779 | K61: 0.03184707514 | L61: 40 | M61: 0.025 | N61: 717937.755 | O61: 101580.25 | P61: 22513.975 | Q61: 842031.98 | R61: 842031.98 | S61: 0
A62: 1860 | B62: Commercial Meters | C62: 1327802 | D62: 158636 | E62: 1169166 | F62: 583615.48 | H62: 583615.48 | I62: 311805 | J62: 20.97060997 | K62: 0.04768578508 | L62: 25 | M62: 0.04 | N62: 55752.5986 | O62: 23344.6192 | P62: 6236.1 | Q62: 85333.3178 | R62: 92898 | S62: 7564.682202
A63: 1860 | B63: Smart Meters - Non-Qualifying | C63: 108222 | E63: 108222 | F63: 0 | H63: 0 | I63: 240153 | J63: 12.00079841 | K63: 0.08332778917 | L63: 15 | M63: 0.06666666667 | N63: 9017.9 | O63: 0 | P63: 8005.1 | Q63: 17023 | R63: 17023 | S63: 0
A64: 1860 | B64: Meters - Renewable Connection | E64: 0 | F64: 0 | H64: 0 | I64: 154427 | J64: 0 | K64: 0 | L64: 15 | M64: 0.06666666667 | N64: 0 | O64: 0 | P64: 5147.566667 | Q64: 5147.566667 | R64: 32983 | S64: 27835.43333
A65: 1860 | B65: Smart Meters | E65: 0 | H65: 0 | J65: 0 | K65: 0 | L65: 15 | M65: 0.06666666667 | N65: 0 | O65: 0 | P65: 0 | Q65: 0 | S65: 0
A66: 1860 | B66: Smart Meters | C66: 0 | E66: 0 | F66: 12361937 | H66: 12361937 | I66: 132171 | J66: 0 | K66: 0 | L66: 15 | M66: 0.06666666667 | N66: 0 | O66: 824129.1333 | P66: 4405.7 | Q66: 828534.8333 | R66: 828535.17 | S66: =ROUND((IF(ISERROR(+R66-122), 0, +R66-Q66)),0) -> 0
A67: 1905 | B67: Land | C67: 1395300 | E67: 1395300 | F67: 0 | H67: 0 | I67: 0 | J67: 0 | K67: 0 | M67: 0 | N67: 0 | O67: 0 | P67: 0 | Q67: 0 | R67: 0 | S67: 0
A68: 1908 | B68: Buildings & Fixtures - Building | C68: 5262681 | E68: 5262681 | F68: 4795255 | H68: 4795255 | I68: 82660 | J68: 28.70662149 | K68: 0.03483516861 | L68: 50 | M68: 0.02 | N68: 183326.38 | O68: 95905.1 | P68: 826.6 | Q68: 280058.08 | R68: 280058.08 | S68: =ROUND((IF(ISERROR(+R68-122), 0, +R68-Q68)),0) -> 0
A69: 1908 | B69: Buildings & Fixtures - Roof | C69: 1567291 | E69: =C69-D69 -> 1567291 | F69: 1504780 | H69: =F69-G69 -> 1504780 | I69: 724628 | J69: 6.525168819 | K69: =IF(J69=0,0,1/J69) -> 0.1532527399 | L69: 20 | M69: =IF(L69=0,0,1/L69) -> 0.05 | N69: =IF(J69=0,0,+E69/J69) -> 240191.64 | O69: =IF(L69=0,0,+H69/L69) -> 75239 | P69: =IF(L69=0,0,+(I69*0.5)/L69) -> 18115.7 | Q69: =IF(ISERROR(+N69+O69+P69), 0, +N69+O69+P69) -> 333546.34 | R69: 333546.34 | S69: =IF(ISERROR(+R69-122), 0, +R69-Q69) -> 0
A70: 1910 | B70: Leasehold Improvements | C70: 0 | E70: 0 | F70: 0 | H70: 0 | I70: 0 | J70: 0 | K70: 0 | M70: 0 | N70: 0 | O70: 0 | P70: 0 | Q70: 0 | R70: 0 | S70: 0
A71: 1915 | B71: Office Furniture & Equipment (10 years) | C71: 340212 | D71: 54324 | E71: 285888 | F71: 187702 | H71: 187702 | I71: 57713 | J71: 5.1 | K71: 0.1960784314 | L71: 10 | M71: 0.1 | N71: 56056.47059 | O71: 18770.2 | P71: 2885.65 | Q71: 77712.32059 | R71: 70927.94 | S71: -6784.380588
A72: 1915 | B72: Office Furniture & Equipment (5 years) | E72: 0 | H72: 0 | J72: 0 | K72: 0 | L72: 5 | M72: 0.2 | N72: 0 | O72: 0 | P72: 0 | Q72: 0 | S72: 0
A73: 1920 | B73: Computer Equipment - Hardware | C73: 350464 | E73: 350464 | F73: 123375 | H73: 123375 | I73: 175363 | J73: 2.122024781 | K73: 0.4712480312 | L73: 5 | M73: 0.2 | N73: 165155.47 | O73: 24675 | P73: 17536.3 | Q73: 207366.77 | R73: 207366.77 | S73: 0
A74: 1920 | B74: Computer Equip.-Hardware - Smart Meters | C74: 0 | E74: 0 | F74: 569286 | G74: 437864 | H74: 131422 | I74: 0 | J74: 0 | K74: 0 | L74: 5 | M74: 0.2 | N74: 0 | O74: 26284.4 | P74: 0 | Q74: 26284.4 | R74: 22126.08 | S74: -4158.32
A75: 1920 | B75: Computer Equip.-Hardware(Post Mar. 19/07) | C75: 0 | E75: 0 | F75: 0 | H75: 0 | I75: 0 | J75: 0 | K75: 0 | M75: 0 | N75: 0 | O75: 0 | P75: 0 | Q75: 0 | R75: 0 | S75: 0
A76: 1930 | B76: Transportation Equipment | C76: 2781086 | E76: 2781086 | F76: 2066571 | H76: 2066571 | I76: 767172 | J76: 7.192059279 | K76: 0.1390422355 | L76: 11 | M76: 0.09090909091 | N76: 386688.4145 | O76: 187870.0909 | P76: 34871.45455 | Q76: 609429.96 | R76: 609429.96 | S76: 0
A77: 1935 | B77: Stores Equipment | C77: 21484 | E77: 21484 | F77: 0 | H77: 0 | I77: 0 | J77: 4.547908204 | K77: 0.219881307 | L77: 10 | M77: 0.1 | N77: 4723.93 | O77: 0 | P77: 0 | Q77: 4723.93 | R77: 4723.93 | S77: 0
A78: 1940 | B78: Tools, Shop & Garage Equipment | C78: 324953 | E78: 324953 | F78: 140421 | H78: 140421 | I78: 76230 | J78: 6.697268335 | K78: 0.1493146086 | L78: 10 | M78: 0.1 | N78: 48520.23 | O78: 14042.1 | P78: 3811.5 | Q78: 66373.83 | R78: 66373.83 | S78: 0
A79: 1940 | B79: Tools - Smart Meters | C79: 0 | E79: 0 | F79: 0 | H79: 0 | I79: 0 | J79: 0 | K79: 0 | L79: 10 | M79: 0.1 | N79: 0 | O79: 0 | P79: 0 | Q79: 0 | R79: 372.6 | S79: 372.6
A80: 1945 | B80: Measurement & Testing Equipment | C80: 163014 | E80: 163014 | F80: 105845 | H80: 105845 | I80: 56975 | J80: 7.765222697 | K80: 0.1287793073 | L80: 10 | M80: 0.1 | N80: 20992.83 | O80: 10584.5 | P80: 2848.75 | Q80: 34426.08 | R80: 34426.08 | S80: 0
A81: 1950 | B81: Power Operated Equipment | C81: 306812 | E81: 306812 | F81: 54068 | H81: 54068 | I81: 94765 | J81: 6.773310492 | K81: 0.1476382932 | L81: 10 | M81: 0.1 | N81: 45297.2 | O81: 5406.8 | P81: 4738.25 | Q81: 55442.25 | R81: 55442.25 | S81: 0
A82: 1955 | B82: Communications Equipment | C82: 58880 | E82: 58880 | F82: 1251 | H82: 1251 | I82: 31176 | J82: 6.756090005 | K82: 0.148014606 | L82: 10 | M82: 0.1 | N82: 8715.1 | O82: 125.1 | P82: 1558.8 | Q82: 10399 | R82: 10399 | S82: 0
A83: 1955 | B83: Communication Equipment (Smart Meters) | C83: 0 | E83: 0 | F83: 696896 | H83: 696896 | I83: 0 | J83: 0 | K83: 0 | L83: 10 | M83: 0.1 | N83: 0 | O83: 69689.6 | P83: 0 | Q83: 69689.6 | R83: 69689.88 | S83: 0.28
A84: 1960 | B84: Miscellaneous Equipment | C84: 40970 | E84: 40970 | F84: 10150 | H84: 10150 | I84: 0 | J84: 3.605450857 | K84: 0.2773578228 | L84: 5 | M84: 0.2 | N84: 11363.35 | O84: 2030 | P84: 0 | Q84: 13393.35 | R84: 13393.35 | S84: 0
A85: 1975 | B85: Load Management Controls Utility Premises | C85: 0 | E85: 0 | F85: 0 | H85: 0 | I85: 0 | J85: 0 | K85: 0 | M85: 0 | N85: 0 | O85: 0 | P85: 0 | Q85: 0 | R85: 0 | S85: 0
A86: 1980 | B86: System Supervisor Equipment | C86: 115075 | D86: 91860 | E86: 23215 | F86: 0 | H86: 0 | I86: 0 | J86: 6.15 | K86: 0.162601626 | L86: 10 | M86: 0.1 | N86: 3774.796748 | O86: 0 | P86: 0 | Q86: 3774.796748 | R86: 4059.36 | S86: 284.563252
A87: 1985 | B87: Miscellaneous Fixed Assets | E87: 0 | H87: 0 | I87: 0 | J87: 0 | K87: 0 | M87: 0 | N87: 0 | O87: 0 | P87: 0 | Q87: 0 | S87: 0
A88: 1995 | B88: Contributions & Grants | E88: 0 | H88: 0 | J88: 0 | K88: 0 | M88: 0 | N88: 0 | O88: 0 | P88: 0 | Q88: 0 | S88: 0
A89: 1995 | B89: Contributed Capital - Poles, Towers & Fixtures | C89: -1626853 | E89: -1626853 | F89: -1146161 | H89: -1146161 | I89: 0 | J89: 34.5 | K89: 0.02898550725 | L89: 40 | M89: 0.025 | N89: -47155.15942 | O89: -28654.025 | P89: 0 | Q89: -75809.18442 | R89: -75299.07172 | S89: 510.1127001
A90: 1995 | B90: Contributed Capital - Overhead Conductors | C90: -1246129 | E90: -1246129 | F90: -969094.78 | H90: -969094.78 | I90: 0 | J90: 54.54850602 | K90: 0.01833230776 | L90: 60 | M90: 0.01666666667 | N90: -22844.42033 | O90: -16151.57967 | P90: 0 | Q90: -38996 | R90: -38996 | S90: 0
A91: 1995 | B91: Contributed Capital - Overhead Devices | C91: -138459 | E91: -138459 | F91: -109089 | H91: -109089 | I91: 0 | J91: 34.39470281 | K91: 0.02907424453 | L91: 40 | M91: 0.025 | N91: -4025.590823 | O91: -2727.225 | P91: 0 | Q91: -6752.815823 | R91: -6752.815823 | S91: 0
A92: 1995 | B92: Contributed Capital - Overhead Services | C92: -1195490.13 | E92: -1195490.13 | F92: -119872 | H92: -119872 | I92: 0 | J92: 40.18436209 | K92: 0.02488530234 | L92: 60 | M92: 0.01666666667 | N92: -29750.13333 | O92: -1997.866667 | P92: 0 | Q92: -31748 | R92: -31748 | S92: =ROUND((IF(ISERROR(+R92-122), 0, +R92-Q92)),0) -> 0
A93: 1995 | B93: Contributed Capital - Underground Trenching & Ductwork | C93: -5566404 | E93: -5566404 | F93: -2609506 | H93: -2609506 | I93: 0 | J93: 54.01576459 | K93: 0.01851311386 | L93: 60 | M93: 0.01666666667 | N93: -103051.471 | O93: -43491.76667 | P93: 0 | Q93: -146543.2377 | R93: -146543.2377 | S93: 0
A94: 1995 | B94: Contributed Capital - Underground Cables | C94: -2292136 | E94: -2292136 | F94: -2370201 | H94: -2370201 | I94: 0 | J94: 30.81386995 | K94: 0.03245291817 | L94: 40 | M94: 0.025 | N94: -74386.50205 | O94: -59255.025 | P94: 0 | Q94: -133641.527 | R94: -133641.527 | S94: 0
A95: 1995 | B95: Contributed Capital - Underground Devices | C95: -254682 | E95: -254682 | F95: -167703 | H95: -167703 | I95: 0 | J95: 0 | K95: 0 | L95: 40 | M95: 0.025 | N95: 0 | O95: -4192.575 | P95: 0 | Q95: -4192.575 | R95: -4192.575 | S95: 0
A96: 1995 | B96: Contributed Capital - Overhead Transformer | C96: -2734282 | E96: -2734282 | F96: 169874 | H96: 169874 | I96: 0 | J96: 34.03023584 | K96: 0.02938563238 | L96: 40 | M96: 0.025 | N96: -80348.60567 | O96: 4246.85 | P96: 0 | Q96: -76101.75567 | R96: -76101.75567 | S96: =ROUND((IF(ISERROR(+R96-122), 0, +R96-Q96)),0) -> 0
A97: 1995 | B97: Contributed Capital - Underground Padmount Transformer | C97: -1858357 | E97: -1858357 | F97: -7920 | H97: -7920 | I97: 0 | J97: 32.33459146 | K97: 0.03092663166 | L97: 40 | M97: 0.025 | N97: -57472.72244 | O97: -198 | P97: 0 | Q97: -57670.72244 | R97: -57670.72244 | S97: =ROUND((IF(ISERROR(+R97-122), 0, +R97-Q97)),0) -> 0
A98: 1995 | B98: Contributed Capital -Underground Submersible Transformer | C98: -1955810 | E98: -1955810 | F98: -675874 | H98: -675874 | I98: 0 | J98: 25.18784879 | K98: 0.03970168347 | L98: 30 | M98: 0.03333333333 | N98: -77648.94954 | O98: -22529.13333 | P98: 0 | Q98: -100178.0829 | R98: -100178.0829 | S98: 0
A99: 1995 | B99: Contributed Capital - Underground Services | C99: -13453846 | E99: -13453846 | F99: -953639 | H99: -953639 | I99: 0 | J99: 33.74185021 | K99: 0.02963678618 | L99: 40 | M99: 0.025 | N99: -398728.7572 | O99: -23840.975 | P99: 0 | Q99: -422569.7322 | R99: -422569.7322 | S99: 0
A100: 1995 | B100: Contributed Capital - Transformer Foundations | C100: -798352 | E100: -798352 | F100: -558073 | H100: -558073 | I100: 0 | J100: 54.11468146 | K100: 0.01847927352 | L100: 60 | M100: 0.01666666667 | N100: -14752.96497 | O100: -9301.216667 | P100: 0 | Q100: -24054.18164 | R100: -24054.18164 | S100: 0
A101: 1995 | B101: Contributed Capital - Meters | C101: -166183 | E101: -166183 | F101: -132547 | H101: -132547 | I101: 0 | J101: 6.154242121 | K101: 0.1624895447 | L101: 15 | M101: 0.06666666667 | N101: -27003 | O101: -8836.466667 | P101: 0 | Q101: -35839.46667 | R101: -35839.46667 | S101: 0
B102: Contributed Capital - Meters SOLAR | C102: 0 | E102: 0 | F102: -152011 | H102: -152011 | I102: 0 | J102: 0 | K102: 0 | L102: 15 | M102: 0.06666666667 | N102: 0 | O102: -10134.06667 | P102: 0 | Q102: -10134.06667 | R102: -10134.06667 | S102: 0
A103: 1995 | B103: Contributed Capital - OEB Clearing | C103: 68538 | E103: 68538 | F103: 259328 | H103: 259328 | I103: 0 | J103: -10.00038909 | K103: -0.09999610921 | L103: 15 | M103: 0.06666666667 | N103: -6853.533333 | O103: 17288.53333 | P103: 0 | Q103: 10435 | R103: 10435 | S103: 0
A104: 2440 | B104: Deferred Revenue | E104: 0 | H104: 0 | J104: 0 | K104: 0 | M104: 0 | N104: 0 | O104: 0 | P104: 0 | Q104: 0 | S104: 0
A105: 2440 | B105: Contributed Capital - Poles, Towers & Fixtures | C105: 0 | E105: 0 | H105: 0 | I105: -480870 | J105: 0 | K105: 0 | L105: 40 | M105: 0.025 | N105: 0 | O105: 0 | P105: -6010.875 | Q105: -6010.875 | R105: -6010.87 | S105: =ROUND((IF(ISERROR(+R105-122), 0, +R105-Q105)),0) -> 0
A106: 2440 | B106: Contributed Capital - Overhead Conductors | C106: 0 | E106: 0 | H106: 0 | I106: -311681 | J106: 0 | K106: 0 | L106: 60 | M106: 0.01666666667 | N106: 0 | O106: 0 | P106: -2597.341667 | Q106: -2597.341667 | R106: -2597.34 | S106: 0
A107: 2440 | B107: Contributed Capital - Overhead Devices | C107: 0 | E107: 0 | H107: 0 | I107: -34631 | J107: 0 | K107: 0 | L107: 40 | M107: 0.025 | N107: 0 | O107: 0 | P107: -432.8875 | Q107: -432.8875 | R107: -432.89 | S107: 0
A108: 2440 | B108: Contributed Capital - Overhead Services | C108: 0 | E108: 0 | H108: 0 | I108: -26848 | J108: 0 | K108: 0 | L108: 60 | M108: 0.01666666667 | N108: 0 | O108: 0 | P108: -223.7333333 | Q108: -223.7333333 | R108: -223.73 | S108: 0
A109: 2440 | B109: Contributed Capital - Underground Trenching & Ductwork | C109: 0 | E109: 0 | H109: 0 | I109: -1815028 | J109: 0 | K109: 0 | L109: 60 | M109: 0.01666666667 | N109: 0 | O109: 0 | P109: -15125.23333 | Q109: -15125.23333 | R109: -15125.23 | S109: 0
A110: 2440 | B110: Contributed Capital - Underground Cables | C110: 0 | E110: 0 | H110: 0 | I110: -1714066 | J110: 0 | K110: 0 | L110: 40 | M110: 0.025 | N110: 0 | O110: 0 | P110: -21425.825 | Q110: -21425.825 | R110: -21425.82 | S110: 0
A111: 2440 | B111: Contributed Capital - Underground Devices | C111: 0 | E111: 0 | H111: 0 | I111: -190357 | J111: 0 | K111: 0 | L111: 40 | M111: 0.025 | N111: 0 | O111: 0 | P111: -2379.4625 | Q111: -2379.4625 | R111: -2379.46 | S111: 0
A112: 2440 | B112: Contributed Capital - Overhead Transformer | C112: 0 | E112: 0 | H112: 0 | I112: -24194 | J112: 0 | K112: 0 | L112: 40 | M112: 0.025 | N112: 0 | O112: 0 | P112: -302.425 | Q112: -302.425 | R112: -302.43 | S112: 0
A113: 2440 | B113: Contributed Capital - Underground Padmount Transformer | C113: 0 | E113: 0 | H113: 0 | I113: -50168 | J113: 0 | K113: 0 | L113: 40 | M113: 0.025 | N113: 0 | O113: 0 | P113: -627.1 | Q113: -627.1 | R113: -627.1 | S113: 0
A114: 2440 | B114: Contributed Capital -Underground Submersible Transformer | C114: 0 | E114: 0 | H114: 0 | I114: -328568 | J114: 0 | K114: 0 | L114: 30 | M114: 0.03333333333 | N114: 0 | O114: 0 | P114: -5476.133333 | Q114: -5476.133333 | R114: -5476.14 | S114: =ROUND((IF(ISERROR(+R114-122), 0, +R114-Q114)),0) -> 0
A115: 2440 | B115: Contributed Capital - Underground Services | C115: 0 | E115: 0 | H115: 0 | I115: -1019308 | J115: 0 | K115: 0 | L115: 40 | M115: 0.025 | N115: 0 | O115: 0 | P115: -12741.35 | Q115: -12741.35 | R115: -12741.35 | S115: 0
A116: 2440 | B116: Contributed Capital - Transformer Foundations | C116: 0 | E116: 0 | H116: 0 | I116: -119509 | J116: 0 | K116: 0 | L116: 60 | M116: 0.01666666667 | N116: 0 | O116: 0 | P116: -995.9083333 | Q116: -995.9083333 | R116: -996 | S116: =ROUND((IF(ISERROR(+R116-122), 0, +R116-Q116)),0) -> 0
A117: 2440 | B117: Contributed Capital - Meters | C117: 0 | E117: 0 | H117: 0 | I117: -44356 | J117: 0 | K117: 0 | L117: 15 | M117: 0.06666666667 | N117: 0 | O117: 0 | P117: -1478.533333 | Q117: -1478.533333 | R117: -1478.53 | S117: =ROUND((IF(ISERROR(+R117-122), 0, +R117-Q117)),0) -> 0
A118: 2440 | B118: Contributed Capital - Meters Solar | C118: 0 | E118: 0 | H118: 0 | I118: -152348 | J118: 0 | K118: 0 | L118: 15 | M118: 0.06666666667 | N118: 0 | O118: 0 | P118: -5078.266667 | Q118: -5078.266667 | R118: -5078.26 | S118: =ROUND((IF(ISERROR(+R118-122), 0, +R118-Q118)),0) -> 0
A119: 2440 | B119: Contributed Capital - OEB Clearing | C119: 0 | E119: 0 | H119: 0 | I119: -243274 | J119: 0 | K119: 0 | L119: 15 | M119: 0.06666666667 | N119: 0 | O119: 0 | P119: -8109.133333 | Q119: -8109.133333 | R119: -8109.15 | S119: =ROUND((IF(ISERROR(+R119-122), 0, +R119-Q119)),0) -> 0
A120: 2440 | B120: Meters - Renewable Connection - Direct Benefit | C120: 0 | E120: 0 | H120: 0 | I120: -143107 | J120: 0 | K120: 0 | L120: 15 | M120: 0.06666666667 | N120: 0 | O120: 0 | P120: -4770.233333 | Q120: -4770.233333 | R120: -22653.79 | S120: -17883.55667
E121: 0 | H121: 0 | K121: 0 | M121: 0 | N121: 0 | O121: 0 | P121: 0 | Q121: 0 | S121: 0
B122: Total | C122: =SUM(C23:C121) -> 148349203.9 | D122: 1238248 | E122: 147110955.9 | F122: 46455007.7 | G122: 955878 | H122: 45499129.7 | I122: 11591504 | N122: =SUM(N23:N121) -> 5548758.48 | O122: 2011558.887 | P122: 250147.982 | Q122: 7810465.349 | R122: 7671935.735 | S122: -138529.806
A125: 2015 | C125: Book Values | J125: Service Lives | N125: Depreciation Expense | Y125: 2018
A126: Account | B126: Description | C126: Opening Net Book Value of Existing Assets as at Date of Policy Change (Jan. 1) 1 | D126: Less Fully Depreciated 7 | E126: Net Amount of Existing Assets Before Policy Change to be Depreciated | F126: Opening Gross Book Value of Assets Acquired After Policy Change 2 | G126: Less Fully Depreciated 8 | H126: Net Amount of Assets Acquired After Policy Change to be Depreciated | I126: Current Year Additions | J126: Average Remaining Life of Assets Existing Before Policy Change 3 | K126: Depreciation Rate Assets Acquired After Policy Change | L126: Life of Assets Acquired After Policy Change 4 | M126: Depreciation Rate on New Additions | N126: Depreciation Expense on Assets Existing Before Policy Change | O126: Depreciation Expense on Assets Acquired After Policy Change | P126: Depreciation Expense on Current Year Additions 5 | Q126: Total Current Year Depreciation Expense | R126: Depreciation Expense per Appendix 2-BA Fixed Assets, Column J | S126: Variance 6
C127: a | D127: b | E127: c = a-b | F127: d | G127: e | H127: f = d- e | I127: g | J127: h | K127: i = 1/h | L127: j | M127: k = 1/j | N127: l = c/h | O127: m = f/j | P127: n = g*0.5/j | Q127: o = l+m+n | R127: p | S127: q = p-o
A128: 1611 | B128: Computer Software (Formally known as Account 1925) | C128: 928634 | D128: 706332 | E128: =C128-D128 -> 222302 | F128: 726706 | G128: 134165 | H128: =F128-G128 -> 592541 | I128: 523099 | J128: 2.25 | K128: =IF(J128=0,0,1/J128) -> 0.4444444444 | L128: 5 | M128: =IF(L128=0,0,1/L128) -> 0.2 | N128: =IF(J128=0,0,+E128/J128) -> 98800.88889 | O128: =IF(L128=0,0,+H128/L128) -> 118508.2 | P128: =IF(L128=0,0,+(I128*0.5)/L128) -> 52309.9 | Q128: =IF(ISERROR(+N128+O128+P128), 0, +N128+O128+P128) -> 269618.9889 | R128: 264294.03 | S128: =IF(ISERROR(+R128-122), 0, +R128-Q128) -> -5324.958889
A129: 1611 | B129: Computer Software (Formally known as Account 1925) | E129: =C129-D129 -> 0 | F129: 88614 | G129: 79996 | H129: =F129-G129 -> 8618 | J129: 0 | K129: =IF(J129=0,0,1/J129) -> 0 | L129: 3 | M129: =IF(L129=0,0,1/L129) -> 0.3333333333 | N129: =IF(J129=0,0,+E129/J129) -> 0 | O129: =IF(L129=0,0,+H129/L129) -> 2872.666667 | P129: =IF(L129=0,0,+(I129*0.5)/L129) -> 0 | Q129: =IF(ISERROR(+N129+O129+P129), 0, +N129+O129+P129) -> 2872.666667 | S129: =IF(ISERROR(+R129-122), 0, +R129-Q129) -> -2872.666667
A130: 1611 | B130: Computer Software (Formally known as Account 1925) - Smart Meters | C130: 0 | D130: 0 | E130: 0 | F130: 598681 | G130: 558314 | H130: 40367 | I130: 0 | J130: 0 | K130: 0 | L130: 3 | M130: 0.3333333333 | N130: 0 | O130: =IF(L130=0,0,+H130/L130) -> 13455.66667 | P130: 0 | Q130: 13455.66667 | R130: 9643.51 | S130: -3812.156667
A131: 1612 | B131: Land Rights (Formally known as Account 1906) | C131: 12881 | D131: 0 | E131: 12881 | F131: 0 | G131: 0 | H131: 0 | J131: 4.855258198 | K131: 0.20596227 | L131: 50 | M131: 0.02 | N131: 2653 | O131: 0 | P131: 0 | Q131: 2653 | R131: 2653 | S131: 0
A132: 1805 | B132: Land | C132: 2339958 | D132: 0 | E132: 2339958 | F132: 0 | G132: 0 | H132: 0 | J132: 0 | K132: 0 | M132: 0 | N132: 0 | O132: 0 | P132: 0 | Q132: 0 | S132: 0
A133: 1808 | B133: Buildings - Structure | C133: 7099490 | D133: 0 | E133: 7099490 | F133: 585080 | G133: 0 | H133: 585080 | I133: -121526 | J133: 38.0813863 | K133: 0.02625954822 | L133: 50 | M133: 0.02 | N133: 186429.4 | O133: 11701.6 | P133: -1215.26 | Q133: 196915.74 | R133: 199177.07 | S133: 2261.33
A134: 1808 | B134: Buildings - Roof | C134: 144989 | D134: 38113 | E134: 106876 | F134: 0 | G134: 0 | H134: 0 | I134: -2480 | J134: 11.43842387 | K134: 0.08742463221 | L134: 20 | M134: 0.05 | N134: 9343.594992 | O134: 0 | P134: -62 | Q134: 9281.594992 | R134: 11871.92 | S134: 2590.325008
A135: 1810 | B135: Leasehold Improvements | D135: 0 | E135: 0 | F135: 0 | G135: 0 | H135: 0 | J135: 0 | K135: 0 | M135: 0 | N135: 0 | O135: 0 | P135: 0 | Q135: 0 | S135: 0
A136: 1815 | B136: Transformer Station Equipment >50 kV 50 yrs | C136: 15658085 | D136: 12312 | E136: 15645773 | F136: 1954817 | G136: 0 | H136: 1954817 | I136: -452443 | J136: 41.16316677 | K136: 0.02429356336 | L136: 50 | M136: 0.02 | N136: 380091.5776 | O136: 39096.34 | P136: -4524.43 | Q136: 414663.4876 | R136: 414962.6 | S136: 299.1123521
A137: 1815 | B137: Transformer Station Equipment >50 kV 40 yrs | C137: 24475179 | D137: 0 | E137: 24475179 | F137: 1244179 | G137: 0 | H137: 1244179 | I137: 0 | J137: 28.75801659 | K137: 0.03477291269 | L137: 40 | M137: 0.025 | N137: 851073.2625 | O137: 31104.475 | P137: 0 | Q137: 882177.7375 | R137: 882177.73 | S137: =ROUND((IF(ISERROR(+R137-122), 0, +R137-Q137)),0) -> 0
A138: 1815 | B138: Transformer Station Equipment >50 kV 30 yrs | D138: 0 | E138: 0 | F138: 0 | G138: 0 | H138: 0 | J138: 0 | K138: 0 | M138: 0 | N138: 0 | O138: 0 | P138: 0 | Q138: 0 | S138: 0
A139: 1815 | B139: Transformer Station Equipment >50 kV 25 yrs | C139: 887028 | D139: 168084 | E139: 718944 | F139: 0 | G139: 0 | H139: 0 | I139: 0 | J139: 12.07200349 | K139: 0.08283629153 | L139: 25 | M139: 0.04 | N139: 59554.65478 | O139: 0 | P139: 0 | Q139: 59554.65478 | R139: 58000.41 | S139: -1554.244775
A140: 1815 | B140: Transformer Station Equipment >50 kV 20 yrs | C140: 392015 | D140: 47127 | E140: 344888 | F140: 23491 | G140: 0 | H140: 23491 | I140: 0 | J140: 9.764080692 | K140: 0.1024161958 | L140: 20 | M140: 0.05 | N140: 35322.11694 | O140: 1174.55 | P140: 0 | Q140: 36496.66694 | R140: 41141.72 | S140: 4645.05306
A141: 1815 | B141: Transformer Station Equipment >50 kV 15 yrs | C141: 1087574 | D141: 27010 | E141: 1060564 | F141: 873187 | G141: 0 | H141: 873187 | I141: 144833 | J141: 8.478937647 | K141: 0.1179393034 | L141: 15 | M141: 0.06666666667 | N141: 125082.1794 | O141: 58212.46667 | P141: 4827.766667 | Q141: 188122.4127 | R141: 187417.26 | S141: -705.1527474
A142: 1820 | B142: Distribution Station Equipment <50 kV 50 yrs | C142: 200427 | D142: 0 | E142: 200427 | F142: 0 | G142: 0 | H142: 0 | I142: 0 | J142: 22.74196678 | K142: 0.0439715707 | L142: 50 | M142: 0.02 | N142: 8813.09 | O142: 0 | P142: 0 | Q142: 8813.09 | R142: 8813.09 | S142: 0
A143: 1820 | B143: Distribution Station Equipment <50 kV 40 yrs | C143: 649832 | D143: 0 | E143: 649832 | F143: 0 | G143: 0 | H143: 0 | I143: 0 | J143: 25.47430722 | K143: 0.03925523828 | L143: 40 | M143: 0.025 | N143: 25509.31 | O143: 0 | P143: 0 | Q143: 25509.31 | R143: 25509.31 | S143: 0
A144: 1820 | B144: Distribution Station Equipment <50 kV 25 yrs | C144: 13287 | D144: 0 | E144: 13287 | F144: 0 | G144: 0 | H144: 0 | I144: 0 | J144: 5.926193535 | K144: 0.1687423798 | L144: 25 | M144: 0.04 | N144: 2242.08 | O144: 0 | P144: 0 | Q144: 2242.08 | R144: 1941.19 | S144: -300.89
A145: 1820 | B145: Distribution Station Equipment <50 kV 20 yrs | C145: 6078 | D145: 6078 | E145: 0 | F145: 0 | G145: 0 | H145: 0 | I145: 0 | J145: 5.661748267 | K145: 0.1766238894 | L145: 20 | M145: 0.05 | N145: 0 | O145: 0 | P145: 0 | Q145: 0 | R145: 460.76 | S145: 460.76
A146: 1820 | B146: Distribution Station Equipment <50 kV 15 hrs | C146: 17551 | D146: 17551 | E146: 0 | F146: 153636 | G146: 0 | H146: 153636 | I146: 0 | J146: 9.64266485 | K146: 0.1037057718 | L146: 15 | M146: 0.06666666667 | N146: 0 | O146: 10242.4 | P146: 0 | Q146: 10242.4 | R146: 12062.54 | S146: 1820.14
A147: 1825 | B147: Storage Battery Equipment | D147: 0 | E147: 0 | F147: 0 | G147: 0 | H147: 0 | J147: 0 | K147: 0 | M147: 0 | N147: 0 | O147: 0 | P147: 0 | Q147: 0 | S147: 0
A148: 1830 | B148: Poles, Towers & Fixtures | C148: 17028402 | D148: 0 | E148: 17028402 | F148: 6876205 | G148: 0 | H148: 6876205 | I148: 3374648 | J148: 32.16 | K148: 0.03109452736 | L148: 40 | M148: 0.025 | N148: 529490.1119 | O148: 171905.125 | P148: 42183.1 | Q148: 743578.3369 | R148: 731756.93 | S148: -11821.40694
A149: 1835 | B149: Overhead Conductors | C149: 14319062 | D149: 0 | E149: 14319062 | F149: 4500489 | G149: 0 | H149: 4500489 | I149: 2501827 | J149: 51.16127779 | K149: 0.01954603253 | L149: 60 | M149: 0.01666666667 | N149: 279880.8517 | O149: 75008.15 | P149: 20848.55833 | Q149: 375737.56 | R149: 375737.55 | S149: =ROUND((IF(ISERROR(+R149-122), 0, +R149-Q149)),0) -> 0
A150: 1835 | B150: Overhead Devices | C150: 1591007 | D150: 0 | E150: 1591007 | F150: 549409 | G150: 0 | H150: 549409 | I150: 293766 | J150: 30.5664788 | K150: 0.0327155773 | L150: 40 | M150: 0.025 | N150: 52050.7125 | O150: 13735.225 | P150: 3672.075 | Q150: 69458.0125 | R150: 69458 | S150: =ROUND((IF(ISERROR(+R150-122), 0, +R150-Q150)),0) -> 0
A151: 1835 | B151: Voltage Regulators | C151: 163109 | D151: 0 | E151: 163109 | F151: 0 | G151: 0 | H151: 0 | I151: 0 | J151: 19.99995095 | K151: 0.05000012262 | L151: 30 | M151: 0.03333333333 | N151: 8155.47 | O151: 0 | P151: 0 | Q151: 8155.47 | R151: 8155.47 | S151: 0
A152: 1835 | B152: Capacitor Banks | C152: 618096 | D152: 0 | E152: 618096 | F152: 93467 | G152: 0 | H152: 93467 | I152: 199837 | J152: 19.79572575 | K152: 0.05051595545 | L152: 25 | M152: 0.04 | N152: 31223.71 | O152: 3738.68 | P152: 3996.74 | Q152: 38959.13 | R152: 36780.04 | S152: -2179.09
A153: 1840 | B153: Underground Conduit | C153: 12527558 | D153: 0 | E153: 12527558 | F153: 7689717 | G153: 0 | H153: 7689717 | I153: 4356442 | J153: 51.70374557 | K153: 0.01934095855 | L153: 60 | M153: 0.01666666667 | N153: 242294.98 | O153: 128161.95 | P153: 36303.68333 | Q153: 406760.6133 | R153: 406760.61 | S153: =ROUND((IF(ISERROR(+R153-122), 0, +R153-Q153)),0) -> 0
A154: 1845 | B154: Underground Conductors & Devices - PILC | C154: 414000 | D154: 0 | E154: 414000 | F154: 465861 | G154: 0 | H154: 465861 | I154: 48503 | J154: 58.00025218 | K154: 0.01724130435 | L154: 60 | M154: 0.01666666667 | N154: 7137.9 | O154: 7764.35 | P154: 404.1916667 | Q154: 15306.44167 | R154: 15306.44 | S154: =ROUND((IF(ISERROR(+R154-122), 0, +R154-Q154)),0) -> 0
A155: 1845 | B155: Underground Cables | C155: 15726653 | D155: 0 | E155: 15726653 | F155: 6291745 | G155: 0 | H155: 6291745 | I155: 2637426 | J155: 28.66494171 | K155: 0.03488582011 | L155: 40 | M155: 0.025 | N155: 548637.1875 | O155: 157293.625 | P155: 32967.825 | Q155: 738898.6375 | R155: 738898.64 | S155: =ROUND((IF(ISERROR(+R155-122), 0, +R155-Q155)),0) -> 0
A156: 1845 | B156: Underground Devices | C156: 1747406 | D156: 0 | E156: 1747406 | F156: 768589 | G156: 0 | H156: 768589 | I156: 305782 | J156: 28.66492472 | K156: 0.03488584078 | L156: 40 | M156: 0.025 | N156: 60959.7275 | O156: 19214.725 | P156: 3822.275 | Q156: 83996.7275 | R156: 83996.74 | S156: =ROUND((IF(ISERROR(+R156-122), 0, +R156-Q156)),0) -> 0
A157: 1850 | B157: Line Transformers - Overhead | C157: 15713833 | D157: 314720 | E157: 15399113 | F157: 2373973 | G157: 0 | H157: 2373973 | I157: 1050382 | J157: 27.98435547 | K157: 0.03573425163 | L157: 40 | M157: 0.025 | N157: 550275.7788 | O157: 59349.325 | P157: 13129.775 | Q157: 622754.8788 | R157: 629798.07 | S157: 7043.191173
A158: 1850 | B158: Line Transformers - Network | C158: 5503 | D158: 0 | E158: 5503 | F158: 302203 | G158: 0 | H158: 302203 | I158: 95759 | J158: 9.378941269 | K158: 0.1066218426 | L158: 40 | M158: 0.025 | N158: 586.74 | O158: 7555.075 | P158: 1196.9875 | Q158: 9338.8025 | R158: 9197.56 | S158: -141.2425
A159: 1850 | B159: Line Transformers - Vault | C159: 0 | D159: 0 | E159: 0 | F159: 5849 | G159: 0 | H159: 5849 | I159: 0 | J159: 0 | K159: 0 | L159: 60 | M159: 0.01666666667 | N159: 0 | O159: 97.48333333 | P159: 0 | Q159: 97.48333333 | R159: 97.43 | S159: =ROUND((IF(ISERROR(+R159-122), 0, +R159-Q159)),0) -> 0
A160: 1850 | B160: Line Transformers - Roof | C160: 497948 | D160: 0 | E160: 497948 | F160: 0 | G160: 0 | H160: 0 | I160: 0 | J160: 23.84196394 | K160: 0.04194285347 | L160: 30 | M160: 0.03333333333 | N160: 20885.36 | O160: 0 | P160: 0 | Q160: 20885.36 | R160: 20682.5 | S160: -202.86
A161: 1850 | B161: Line Transformers -Network Protectors | C161: 91592 | D161: 0 | E161: 91592 | F161: 315604 | G161: 0 | H161: 315604 | I161: 115455 | J161: 39.5 | K161: 0.0253164557 | L161: 40 | M161: 0.025 | N161: 2318.78481 | O161: 7890.1 | P161: 1443.1875 | Q161: 11652.07231 | R161: 11585.64 | S161: -66.43231013
A162: 1850 | B162: Line Transformers - Padmount | C162: 3991872 | D162: 0 | E162: 3991872 | F162: 2141297 | G162: 0 | H162: 2141297 | I162: 1000402 | J162: 36.76889683 | K162: 0.02719689973 | L162: 40 | M162: 0.025 | N162: 108566.5425 | O162: 53532.425 | P162: 12505.025 | Q162: 174603.9925 | R162: 56125.48 | S162: -118478.5125
A163: 1850 | B163: Line Transformers - Submersible | C163: 3195923 | D163: 0 | E163: 3195923 | F163: 1823397 | G163: 0 | H163: 1823397 | I163: 745901 | J163: 24.08939976 | K163: 0.04151203476 | L163: 30 | M163: 0.03333333333 | N163: 132669.2667 | O163: 60779.9 | P163: 12431.68333 | Q163: 205880.85 | R163: 83446.16 | S163: -122434.69
A164: 1850 | B164: Line Transformers - Foundation | C164: 1427416 | D164: 0 | E164: 1427416 | F164: 647275 | G164: 0 | H164: 647275 | I164: 228293 | J164: 58.08298984 | K164: 0.01721674457 | L164: 60 | M164: 0.01666666667 | N164: 24575.45667 | O164: 10787.91667 | P164: 1902.441667 | Q164: 37265.815 | R164: 14181.77 | S164: -23084.045
A165: 1855 | B165: Services - Overhead | C165: 1887728 | D165: 0 | E165: 1887728 | F165: 1223124 | G165: 0 | H165: 1223124 | I165: 441553 | J165: 52.19901604 | K165: 0.01915744924 | L165: 60 | M165: 0.01666666667 | N165: 36164.05333 | O165: 20385.4 | P165: 3679.608333 | Q165: 60229.06167 | R165: 60229.06 | S165: =ROUND((IF(ISERROR(+R165-122), 0, +R165-Q165)),0) -> 0
A166: 1855 | B166: Services - Underground | C166: 22543287 | D166: 0 | E166: 22543287 | F166: 5864328 | G166: 0 | H166: 5864328 | I166: 2893603 | J166: 31.40005779 | K166: 0.03184707514 | L166: 40 | M166: 0.025 | N166: 717937.755 | O166: 146608.2 | P166: 36170.0375 | Q166: 900715.9925 | R166: 900715.98 | S166: =ROUND((IF(ISERROR(+R166-122), 0, +R166-Q166)),0) -> 0
A167: 1860 | B167: Commercial Meters | C167: 1327802 | D167: 158636 | E167: 1169166 | F167: 895420.48 | G167: 0 | H167: 895420.48 | I167: 87170 | J167: 20.97060997 | K167: 0.04768578508 | L167: 25 | M167: 0.04 | N167: 55752.5986 | O167: 35816.8192 | P167: 1743.4 | Q167: 93312.8178 | R167: 97667.34 | S167: 4354.522202
A168: 1860 | B168: Smart Meters - Non-Qualifying | C168: 108222 | E168: 108222 | F168: 240153 | G168: 0 | H168: 240153 | J168: 12.00079841 | K168: 0.08332778917 | L168: 15 | M168: 0.06666666667 | N168: 9017.9 | O168: 16010.2 | P168: 0 | Q168: 25028.1 | S168: -25028.1
A169: 1860 | B169: Meters - Renewable Connection | E169: 0 | F169: 154427 | G169: 0 | H169: 154427 | J169: 0 | K169: 0 | L169: 15 | M169: 0.06666666667 | N169: 0 | O169: 10295.13333 | P169: 0 | Q169: 10295.13333 | S169: -10295.13333
A170: 1860 | B170: Smart Meters | E170: 0 | F170: 0 | G170: 0 | H170: 0 | J170: 0 | K170: 0 | L170: 15 | M170: 0.06666666667 | N170: 0 | O170: 0 | P170: 0 | Q170: 0 | S170: 0
A171: 1860 | B171: Smart Meters | C171: 0 | D171: 0 | E171: 0 | F171: 12494108 | G171: 0 | H171: 12494108 | I171: 156433 | J171: 0 | K171: 0 | L171: 15 | M171: 0.06666666667 | N171: 0 | O171: 832940.5333 | P171: 5214.433333 | Q171: 838154.9667 | R171: 838155.3 | S171: =ROUND((IF(ISERROR(+R171-122), 0, +R171-Q171)),) -> 0
A172: 1905 | B172: Land | C172: 1395300 | D172: 0 | E172: 1395300 | F172: 0 | G172: 0 | H172: 0 | I172: 0 | J172: 0 | K172: 0 | M172: 0 | N172: 0 | O172: 0 | P172: 0 | Q172: 0 | R172: 0 | S172: 0
A173: 1908 | B173: Buildings & Fixtures - Building | C173: 5262681 | D173: 0 | E173: 5262681 | F173: 4877915 | G173: 0 | H173: 4877915 | I173: 32479 | J173: 28.70662149 | K173: 0.03483516861 | L173: 50 | M173: 0.02 | N173: 183326.38 | O173: 97558.3 | P173: 324.79 | Q173: 281209.47 | R173: 274582.34 | S173: -6627.13
A174: 1908 | B174: Buildings & Fixtures - Roof | C174: 1567291 | D174: 0 | E174: 1567291 | F174: 2229408 | G174: 0 | H174: 2229408 | I174: 55888 | J174: 6.525168819 | K174: 0.1532527399 | L174: 20 | M174: 0.05 | N174: 240191.64 | O174: 111470.4 | P174: 1397.2 | Q174: 353059.24 | R174: 333883.83 | S174: -19175.41
A175: 1910 | B175: Leasehold Improvements | C175: 0 | D175: 0 | E175: 0 | F175: 0 | G175: 0 | H175: 0 | I175: 0 | J175: 0 | K175: 0 | M175: 0 | N175: 0 | O175: 0 | P175: 0 | Q175: 0 | R175: 0 | S175: 0
A176: 1915 | B176: Office Furniture & Equipment (10 years) | C176: 340212 | D176: 54324 | E176: 285888 | F176: 245415 | G176: 0 | H176: 245415 | I176: 64368 | J176: 5.1 | K176: 0.1960784314 | L176: 10 | M176: 0.1 | N176: 56056.47059 | O176: 24541.5 | P176: 3218.4 | Q176: 83816.37059 | R176: 67373.56 | S176: -16442.81059
A177: 1915 | B177: Office Furniture & Equipment (5 years) | D177: 0 | E177: 0 | F177: 0 | G177: 0 | H177: 0 | J177: 0 | K177: 0 | L177: 5 | M177: 0.2 | N177: 0 | O177: 0 | P177: 0 | Q177: 0 | S177: 0
A178: 1920 | B178: Computer Equipment - Hardware | C178: 350464 | D178: 86058 | E178: 264406 | F178: 298738 | G178: 0 | H178: 298738 | I178: 174117 | J178: 2.122024781 | K178: 0.4712480312 | L178: 5 | M178: 0.2 | N178: 124600.8069 | O178: 59747.6 | P178: 17411.7 | Q178: 201760.1069 | R178: 202503.09 | S178: 742.9830674
A179: 1920 | B179: Computer Equip.-Hardware - Smart Meters | C179: 0 | D179: 0 | E179: 0 | F179: 569286 | G179: 437864 | H179: 131422 | I179: 0 | J179: 0 | K179: 0 | L179: 5 | M179: 0.2 | N179: 0 | O179: 26284.4 | P179: 0 | Q179: 26284.4 | R179: 22126.08 | S179: -4158.32
A180: 1920 | B180: Computer Equip.-Hardware(Post Mar. 19/07) | C180: 0 | D180: 0 | E180: 0 | F180: 0 | G180: 0 | H180: 0 | I180: 0 | J180: 0 | K180: 0 | M180: 0 | N180: 0 | O180: 0 | P180: 0 | Q180: 0 | R180: 0 | S180: 0
A181: 1930 | B181: Transportation Equipment | C181: 2781086 | D181: 3097 | E181: 2777989 | F181: 2833743 | G181: 0 | H181: 2833743 | I181: 482300 | J181: 7.192059279 | K181: 0.1390422355 | L181: 11 | M181: 0.09090909091 | N181: 386257.8007 | O181: 257613 | P181: 21922.72727 | Q181: 665793.528 | R181: 661498.08 | S181: -4295.448015
A182: 1935 | B182: Stores Equipment | C182: 21484 | D182: 0 | E182: 21484 | F182: 0 | G182: 0 | H182: 0 | I182: 0 | J182: 4.547908204 | K182: 0.219881307 | L182: 10 | M182: 0.1 | N182: 4723.93 | O182: 0 | P182: 0 | Q182: 4723.93 | R182: 5711.33 | S182: 987.4
A183: 1940 | B183: Tools, Shop & Garage Equipment | C183: 324953 | D183: 0 | E183: 324953 | F183: 216651 | G183: 0 | H183: 216651 | I183: 67712 | J183: 6.697268335 | K183: 0.1493146086 | L183: 10 | M183: 0.1 | N183: 48520.23 | O183: 21665.1 | P183: 3385.6 | Q183: 73570.93 | R183: 69389.58 | S183: -4181.35
A184: 1940 | B184: Tools - Smart Meters | C184: 0 | D184: 0 | E184: 0 | F184: 0 | G184: 0 | H184: 0 | I184: 0 | J184: 0 | K184: 0 | L184: 10 | M184: 0.1 | N184: 0 | O184: 0 | P184: 0 | Q184: 0 | R184: 372.6 | S184: 372.6
A185: 1945 | B185: Measurement & Testing Equipment | C185: 163014 | D185: 0 | E185: 163014 | F185: 162820 | G185: 0 | H185: 162820 | I185: 18213 | J185: 7.765222697 | K185: 0.1287793073 | L185: 10 | M185: 0.1 | N185: 20992.83 | O185: 16282 | P185: 910.65 | Q185: 38185.48 | R185: 37576.12 | S185: -609.36
A186: 1950 | B186: Power Operated Equipment | C186: 306812 | D186: 0 | E186: 306812 | F186: 148833 | G186: 0 | H186: 148833 | I186: 179117 | J186: 6.773310492 | K186: 0.1476382932 | L186: 10 | M186: 0.1 | N186: 45297.2 | O186: 14883.3 | P186: 8955.85 | Q186: 69136.35 | R186: 62365.42 | S186: -6770.93
A187: 1955 | B187: Communications Equipment | C187: 58880 | D187: 0 | E187: 58880 | F187: 32427 | G187: 0 | H187: 32427 | I187: 55700 | J187: 6.756090005 | K187: 0.148014606 | L187: 10 | M187: 0.1 | N187: 8715.1 | O187: 3242.7 | P187: 2785 | Q187: 14742.8 | R187: 14772 | S187: 29.2
A188: 1955 | B188: Communication Equipment (Smart Meters) | C188: 0 | D188: 0 | E188: 0 | F188: 696896 | G188: 0 | H188: 696896 | I188: 0 | J188: 0 | K188: 0 | L188: 10 | M188: 0.1 | N188: 0 | O188: 69689.6 | P188: 0 | Q188: 69689.6 | R188: 69689.52 | S188: =ROUND((IF(ISERROR(+R188-122), 0, +R188-Q188)),0) -> 0
A189: 1960 | B189: Miscellaneous Equipment | C189: 40970 | D189: 0 | E189: 40970 | F189: 10150 | G189: 0 | H189: 10150 | I189: 0 | J189: 3.605450857 | K189: 0.2773578228 | L189: 5 | M189: 0.2 | N189: 11363.35 | O189: 2030 | P189: 0 | Q189: 13393.35 | R189: 2030.88 | S189: -11362.47
A190: 1975 | B190: Load Management Controls Utility Premises | C190: 0 | D190: 0 | E190: 0 | F190: 0 | G190: 0 | H190: 0 | I190: 0 | J190: 0 | K190: 0 | M190: 0 | N190: 0 | O190: 0 | P190: 0 | Q190: 0 | R190: 0 | S190: 0
A191: 1980 | B191: System Supervisor Equipment | C191: 115075 | D191: 91860 | E191: 23215 | F191: 0 | G191: 0 | H191: 0 | I191: 0 | J191: 6.15 | K191: 0.162601626 | L191: 10 | M191: 0.1 | N191: 3774.796748 | O191: 0 | P191: 0 | Q191: 3774.796748 | R191: 4059.36 | S191: 284.563252
A192: 1985 | B192: Miscellaneous Fixed Assets | D192: 0 | E192: 0 | F192: 0 | G192: 0 | H192: 0 | I192: 0 | J192: 0 | K192: 0 | M192: 0 | N192: 0 | O192: 0 | P192: 0 | Q192: 0 | S192: 0
A193: 1995 | B193: Contributions & Grants | D193: 0 | E193: 0 | F193: 0 | G193: 0 | H193: 0 | J193: 0 | K193: 0 | M193: 0 | N193: 0 | O193: 0 | P193: 0 | Q193: 0 | S193: 0
A194: 1995 | B194: Contributed Capital - Poles, Towers & Fixtures | C194: -1626853 | D194: 0 | E194: -1626853 | F194: -1146161 | G194: 0 | H194: -1146161 | I194: 0 | J194: 34.5 | K194: 0.02898550725 | L194: 40 | M194: 0.025 | N194: -47155.15942 | O194: -28654.025 | P194: 0 | Q194: -75809.18442 | R194: -76139.97 | S194: -330.7855797
A195: 1995 | B195: Contributed Capital - Overhead Conductors | C195: -1246129 | D195: 0 | E195: -1246129 | F195: -969094.78 | G195: 0 | H195: -969094.78 | I195: 0 | J195: 54.54850602 | K195: 0.01833230776 | L195: 60 | M195: 0.01666666667 | N195: -22844.42033 | O195: -16151.57967 | P195: 0 | Q195: -38996 | R195: -38983.1 | S195: 12.9
A196: 1995 | B196: Contributed Capital - Overhead Devices | C196: -138459 | D196: 0 | E196: -138459 | F196: -109089 | G196: 0 | H196: -109089 | I196: 0 | J196: 34.39470281 | K196: 0.02907424453 | L196: 40 | M196: 0.025 | N196: -4025.590823 | O196: -2727.225 | P196: 0 | Q196: -6752.815823 | R196: -6772.77 | S196: -19.95417723
A197: 1995 | B197: Contributed Capital - Overhead Services | C197: -1195490.13 | D197: 0 | E197: -1195490.13 | F197: -119872 | G197: 0 | H197: -119872 | I197: 0 | J197: 40.18436209 | K197: 0.02488530234 | L197: 60 | M197: 0.01666666667 | N197: -29750.13333 | O197: -1997.866667 | P197: 0 | Q197: -31748 | R197: -27445 | S197: 4303
A198: 1995 | B198: Contributed Capital - Underground Trenching & Ductwork | C198: -5566404 | D198: 0 | E198: -5566404 | F198: -2609506 | G198: 0 | H198: -2609506 | I198: 0 | J198: 54.01576459 | K198: 0.01851311386 | L198: 60 | M198: 0.01666666667 | N198: -103051.471 | O198: -43491.76667 | P198: 0 | Q198: -146543.2377 | R198: -146667 | S198: -123.7622986
A199: 1995 | B199: Contributed Capital - Underground Cables | C199: -2292136 | D199: 0 | E199: -2292136 | F199: -2370201 | G199: 0 | H199: -2370201 | I199: 0 | J199: 30.81386995 | K199: 0.03245291817 | L199: 40 | M199: 0.025 | N199: -74386.50205 | O199: -59255.025 | P199: 0 | Q199: -133641.527 | R199: -126452 | S199: 7189.527045
A200: 1995 | B200: Contributed Capital - Underground Devices | C200: -254682 | D200: 0 | E200: -254682 | F200: -167703 | G200: 0 | H200: -167703 | I200: 0 | J200: 0 | K200: 0 | L200: 40 | M200: 0.025 | N200: 0 | O200: -4192.575 | P200: 0 | Q200: -4192.575 | R200: -11693 | S200: -7500.425
A201: 1995 | B201: Contributed Capital - Overhead Transformer | C201: -2734282 | D201: 0 | E201: -2734282 | F201: 169874 | G201: 0 | H201: 169874 | I201: 0 | J201: 34.03023584 | K201: 0.02938563238 | L201: 40 | M201: 0.025 | N201: -80348.60567 | O201: 4246.85 | P201: 0 | Q201: -76101.75567 | R201: -81825 | S201: -5723.244329
A202: 1995 | B202: Contributed Capital - Underground Padmount Transformer | C202: -1858357 | D202: 0 | E202: -1858357 | F202: -7920 | G202: 0 | H202: -7920 | I202: 0 | J202: 32.33459146 | K202: 0.03092663166 | L202: 40 | M202: 0.025 | N202: -57472.72244 | O202: -198 | P202: 0 | Q202: -57670.72244 | R202: -64413 | S202: -6742.277559
A203: 1995 | B203: Contributed Capital -Underground Submersible Transformer | C203: -1955810 | D203: 0 | E203: -1955810 | F203: -675874 | G203: 0 | H203: -675874 | I203: 0 | J203: 25.18784879 | K203: 0.03970168347 | L203: 30 | M203: 0.03333333333 | N203: -77648.94954 | O203: -22529.13333 | P203: 0 | Q203: -100178.0829 | R203: -100178 | S203: =ROUND((IF(ISERROR(+R203-122), 0, +R203-Q203)),0) -> 0
A204: 1995 | B204: Contributed Capital - Underground Services | C204: -13453846 | D204: 0 | E204: -13453846 | F204: -953639 | G204: 0 | H204: -953639 | I204: 0 | J204: 33.74185021 | K204: 0.02963678618 | L204: 40 | M204: 0.025 | N204: -398728.7572 | O204: -23840.975 | P204: 0 | Q204: -422569.7322 | R204: -456306 | S204: -33736.26776
A205: 1995 | B205: Contributed Capital - Transformer Foundations | C205: -798352 | D205: 0 | E205: -798352 | F205: -558073 | G205: 0 | H205: -558073 | I205: 0 | J205: 54.11468146 | K205: 0.01847927352 | L205: 60 | M205: 0.01666666667 | N205: -14752.96497 | O205: -9301.216667 | P205: 0 | Q205: -24054.18164 | R205: -24054 | S205: =ROUND((IF(ISERROR(+R205-122), 0, +R205-Q205)),0) -> 0
A206: 1995 | B206: Contributed Capital - Meters | C206: -166183 | D206: 0 | E206: -166183 | F206: -132547 | G206: 0 | H206: -132547 | I206: 0 | J206: 6.154242121 | K206: 0.1624895447 | L206: 15 | M206: 0.06666666667 | N206: -27003 | O206: -8836.466667 | P206: 0 | Q206: -35839.46667 | R206: -26572.1 | S206: 9267.366667
B207: Contributed Capital - Meters SOLAR | C207: 0 | D207: 0 | E207: 0 | F207: -152011 | G207: 0 | H207: -152011 | I207: 0 | J207: 0 | K207: 0 | L207: 15 | M207: 0.06666666667 | N207: 0 | O207: -10134.06667 | P207: 0 | Q207: -10134.06667 | R207: -13643.51 | S207: -3509.443333
A208: 1995 | B208: Contributed Capital - OEB Clearing | C208: 68538 | D208: 0 | E208: 68538 | F208: 259328 | G208: 0 | H208: 259328 | I208: 0 | J208: -10.00038909 | K208: -0.09999610921 | L208: 15 | M208: 0.06666666667 | N208: -6853.533333 | O208: 17288.53333 | P208: 0 | Q208: 10435 | R208: 18682.24 | S208: 8247.24
A209: 2440 | B209: Deferred Revenue | D209: 0 | E209: 0 | F209: 0 | G209: 0 | H209: 0 | J209: 0 | K209: 0 | M209: 0 | N209: 0 | O209: 0 | P209: 0 | Q209: 0 | S209: 0
A210: 2440 | B210: Contributed Capital - Poles, Towers & Fixtures | C210: 0 | D210: 0 | E210: 0 | F210: -480870 | G210: 0 | H210: -480870 | I210: -1357297 | J210: 0 | K210: 0 | L210: 40 | M210: 0.025 | N210: 0 | O210: -12021.75 | P210: -16966.2125 | Q210: -28987.9625 | R210: -28987.97 | S210: =ROUND((IF(ISERROR(+R210-122), 0, +R210-Q210)),0) -> 0
A211: 2440 | B211: Contributed Capital - Overhead Conductors | C211: 0 | D211: 0 | E211: 0 | F211: -311681 | G211: 0 | H211: -311681 | I211: -1127219 | J211: 0 | K211: 0 | L211: 60 | M211: 0.01666666667 | N211: 0 | O211: -5194.683333 | P211: -9393.491667 | Q211: -14588.175 | R211: -14588.17 | S211: =ROUND((IF(ISERROR(+R211-122), 0, +R211-Q211)),0) -> 0
... 542 more rows

Sheet App.2-D_Overhead
H1: File Number: | I1: =EBNUMBER -> EB-2019-0049
H2: Exhibit:
H3: Tab:
H4: Schedule:
H5: Page:
H7: Date:
A9: Appendix 2-D
A10: Overhead Expense
A12: Applicants are to provide a breakdown of OM&A before capitalization in the below table. OM&A before capitalization may be broken down by cost center, program, drivers or another format best suited to focus on capitalized vs. uncapitalized OM&A.
A14: OM&A Before Capitalization
B15: =F15-4 -> 2014 | C15: =F15-3 -> 2015 | D15: =H15-4 -> 2016 | E15: =H15-3 -> 2017 | F15: =H15-2 -> 2018 | G15: =H15-1 -> 2019 | H15: =TestYear -> 2020
B16: Historical Year | C16: Historical Year | D16: Historical Year | E16: Historical Year | F16: Historical Year | G16: Bridge Year | H16: Test Year
A17: Operating and Maintenance | B17: =+'App.2-JA_OM&A_Summary_Analys'!I16+B39+B43 -> 12756321.34 | C17: =+'App.2-JA_OM&A_Summary_Analys'!K16+C39+C43 -> 12504203.88 | D17: =+'App.2-JA_OM&A_Summary_Analys'!M16+D39+D43 -> 12989276.48 | E17: =+'App.2-JA_OM&A_Summary_Analys'!O16+E39+E43 -> 13522897.78 | F17: =+'App.2-JA_OM&A_Summary_Analys'!Q16+F39+F43 -> 14400518.23 | G17: =+'App.2-JA_OM&A_Summary_Analys'!R16+G39+G43 -> 15595200 | H17: =+'App.2-JA_OM&A_Summary_Analys'!S16+H39+H43 -> 15286100
A18: Billing and collecting | B18: =+'App.2-JA_OM&A_Summary_Analys'!I19 -> 3415009 | C18: =+'App.2-JA_OM&A_Summary_Analys'!K19 -> 3775665 | D18: =+'App.2-JA_OM&A_Summary_Analys'!M19 -> 4468748 | E18: =+'App.2-JA_OM&A_Summary_Analys'!O19 -> 4296607 | F18: =+'App.2-JA_OM&A_Summary_Analys'!Q19 -> 4615265.64 | G18: =+'App.2-JA_OM&A_Summary_Analys'!R19 -> 4619100 | H18: =+'App.2-JA_OM&A_Summary_Analys'!S19 -> 4926000
A19: Community Relations | B19: =+'App.2-JA_OM&A_Summary_Analys'!I20 -> 199353 | C19: =+'App.2-JA_OM&A_Summary_Analys'!K20 -> 238394 | D19: =+'App.2-JA_OM&A_Summary_Analys'!M20 -> 269179 | E19: =+'App.2-JA_OM&A_Summary_Analys'!O20 -> 220473 | F19: =+'App.2-JA_OM&A_Summary_Analys'!Q20 -> 241006.15 | G19: =+'App.2-JA_OM&A_Summary_Analys'!R20 -> 260500 | H19: =+'App.2-JA_OM&A_Summary_Analys'!S20 -> 263100
A20: General and Administrative | B20: =+'App.2-JA_OM&A_Summary_Analys'!I21+B34+B36 -> 5029352.81 | C20: =+'App.2-JA_OM&A_Summary_Analys'!K21+C34+C36 -> 5195054.92 | D20: =+'App.2-JA_OM&A_Summary_Analys'!M21+D34+D36 -> 5674739.73 | E20: =+'App.2-JA_OM&A_Summary_Analys'!O21+E34+E36 -> 5227396.9 | F20: =+'App.2-JA_OM&A_Summary_Analys'!Q21+F34+F36 -> 5029984.78 | G20: =+'App.2-JA_OM&A_Summary_Analys'!R21+G34+G36 -> 5651500 | H20: =+'App.2-JA_OM&A_Summary_Analys'!S21+H34+H36 -> 6093300
A27: Total OM&A Before Capitalization (B) | B27: =SUM(B17:B26) -> 21400036.15 | C27: 21713317.8 | D27: 23401943.21 | E27: 23267374.68 | F27: 24286774.8 | G27: 26126300 | H27: 26568500
A29: Applicants are to provide a breakdown of capitalized OM&A in the below table. Capitalized OM&A may be broken down using the categories listed in the table below if possible. Otherwise, applicants are to provide its own break down of capitalized OM&A.
A31: Capitalized OM&A | I31: Directly | J31: Explanation for Change in Overhead Capitalized
B32: =F32-4 -> 2014 | C32: =F32-3 -> 2015 | D32: =H32-4 -> 2016 | E32: =H32-3 -> 2017 | F32: =H32-2 -> 2018 | G32: =H32-1 -> 2019 | H32: =TestYear -> 2020 | I32: Attributable?
B33: Historical Year | C33: Historical Year | D33: Historical Year | E33: Historical Year | F33: Historical Year | G33: Bridge Year | H33: Test Year | I33: (Yes/No)
A34: Employee Benefits | B34: 1803364.85 | C34: 2104810.15 | D34: 2404087.84 | E34: 2130423.82 | F34: 1988909.6 | G34: 2178200 | H34: 2215800 | I34: Yes | J34: Directly attributable to labour costs charged to capital
A35: Cost of Site Preparation
A36: Initial Delivery and Handling Costs | B36: 292391.96 | C36: 363419.77 | D36: 399773.89 | E36: 314778.08 | F36: 289957.18 | G36: 325500 | H36: 328700 | I36: Yes | J36: Directly attributable to labour costs charged to capital
A37: Cost of testing whether the asset is functioning properly
A38: Professional Fees
A39: Fleet Costs | B39: 758816.45 | C39: 858935.51 | D39: 971570.02 | E39: 898798.77 | F39: 849759.5 | G39: 1021000 | H39: 1038400 | I39: Yes | J39: Directly attributable to labour costs charged to capital
A40: Costs of opening a new facility
A41: Cost of introducing a new product or service (including costs of advertising and promotional activities)
A42: Cost of conducting business in a new location or with a new class of customer (including costs of staff training)
A43: Administration and other general overhead costs | B43: 1880862.89 | C43: 2267788.37 | D43: 2519573.46 | E43: 1999476.01 | F43: 1740179.99 | G43: 1799300 | H43: 1820600 | I43: Yes | J43: Directly attributable to labour costs charged to capital
A45: Insert description of additional item(s) and new rows if needed
A47: Total Capitalized OM&A (A) | B47: =SUM(B34:B46) -> 4735436.15 | C47: 5594953.8 | D47: 6295005.21 | E47: 5343476.68 | F47: 4868806.27 | G47: 5324000 | H47: 5403500
A49: % of Capitalized OM&A (=A/B) | B49: =IF(ISERROR(B47/B27),"0%",B47/B27) -> 0.2212816893 | C49: 0.2576738319 | D49: 0.2689949785 | E49: 0.229655333 | F49: 0.2004715039 | G49: 0.2037793335 | H49: 0.2033799424

Sheet App.2-EA_Account 1575 (2015) (hidden)
H1: File Number: | I1: =EBNUMBER -> EB-2019-0049
H2: Exhibit:
H3: Tab:
H4: Schedule:
H5: Page:
H7: Date:
A9: Appendix 2-EA
A10: Account 1575 - IFRS-CGAAP Transitional PP&E Amounts
A11: 2015 Adopters of IFRS for Financial Reporting Purposes
A13: For applicants that adopted IFRS on January 1, 2015 for financial reporting purposes
B17: 2014 | C17: =TestYear-3 -> 2017 | D17: =TestYear-2 -> 2018 | E17: =CONCATENATE(TestYear-1," Bridge Year") -> 2019 Bridge Year | F17: =CONCATENATE(TestYear," Rebasing Year") -> 2020 Rebasing Year
A18: Reporting Basis | B18: CGAAP | C18: CGAAP | D18: CGAAP | E18: MIFRS | F18: MIFRS
B19: Actual | C19: Actual | D19: Actual | E19: Forecast | F19: Forecast
D20: $ | E20: $
A21: PP&E Values under CGAAP
A22: Opening net PP&E - Note 1 | C22: =+B25 -> 0 | D22: =+C25 -> 0 | E22: =+D25 -> 0
A23: Net Additions - Note 4
A24: Net Depreciation (amounts should be negative) - Note 4
A25: Closing net PP&E (1) | B25: =SUM(B22:B24) -> 0 | C25: =SUM(C22:C24) -> 0 | D25: =SUM(D22:D24) -> 0 | E25: =SUM(E22:E24) -> 0
A27: PP&E Values under MIFRS (Starts from 2014, the transition year)
A28: Opening net PP&E - Note 1 | C28: =+B31 -> 0 | D28: =+C31 -> 0 | E28: =+D31 -> 0
A29: Net Additions - Note 4
A30: Net Depreciation (amounts should be negative) - Note 4
A31: Closing net PP&E (2) | B31: =SUM(B28:B30) -> 0 | C31: =SUM(C28:C30) -> 0 | D31: =SUM(D28:D30) -> 0 | E31: =SUM(E28:E30) -> 0
A33: Difference in Closing net PP&E, former CGAAP vs. revised CGAAP | B33: =B25-B31 -> 0 | C33: =C25-C31 -> 0 | D33: =D25-D31 -> 0 | E33: =E25-E31 -> 0
A36: Effect on Deferral and Variance Account Rate Riders
A37: Closing balance in Account 1575 | F37: =IF(ISERROR(E33), 0, E33) -> 0 | H37: WACC
A38: Return on Rate Base Associated with Account 1575 balance at WACC - Note 2 | F38: =E33*I37*I38 -> 0 | G38: # of years of rate rider disposition period
A39: Amount included in Deferral and Variance Account Rate Rider Calculation | F39: =F37+F38 -> 0
A41: Notes:
A42: 1 For an applicant that adopted IFRS on January 1, 2015, the PP&E values as of January 1, 2014 under both CGAAP and MIFRS should be the same.
A43: 2 Return on rate base associated with deferred balance is calculated as:
A44: the deferral account closing balance as of 2017 x WACC X # of years of rate rider disposition period
A45: * Please note that the calculation should be adjusted once WACC is updated and finalized in the rate application.
A46: 3 The PP&E deferral account is cleared by including the total balance in the deferral and variance account rate rider calculation.
A47: 4 Net additions are additions net of disposals; Net depreciation is additions to depreciation net of disposals.

Sheet App.2-EB_Account 1576 (2012) (hidden)
K1: File Number: | L1: =EBNUMBER -> EB-2019-0049
K2: Exhibit:
K3: Tab:
K4: Schedule:
K5: Page:
K7: Date:
A9: Appendix 2-EB
A10: Account 1576 - Accounting Changes under CGAAP
A11: 2012 Changes in Accounting Policies under CGAAP
A13: For applicants with a balance in Account 1576 and made capitalization and depreciation expense accounting policy changes under CGAAP effective January 1, 2012. This is the first time the applicant is rebasing with changes in these accounting policies.
B17: Prior Years Rebasing | C17: 2012 | D17: 2013 | E17: 2014 | F17: 2015 | G17: 2016 | H17: 2017 | I17: 2018 Rebasing Year
A18: Reporting Basis | B18: CGAAP | C18: CGAAP | D18: CGAAP | E18: CGAAP | F18: MIFRS - Note 5 | G18: MIFRS | H18: MIFRS | I18: MIFRS
B19: Forecast | C19: Actual | D19: Actual | E19: Actual | F19: Actual | G19: Actual | H19: Forecast | I19: Forecast
C20: $ | D20: $ | E20: $ | F20: $ | G20: $ | H20: $
A21: PP&E Values under former CGAAP
A22: Opening net PP&E - Note 1 | D22: =+C25 -> 0 | E22: =+D25 -> 0 | F22: =+E25 -> 0 | G22: =+F25 -> 0 | H22: =+G25 -> 0
A23: Net Additions - Note 4
A24: Net Depreciation (amounts should be negative) - Note 4
A25: Closing net PP&E (1) | C25: =C22+C23+C24 -> 0 | D25: 0 | E25: 0 | F25: 0 | G25: 0 | H25: 0
A27: PP&E Values under revised CGAAP (Starts from 2012)
A28: Opening net PP&E - Note 1 | D28: =+C31 -> 0 | E28: =+D31 -> 0 | F28: =+E31 -> 0 | G28: =+F31 -> 0 | H28: =+G31 -> 0
A29: Net Additions - Note 4
A30: Net Depreciation (amounts should be negative) - Note 4
A31: Closing net PP&E (2) | C31: =SUM(C28:C30) -> 0 | D31: 0 | E31: 0 | F31: 0 | G31: 0 | H31: 0
A33: Difference in Closing net PP&E, former CGAAP vs. revised CGAAP | C33: =C25-C31 -> 0 | D33: 0 | E33: 0 | F33: 0 | G33: 0 | H33: 0
A36: Effect on Deferral and Variance Account Rate Riders
A37: Closing balance in Account 1576 | I37: =IF(ISERROR(H33), 0, H33) -> 0 | K37: WACC
A38: Return on Rate Base Associated with Account 1576 balance at WACC - Note 2 | I38: =H33*L37*L38 -> 0 | J38: # of years of rate rider disposition period
A39: Amount included in Deferral and Variance Account Rate Rider Calculation | I39: =I37+I38 -> 0
A41: Notes:
A42: 1 For an applicant that made the capitalization and depreciation expense accounting policy changes on January 1, 2012, the PP&E values as of January 1, 2012 under both former CGAAP and revised CGAAP should be the same.
A43: 2 Return on rate base associated with Account 1576 balance is calculated as:
A44: the variance account ending balance as of 2017 x WACC X # of years of rate rider disposition period
A45: * Please note that the calculation should be adjusted once WACC is updated and finalized in the rate application.
A46: 3 Account 1576 is cleared by including the total balance in the deferral and variance account rate rider calculation.
A47: 4 Net additions are additions net of disposals; Net depreciation is additions to depreciation net of disposals.
A48: 5 Differences due to the adoption of MIFRS are to be shown separately in Account 1575 in Appendix 2-EA as Accounts 1575 and 1576 cannot be used interchangably.

Sheet App.2-EC_Account 1576 (2013) (hidden)
J1: File Number: | K1: =EBNUMBER -> EB-2019-0049
J2: Exhibit:
J3: Tab:
J4: Schedule:
J5: Page:
J7: Date:
A9: Appendix 2-EC
A10: Account 1576 - Accounting Changes under CGAAP
A11: 2013 Changes in Accounting Policies under CGAAP
A13: For applicants with a balance in Account 1576 and made capitalization and depreciation expense accounting policy changes under CGAAP effective January 1, 2013. This is the first time the applicant is rebasing with changes in these accounting policies.
B17: Prior Years Rebasing | C17: 2013 | D17: 2014 | E17: 2015 | F17: 2016 | G17: 2017 | H17: 2018 Rebasing Year
A18: Reporting Basis | B18: CGAAP | C18: CGAAP | D18: CGAAP | E18: MIFRS - Note 5 | F18: MIFRS | G18: MIFRS | H18: MIFRS
B19: Actual | C19: Actual | D19: Actual | E19: Actual | F19: Actual | G19: Forecast | H19: Forecast
C20: $ | D20: $ | F20: $
A21: PP&E Values under former CGAAP
A22: Opening net PP&E - Note 1 | D22: =+C25 -> 0 | E22: =+D25 -> 0 | F22: =+E25 -> 0 | G22: =+F25 -> 0
A23: Net Additions - Note 4
A24: Net Depreciation (amounts should be negative) - Note 4
A25: Closing net PP&E (1) | C25: =C22+C23+C24 -> 0 | D25: =D22+D23+D24 -> 0 | E25: =E22+E23+E24 -> 0 | F25: =F22+F23+F24 -> 0 | G25: =G22+G23+G24 -> 0
A27: PP&E Values under revised CGAAP (Starts from 2012)
A28: Opening net PP&E - Note 1 | D28: =+C31 -> 0 | E28: =+D31 -> 0 | F28: =+E31 -> 0 | G28: =+F31 -> 0
A29: Net Additions - Note 4
A30: Net Depreciation (amounts should be negative) - Note 4
A31: Closing net PP&E (2) | C31: =SUM(C28:C30) -> 0 | D31: =SUM(D28:D30) -> 0 | E31: =SUM(E28:E30) -> 0 | F31: =SUM(F28:F30) -> 0 | G31: =SUM(G28:G30) -> 0
A33: Difference in Closing net PP&E, former CGAAP vs. revised CGAAP | C33: =C25-C31 -> 0 | D33: =D25-D31 -> 0 | E33: =E25-E31 -> 0 | F33: =F25-F31 -> 0 | G33: =G25-G31 -> 0
A36: Effect on Deferral and Variance Account Rate Riders
A37: Closing balance in Account 1576 | H37: =IF(ISERROR(G33), 0, G33) -> 0 | J37: WACC
A38: Return on Rate Base Associated with Account 1576 balance at WACC - Note 2 | H38: =G33*K37*K38 -> 0 | I38: # of years of rate rider disposition period
A39: Amount included in Deferral and Variance Account Rate Rider Calculation | H39: =H37+H38 -> 0
A41: Notes:
A42: 1 For an applicant that made the capitalization and depreciation expense accounting policy changes on January 1, 2013, the PP&E values as of January 1, 2013 under both former CGAAP and revised CGAAP should be the same.
A43: 2 Return on rate base associated with Account 1576 balance is calculated as:
A44: the variance account ending balance as of 2017 x WACC X # of years of rate rider disposition period
A45: * Please note that the calculation should be adjusted once WACC is updated and finalized in the rate application.
A46: 3 Account 1576 is cleared by including the total balance in the deferral and variance account rate rider calculation.
A47: 4 Net additions are additions net of disposals; Net depreciation is additions to depreciation net of disposals.
A48: 5 Differences due to the adoption of MIFRS are to be shown separately in Account 1575 in Appendix 2-EA as Accounts 1575 and 1576 cannot be used interchangably.

Sheet App.2-FA Proposed REG Invest.
L1: File Number: | M1: =EBNUMBER -> EB-2019-0049
L2: Exhibit:
L3: Tab:
A4: TO BE UPDATED AT DRAFT RATE ORDER STAGE | L4: Schedule:
L5: Page:
L7: Date:
A9: Appendix 2-FA
A10: Renewable Generation Connection Investment Summary (past investments or over the future rate setting period)
A12: Enter the details of the Renewable Generation Connection projects as described in the appropriate section of the Filing Requirements.
A13: All costs entered on this page will be transferred to the appropriate cells in the appendices that follow.
A14: For Part A, Renewable Enabling Improvements (REI), these amounts will be transferred to Appendix 2 - FB
A15: For Part B, Expansions, these amounts will be transferred to Appendix 2 - FC
A17: If there are more than five projects proposed to be in-service in a certain year, please amend the tables below and ensure that the formulae for the Total Amounts in any given rate year are updated.
A18: Based on the current methodology and allocation, amounts allocated represent 6% for REI Connection Investments and 17% for Expansion Investments. (EB-2009-0349, 6-10-2010, p. 15, note 9)
A20: There are two scenarios described below. Separate sets of spreadsheets (2-FA, 2-FB, 2-FC) should be submited for each scenario as required.
A21: Scenario 1: Past Investments with No Recovery. The distributor has made investments in the past (during the IRM Years), but has not received approval for these projects and therefore did not receive
A22: revenue from the IESO under Regulation 330/09 and did not receive ratepayer revenue for the direct benefit portion of the investment.
A23: The WCA percentage, debt percentages, interest rates, kWh, tax rates, amortization period, CCA Class and percentage should correspond to the distributor's last Cost of Service approval.
A24: The Direct Benefit portion of the calculated Revenue Requirement for each year should be summed and can be applied for recovery from the distributor's ratepayers through a rate rider.
A25: The Provincial Recovery portion of the calculated Revenue Requirement for each year should be summed and can be applied for recovery from the IESO through a separate order.
A27: Scenario 2: Investments in the Test Year and Beyond. Distributor plans to make investments in 2017 and/or beyond. These investments should be added to 2-FA in the appropriate year.
A28: The WCA percentage, debt percentages, interest rates, kWh, tax rates, amortization period, CCA Class and percentage should correspond to the distributor's current application.
A30: Part A | I30: Test Year
A31: REI Investments (Direct Benefit at 6%) | C31: =D31-1 -> 2014 | D31: 2015 | E31: 2016 | F31: 2017 | G31: 2018 | H31: 2019 | I31: =TestYear -> 2020 | J31: =I31+1 -> 2021 | K31: =J31+1 -> 2022 | L31: =K31+1 -> 2023 | M31: =L31+1 -> 2024
A32: Project 1
A33: Name: REI Connection Project
A34: Capital Costs | C34: 0 | D34: 0 | E34: 0 | F34: 0 | G34: 0 | H34: 0 | I34: 0 | J34: 0 | K34: 0 | L34: 0 | M34: 0
A35: OM&A (Start-Up) | C35: 39516 | D35: =46980.85-39516.49 -> 7464.36 | E35: =55617-46980 -> 8637 | F35: =97778-55617 -> 42161 | G35: =102387.35-97778 -> 4609.35 | H35: 0 | I35: 0 | J35: 0 | K35: 0 | L35: 0 | M35: 0
A36: OM&A (Ongoing) | C36: 0 | D36: 0 | E36: 0 | F36: 0 | G36: 0 | H36: 0 | I36: 0 | J36: 0 | K36: 0 | L36: 0 | M36: 0
A38: Project 2
A39: Name: REI Connection Project
A40: Capital Costs | C40: 0 | D40: 0 | E40: 0 | F40: 0 | G40: 0 | H40: 0 | I40: 0 | J40: 0 | K40: 0 | L40: 0 | M40: 0
A41: OM&A (Start-Up) | C41: 0 | D41: 0 | E41: 0 | F41: 0 | G41: 0 | H41: 0 | I41: 0 | J41: 0 | K41: 0 | L41: 0 | M41: 0
A42: OM&A (Ongoing) | C42: 0 | D42: 0 | E42: 0 | F42: 0 | G42: 0 | H42: 0 | I42: 0 | J42: 0 | K42: 0 | L42: 0 | M42: 0
A44: Project 3
A45: Name: REI Connection Project
A46: Capital Costs | C46: 0 | D46: 0 | E46: 0 | F46: 0 | G46: 0 | H46: 0 | I46: 0 | J46: 0 | K46: 0 | L46: 0 | M46: 0
A47: OM&A (Start-Up) | C47: 0 | D47: 0 | E47: 0 | F47: 0 | G47: 0 | H47: 0 | I47: 0 | J47: 0 | K47: 0 | L47: 0 | M47: 0
A48: OM&A (Ongoing) | C48: 0 | D48: 0 | E48: 0 | F48: 0 | G48: 0 | H48: 0 | I48: 0 | J48: 0 | K48: 0 | L48: 0 | M48: 0
A50: Project 4
A51: Name: REI Connection Project
A52: Capital Costs | C52: 0 | D52: 0 | E52: 0 | F52: 0 | G52: 0 | H52: 0 | I52: 0 | J52: 0 | K52: 0 | L52: 0 | M52: 0
A53: OM&A (Start-Up) | C53: 0 | D53: 0 | E53: 0 | F53: 0 | G53: 0 | H53: 0 | I53: 0 | J53: 0 | K53: 0 | L53: 0 | M53: 0
A54: OM&A (Ongoing) | C54: 0 | D54: 0 | E54: 0 | F54: 0 | G54: 0 | H54: 0 | I54: 0 | J54: 0 | K54: 0 | L54: 0 | M54: 0
A56: Project 5
A57: Name: REI Connection Project
A58: Capital Costs | C58: 0 | D58: 0 | E58: 0 | F58: 0 | G58: 0 | H58: 0 | I58: 0 | J58: 0 | K58: 0 | L58: 0 | M58: 0
A59: OM&A (Start-Up) | C59: 0 | D59: 0 | E59: 0 | F59: 0 | G59: 0 | H59: 0 | I59: 0 | J59: 0 | K59: 0 | L59: 0 | M59: 0
A60: OM&A (Ongoing) | C60: 0 | D60: 0 | E60: 0 | F60: 0 | G60: 0 | H60: 0 | I60: 0 | J60: 0 | K60: 0 | L60: 0 | M60: 0
A62: Total Capital Costs | C62: =SUM(C58,C52,C46,C40,C34) -> 0 | D62: =SUM(D58,D52,D46,D40,D34) -> 0 | E62: =SUM(E58,E52,E46,E40,E34) -> 0 | F62: 0 | G62: 0 | H62: 0 | I62: =SUM(I58,I52,I46,I40,I34) -> 0 | J62: =SUM(J58,J52,J46,J40,J34) -> 0 | K62: 0 | L62: 0 | M62: 0
A63: Total OM&A (Start-Up) | C63: =SUM(C59,C53,C47,C41,C35) -> 39516 | D63: =SUM(D59,D53,D47,D41,D35) -> 7464.36 | E63: 8637 | F63: 42161 | G63: 4609.35 | H63: 0 | I63: =SUM(I59,I53,I47,I41,I35) -> 0 | J63: 0 | K63: 0 | L63: 0 | M63: 0
A64: Total OM&A (Ongoing) | C64: =SUM(C60,C54,C48,C42,C36) -> 0 | D64: =SUM(D60,D54,D48,D42,D36) -> 0 | E64: 0 | F64: 0 | G64: 0 | H64: 0 | I64: =SUM(I60,I54,I48,I42,I36) -> 0 | J64: 0 | K64: 0 | L64: 0 | M64: 0
A67: Part B | I67: Test Year
A68: Expansion Investments (Direct Benefit at 17%) | C68: =D68-1 -> 2014 | D68: 2015 | E68: 2016 | F68: 2017 | G68: 2018 | H68: 2019 | I68: =TestYear -> 2020 | J68: =I68+1 -> 2021 | K68: =J68+1 -> 2022 | L68: =K68+1 -> 2023 | M68: =L68+1 -> 2024
A69: Project 1
A70: Name: Expansion Connection Project
A71: Capital Costs | C71: 0 | D71: 0 | E71: 0 | F71: 0 | G71: 0 | H71: 0 | I71: 0 | J71: 0 | K71: 0 | L71: 0 | M71: 0
A72: OM&A (Start-Up) | C72: 0 | D72: 0 | E72: 0 | F72: 0 | G72: 0 | H72: 0 | I72: 0 | J72: 0 | K72: 0 | L72: 0 | M72: 0
A73: OM&A (Ongoing) | C73: 0 | D73: 0 | E73: 0 | F73: 0 | G73: 0 | H73: 0 | I73: 0 | J73: 0 | K73: 0 | L73: 0 | M73: 0
A75: Project 2
A76: Name: Expansion Connection Project
A77: Capital Costs | C77: 0 | D77: 0 | E77: 0 | F77: 0 | G77: 0 | H77: 0 | I77: 0 | J77: 0 | K77: 0 | L77: 0 | M77: 0
A78: OM&A (Start-Up) | C78: 0 | D78: 0 | E78: 0 | F78: 0 | G78: 0 | H78: 0 | I78: 0 | J78: 0 | K78: 0 | L78: 0 | M78: 0
A79: OM&A (Ongoing) | C79: 0 | D79: 0 | E79: 0 | F79: 0 | G79: 0 | H79: 0 | I79: 0 | J79: 0 | K79: 0 | L79: 0 | M79: 0
A81: Project 3
A82: Name: Expansion Connection Project
A83: Capital Costs | C83: 0 | D83: 0 | E83: 0 | F83: 0 | G83: 0 | H83: 0 | I83: 0 | J83: 0 | K83: 0 | L83: 0 | M83: 0
A84: OM&A (Start-Up) | C84: 0 | D84: 0 | E84: 0 | F84: 0 | G84: 0 | H84: 0 | I84: 0 | J84: 0 | K84: 0 | L84: 0 | M84: 0
A85: OM&A (Ongoing) | C85: 0 | D85: 0 | E85: 0 | F85: 0 | G85: 0 | H85: 0 | I85: 0 | J85: 0 | K85: 0 | L85: 0 | M85: 0
A87: Project 4
A88: Name: Expansion Connection Project
A89: Capital Costs | C89: 0 | D89: 0 | E89: 0 | F89: 0 | G89: 0 | H89: 0 | I89: 0 | J89: 0 | K89: 0 | L89: 0 | M89: 0
A90: OM&A (Start-Up) | C90: 0 | D90: 0 | E90: 0 | F90: 0 | G90: 0 | H90: 0 | I90: 0 | J90: 0 | K90: 0 | L90: 0 | M90: 0
A91: OM&A (Ongoing) | C91: 0 | D91: 0 | E91: 0 | F91: 0 | G91: 0 | H91: 0 | I91: 0 | J91: 0 | K91: 0 | L91: 0 | M91: 0
A93: Project 5
A94: Name: Expansion Connection Project
A95: Capital Costs | C95: 0 | D95: 0 | E95: 0 | F95: 0 | G95: 0 | H95: 0 | I95: 0 | J95: 0 | K95: 0 | L95: 0 | M95: 0
A96: OM&A (Start-Up) | C96: 0 | D96: 0 | E96: 0 | F96: 0 | G96: 0 | H96: 0 | I96: 0 | J96: 0 | K96: 0 | L96: 0 | M96: 0
A97: OM&A (Ongoing) | C97: 0 | D97: 0 | E97: 0 | F97: 0 | G97: 0 | H97: 0 | I97: 0 | J97: 0 | K97: 0 | L97: 0 | M97: 0
A99: Total Capital Costs | C99: =SUM(C95,C89,C83,C77,C71) -> 0 | D99: 0 | E99: =SUM(E95,E89,E83,E77,E71) -> 0 | F99: 0 | G99: 0 | H99: 0 | I99: =SUM(I95,I89,I83,I77,I71) -> 0 | J99: =SUM(J95,J89,J83,J77,J71) -> 0 | K99: 0 | L99: 0 | M99: 0
A100: Total OM&A (Start-Up) | C100: =SUM(C96,C90,C84,C78,C72) -> 0 | D100: 0 | E100: 0 | F100: 0 | G100: 0 | H100: 0 | I100: =SUM(I96,I90,I84,I78,I72) -> 0 | J100: 0 | K100: 0 | L100: 0 | M100: 0
A101: Total OM&A (Ongoing) | C101: =SUM(C97,C91,C85,C79,C73) -> 0 | D101: 0 | E101: 0 | F101: 0 | G101: 0 | H101: 0 | I101: =SUM(I97,I91,I85,I79,I73) -> 0 | J101: 0 | K101: 0 | L101: 0 | M101: 0

Sheet Hidden_REG Invest. (hidden)
A1: Utility Name | B1: EB Number | C1: Test Year | D1: Bridge Year | E1: Last Rebasing Year | F1: Renewable Generation Connection Investment Summary | G1: Year | H1: Amount
A2: ='LDC Info'!$E$14 -> Kitchener-Wilmot Hydro Inc. | B2: =EBNUMBER -> EB-2019-0049 | C2: =TestYear -> 2020 | D2: =BridgeYear -> 2019 | E2: =RebaseYear -> 2014 | F2: REI Investments_A_Total Capital Costs | G2: 2014 | H2: ='App.2-FA Proposed REG Invest.'!D62 -> 0
A3: ='LDC Info'!$E$14 -> Kitchener-Wilmot Hydro Inc. | B3: EB-2019-0049 | C3: 2020 | D3: 2019 | E3: 2014 | F3: REI Investments_A_Total OM&A Start-Up | G3: 2014 | H3: ='App.2-FA Proposed REG Invest.'!D63 -> 7464.36
A4: ='LDC Info'!$E$14 -> Kitchener-Wilmot Hydro Inc. | B4: EB-2019-0049 | C4: 2020 | D4: 2019 | E4: 2014 | F4: REI Investments_A_Total OM&A Ongoing | G4: 2014 | H4: ='App.2-FA Proposed REG Invest.'!D64 -> 0
A5: ='LDC Info'!$E$14 -> Kitchener-Wilmot Hydro Inc. | B5: EB-2019-0049 | C5: 2020 | D5: 2019 | E5: 2014 | F5: REI Investments_A_Total Capital Costs | G5: 2015 | H5: ='App.2-FA Proposed REG Invest.'!E62 -> 0
A6: ='LDC Info'!$E$14 -> Kitchener-Wilmot Hydro Inc. | B6: EB-2019-0049 | C6: 2020 | D6: 2019 | E6: 2014 | F6: REI Investments_A_Total OM&A Start-Up | G6: 2015 | H6: ='App.2-FA Proposed REG Invest.'!E63 -> 8637
A7: ='LDC Info'!$E$14 -> Kitchener-Wilmot Hydro Inc. | B7: EB-2019-0049 | C7: 2020 | D7: 2019 | E7: 2014 | F7: REI Investments_A_Total OM&A Ongoing | G7: 2015 | H7: ='App.2-FA Proposed REG Invest.'!E64 -> 0
A8: ='LDC Info'!$E$14 -> Kitchener-Wilmot Hydro Inc. | B8: EB-2019-0049 | C8: 2020 | D8: 2019 | E8: 2014 | F8: REI Investments_A_Total Capital Costs | G8: 2016 | H8: ='App.2-FA Proposed REG Invest.'!F62 -> 0
A9: ='LDC Info'!$E$14 -> Kitchener-Wilmot Hydro Inc. | B9: EB-2019-0049 | C9: 2020 | D9: 2019 | E9: 2014 | F9: REI Investments_A_Total OM&A Start-Up | G9: 2016 | H9: ='App.2-FA Proposed REG Invest.'!F63 -> 42161
A10: ='LDC Info'!$E$14 -> Kitchener-Wilmot Hydro Inc. | B10: EB-2019-0049 | C10: 2020 | D10: 2019 | E10: 2014 | F10: REI Investments_A_Total OM&A Ongoing | G10: 2016 | H10: ='App.2-FA Proposed REG Invest.'!F64 -> 0
A11: ='LDC Info'!$E$14 -> Kitchener-Wilmot Hydro Inc. | B11: EB-2019-0049 | C11: 2020 | D11: 2019 | E11: 2014 | F11: REI Investments_A_Total Capital Costs | G11: 2017 | H11: ='App.2-FA Proposed REG Invest.'!G62 -> 0
A12: ='LDC Info'!$E$14 -> Kitchener-Wilmot Hydro Inc. | B12: EB-2019-0049 | C12: 2020 | D12: 2019 | E12: 2014 | F12: REI Investments_A_Total OM&A Start-Up | G12: 2017 | H12: ='App.2-FA Proposed REG Invest.'!G63 -> 4609.35
A13: ='LDC Info'!$E$14 -> Kitchener-Wilmot Hydro Inc. | B13: EB-2019-0049 | C13: 2020 | D13: 2019 | E13: 2014 | F13: REI Investments_A_Total OM&A Ongoing | G13: 2017 | H13: ='App.2-FA Proposed REG Invest.'!G64 -> 0
A14: ='LDC Info'!$E$14 -> Kitchener-Wilmot Hydro Inc. | B14: EB-2019-0049 | C14: 2020 | D14: 2019 | E14: 2014 | F14: REI Investments_A_Total Capital Costs | G14: 2018 | H14: ='App.2-FA Proposed REG Invest.'!H62 -> 0
A15: ='LDC Info'!$E$14 -> Kitchener-Wilmot Hydro Inc. | B15: EB-2019-0049 | C15: 2020 | D15: 2019 | E15: 2014 | F15: REI Investments_A_Total OM&A Start-Up | G15: 2018 | H15: ='App.2-FA Proposed REG Invest.'!H63 -> 0
A16: ='LDC Info'!$E$14 -> Kitchener-Wilmot Hydro Inc. | B16: EB-2019-0049 | C16: 2020 | D16: 2019 | E16: 2014 | F16: REI Investments_A_Total OM&A Ongoing | G16: 2018 | H16: ='App.2-FA Proposed REG Invest.'!H64 -> 0
A17: ='LDC Info'!$E$14 -> Kitchener-Wilmot Hydro Inc. | B17: EB-2019-0049 | C17: 2020 | D17: 2019 | E17: 2014 | F17: REI Investments_A_Total Capital Costs | G17: 2019 | H17: ='App.2-FA Proposed REG Invest.'!I62 -> 0
A18: ='LDC Info'!$E$14 -> Kitchener-Wilmot Hydro Inc. | B18: EB-2019-0049 | C18: 2020 | D18: 2019 | E18: 2014 | F18: REI Investments_A_Total OM&A Start-Up | G18: 2019 | H18: ='App.2-FA Proposed REG Invest.'!I63 -> 0
A19: ='LDC Info'!$E$14 -> Kitchener-Wilmot Hydro Inc. | B19: EB-2019-0049 | C19: 2020 | D19: 2019 | E19: 2014 | F19: REI Investments_A_Total OM&A Ongoing | G19: 2019 | H19: ='App.2-FA Proposed REG Invest.'!I64 -> 0
A20: ='LDC Info'!$E$14 -> Kitchener-Wilmot Hydro Inc. | B20: EB-2019-0049 | C20: 2020 | D20: 2019 | E20: 2014 | F20: REI Investments_A_Total Capital Costs | G20: 2020 | H20: ='App.2-FA Proposed REG Invest.'!J62 -> 0
A21: ='LDC Info'!$E$14 -> Kitchener-Wilmot Hydro Inc. | B21: EB-2019-0049 | C21: 2020 | D21: 2019 | E21: 2014 | F21: REI Investments_A_Total OM&A Start-Up | G21: 2020 | H21: ='App.2-FA Proposed REG Invest.'!J63 -> 0
A22: ='LDC Info'!$E$14 -> Kitchener-Wilmot Hydro Inc. | B22: EB-2019-0049 | C22: 2020 | D22: 2019 | E22: 2014 | F22: REI Investments_A_Total OM&A Ongoing | G22: 2020 | H22: ='App.2-FA Proposed REG Invest.'!J64 -> 0
A23: ='LDC Info'!$E$14 -> Kitchener-Wilmot Hydro Inc. | B23: EB-2019-0049 | C23: 2020 | D23: 2019 | E23: 2014 | F23: REI Investments_A_Total Capital Costs | G23: 2021 | H23: ='App.2-FA Proposed REG Invest.'!K62 -> 0
A24: ='LDC Info'!$E$14 -> Kitchener-Wilmot Hydro Inc. | B24: EB-2019-0049 | C24: 2020 | D24: 2019 | E24: 2014 | F24: REI Investments_A_Total OM&A Start-Up | G24: 2021 | H24: ='App.2-FA Proposed REG Invest.'!K63 -> 0
A25: ='LDC Info'!$E$14 -> Kitchener-Wilmot Hydro Inc. | B25: EB-2019-0049 | C25: 2020 | D25: 2019 | E25: 2014 | F25: REI Investments_A_Total OM&A Ongoing | G25: 2021 | H25: ='App.2-FA Proposed REG Invest.'!K64 -> 0
A26: ='LDC Info'!$E$14 -> Kitchener-Wilmot Hydro Inc. | B26: EB-2019-0049 | C26: 2020 | D26: 2019 | E26: 2014 | F26: REI Investments_A_Total Capital Costs | G26: 2022 | H26: ='App.2-FA Proposed REG Invest.'!L62 -> 0
A27: ='LDC Info'!$E$14 -> Kitchener-Wilmot Hydro Inc. | B27: EB-2019-0049 | C27: 2020 | D27: 2019 | E27: 2014 | F27: REI Investments_A_Total OM&A Start-Up | G27: 2022 | H27: ='App.2-FA Proposed REG Invest.'!L63 -> 0
A28: ='LDC Info'!$E$14 -> Kitchener-Wilmot Hydro Inc. | B28: EB-2019-0049 | C28: 2020 | D28: 2019 | E28: 2014 | F28: REI Investments_A_Total OM&A Ongoing | G28: 2022 | H28: ='App.2-FA Proposed REG Invest.'!L64 -> 0
A29: ='LDC Info'!$E$14 -> Kitchener-Wilmot Hydro Inc. | B29: EB-2019-0049 | C29: 2020 | D29: 2019 | E29: 2014 | F29: REI Investments_A_Total Capital Costs | G29: 2023 | H29: ='App.2-FA Proposed REG Invest.'!M62 -> 0
A30: ='LDC Info'!$E$14 -> Kitchener-Wilmot Hydro Inc. | B30: EB-2019-0049 | C30: 2020 | D30: 2019 | E30: 2014 | F30: REI Investments_A_Total OM&A Start-Up | G30: 2023 | H30: ='App.2-FA Proposed REG Invest.'!M63 -> 0
A31: ='LDC Info'!$E$14 -> Kitchener-Wilmot Hydro Inc. | B31: EB-2019-0049 | C31: 2020 | D31: 2019 | E31: 2014 | F31: REI Investments_A_Total OM&A Ongoing | G31: 2023 | H31: ='App.2-FA Proposed REG Invest.'!M64 -> 0
A32: ='LDC Info'!$E$14 -> Kitchener-Wilmot Hydro Inc. | B32: EB-2019-0049 | C32: 2020 | D32: 2019 | E32: 2014 | F32: Expansion Investments_B_Total Capital Costs | G32: 2014 | H32: ='App.2-FA Proposed REG Invest.'!D99 -> 0
A33: ='LDC Info'!$E$14 -> Kitchener-Wilmot Hydro Inc. | B33: EB-2019-0049 | C33: 2020 | D33: 2019 | E33: 2014 | F33: Expansion Investments_B_Total OM&A Start-Up | G33: 2014 | H33: ='App.2-FA Proposed REG Invest.'!D100 -> 0
A34: ='LDC Info'!$E$14 -> Kitchener-Wilmot Hydro Inc. | B34: EB-2019-0049 | C34: 2020 | D34: 2019 | E34: 2014 | F34: Expansion Investments_B_Total OM&A Ongoing | G34: 2014 | H34: ='App.2-FA Proposed REG Invest.'!D101 -> 0
A35: ='LDC Info'!$E$14 -> Kitchener-Wilmot Hydro Inc. | B35: EB-2019-0049 | C35: 2020 | D35: 2019 | E35: 2014 | F35: Expansion Investments_B_Total Capital Costs | G35: 2015 | H35: ='App.2-FA Proposed REG Invest.'!E99 -> 0
A36: ='LDC Info'!$E$14 -> Kitchener-Wilmot Hydro Inc. | B36: EB-2019-0049 | C36: 2020 | D36: 2019 | E36: 2014 | F36: Expansion Investments_B_Total OM&A Start-Up | G36: 2015 | H36: ='App.2-FA Proposed REG Invest.'!E100 -> 0
A37: ='LDC Info'!$E$14 -> Kitchener-Wilmot Hydro Inc. | B37: EB-2019-0049 | C37: 2020 | D37: 2019 | E37: 2014 | F37: Expansion Investments_B_Total OM&A Ongoing | G37: 2015 | H37: ='App.2-FA Proposed REG Invest.'!E101 -> 0
A38: ='LDC Info'!$E$14 -> Kitchener-Wilmot Hydro Inc. | B38: EB-2019-0049 | C38: 2020 | D38: 2019 | E38: 2014 | F38: Expansion Investments_B_Total Capital Costs | G38: 2016 | H38: ='App.2-FA Proposed REG Invest.'!F99 -> 0
A39: ='LDC Info'!$E$14 -> Kitchener-Wilmot Hydro Inc. | B39: EB-2019-0049 | C39: 2020 | D39: 2019 | E39: 2014 | F39: Expansion Investments_B_Total OM&A Start-Up | G39: 2016 | H39: ='App.2-FA Proposed REG Invest.'!F100 -> 0
A40: ='LDC Info'!$E$14 -> Kitchener-Wilmot Hydro Inc. | B40: EB-2019-0049 | C40: 2020 | D40: 2019 | E40: 2014 | F40: Expansion Investments_B_Total OM&A Ongoing | G40: 2016 | H40: ='App.2-FA Proposed REG Invest.'!F101 -> 0
A41: ='LDC Info'!$E$14 -> Kitchener-Wilmot Hydro Inc. | B41: EB-2019-0049 | C41: 2020 | D41: 2019 | E41: 2014 | F41: Expansion Investments_B_Total Capital Costs | G41: 2017 | H41: ='App.2-FA Proposed REG Invest.'!G99 -> 0
A42: ='LDC Info'!$E$14 -> Kitchener-Wilmot Hydro Inc. | B42: EB-2019-0049 | C42: 2020 | D42: 2019 | E42: 2014 | F42: Expansion Investments_B_Total OM&A Start-Up | G42: 2017 | H42: ='App.2-FA Proposed REG Invest.'!G100 -> 0
A43: ='LDC Info'!$E$14 -> Kitchener-Wilmot Hydro Inc. | B43: EB-2019-0049 | C43: 2020 | D43: 2019 | E43: 2014 | F43: Expansion Investments_B_Total OM&A Ongoing | G43: 2017 | H43: ='App.2-FA Proposed REG Invest.'!G101 -> 0
A44: ='LDC Info'!$E$14 -> Kitchener-Wilmot Hydro Inc. | B44: EB-2019-0049 | C44: 2020 | D44: 2019 | E44: 2014 | F44: Expansion Investments_B_Total Capital Costs | G44: 2018 | H44: ='App.2-FA Proposed REG Invest.'!H99 -> 0
A45: ='LDC Info'!$E$14 -> Kitchener-Wilmot Hydro Inc. | B45: EB-2019-0049 | C45: 2020 | D45: 2019 | E45: 2014 | F45: Expansion Investments_B_Total OM&A Start-Up | G45: 2018 | H45: ='App.2-FA Proposed REG Invest.'!H100 -> 0
A46: ='LDC Info'!$E$14 -> Kitchener-Wilmot Hydro Inc. | B46: EB-2019-0049 | C46: 2020 | D46: 2019 | E46: 2014 | F46: Expansion Investments_B_Total OM&A Ongoing | G46: 2018 | H46: ='App.2-FA Proposed REG Invest.'!H101 -> 0
A47: ='LDC Info'!$E$14 -> Kitchener-Wilmot Hydro Inc. | B47: EB-2019-0049 | C47: 2020 | D47: 2019 | E47: 2014 | F47: Expansion Investments_B_Total Capital Costs | G47: 2019 | H47: ='App.2-FA Proposed REG Invest.'!I99 -> 0
A48: ='LDC Info'!$E$14 -> Kitchener-Wilmot Hydro Inc. | B48: EB-2019-0049 | C48: 2020 | D48: 2019 | E48: 2014 | F48: Expansion Investments_B_Total OM&A Start-Up | G48: 2019 | H48: ='App.2-FA Proposed REG Invest.'!I100 -> 0
A49: ='LDC Info'!$E$14 -> Kitchener-Wilmot Hydro Inc. | B49: EB-2019-0049 | C49: 2020 | D49: 2019 | E49: 2014 | F49: Expansion Investments_B_Total OM&A Ongoing | G49: 2019 | H49: ='App.2-FA Proposed REG Invest.'!I101 -> 0
A50: ='LDC Info'!$E$14 -> Kitchener-Wilmot Hydro Inc. | B50: EB-2019-0049 | C50: 2020 | D50: 2019 | E50: 2014 | F50: Expansion Investments_B_Total Capital Costs | G50: 2020 | H50: ='App.2-FA Proposed REG Invest.'!J99 -> 0
A51: ='LDC Info'!$E$14 -> Kitchener-Wilmot Hydro Inc. | B51: EB-2019-0049 | C51: 2020 | D51: 2019 | E51: 2014 | F51: Expansion Investments_B_Total OM&A Start-Up | G51: 2020 | H51: ='App.2-FA Proposed REG Invest.'!J100 -> 0
A52: ='LDC Info'!$E$14 -> Kitchener-Wilmot Hydro Inc. | B52: EB-2019-0049 | C52: 2020 | D52: 2019 | E52: 2014 | F52: Expansion Investments_B_Total OM&A Ongoing | G52: 2020 | H52: ='App.2-FA Proposed REG Invest.'!J101 -> 0
A53: ='LDC Info'!$E$14 -> Kitchener-Wilmot Hydro Inc. | B53: EB-2019-0049 | C53: 2020 | D53: 2019 | E53: 2014 | F53: Expansion Investments_B_Total Capital Costs | G53: 2021 | H53: ='App.2-FA Proposed REG Invest.'!K99 -> 0
A54: ='LDC Info'!$E$14 -> Kitchener-Wilmot Hydro Inc. | B54: EB-2019-0049 | C54: 2020 | D54: 2019 | E54: 2014 | F54: Expansion Investments_B_Total OM&A Start-Up | G54: 2021 | H54: ='App.2-FA Proposed REG Invest.'!K100 -> 0
A55: ='LDC Info'!$E$14 -> Kitchener-Wilmot Hydro Inc. | B55: EB-2019-0049 | C55: 2020 | D55: 2019 | E55: 2014 | F55: Expansion Investments_B_Total OM&A Ongoing | G55: 2021 | H55: ='App.2-FA Proposed REG Invest.'!K101 -> 0
A56: ='LDC Info'!$E$14 -> Kitchener-Wilmot Hydro Inc. | B56: EB-2019-0049 | C56: 2020 | D56: 2019 | E56: 2014 | F56: Expansion Investments_B_Total Capital Costs | G56: 2022 | H56: ='App.2-FA Proposed REG Invest.'!L99 -> 0
A57: ='LDC Info'!$E$14 -> Kitchener-Wilmot Hydro Inc. | B57: EB-2019-0049 | C57: 2020 | D57: 2019 | E57: 2014 | F57: Expansion Investments_B_Total OM&A Start-Up | G57: 2022 | H57: ='App.2-FA Proposed REG Invest.'!L100 -> 0
A58: ='LDC Info'!$E$14 -> Kitchener-Wilmot Hydro Inc. | B58: EB-2019-0049 | C58: 2020 | D58: 2019 | E58: 2014 | F58: Expansion Investments_B_Total OM&A Ongoing | G58: 2022 | H58: ='App.2-FA Proposed REG Invest.'!L101 -> 0
A59: ='LDC Info'!$E$14 -> Kitchener-Wilmot Hydro Inc. | B59: EB-2019-0049 | C59: 2020 | D59: 2019 | E59: 2014 | F59: Expansion Investments_B_Total Capital Costs | G59: 2023 | H59: ='App.2-FA Proposed REG Invest.'!M99 -> 0
A60: ='LDC Info'!$E$14 -> Kitchener-Wilmot Hydro Inc. | B60: EB-2019-0049 | C60: 2020 | D60: 2019 | E60: 2014 | F60: Expansion Investments_B_Total OM&A Start-Up | G60: 2023 | H60: ='App.2-FA Proposed REG Invest.'!M100 -> 0
A61: ='LDC Info'!$E$14 -> Kitchener-Wilmot Hydro Inc. | B61: EB-2019-0049 | C61: 2020 | D61: 2019 | E61: 2014 | F61: Expansion Investments_B_Total OM&A Ongoing | G61: 2023 | H61: ='App.2-FA Proposed REG Invest.'!M101 -> 0

Sheet App.2-FB Calc of REG Improvemnt
T1: File Number: | U1: =EBNUMBER -> EB-2019-0049
T2: Exhibit:
T3: Tab:
A4: TO BE UPDATED AT DRAFT RATE ORDER STAGE | T4: Schedule:
T5: Page:
T7: Date:
A9: Appendix 2-FB
A10: Calculation of Renewable Generation Connection Direct Benefits/Provincial Amount: Renewable Enabling Improvement Investments
A12: This table will calculate the distributor/provincial shares of the investments entered in Part A of Appendix 2-FA.
A13: Enter values in green shaded cells: WCA percentage, debt percentages, interest rates, kWh, tax rates, amortization period, CCA Class and percentage.
A14: For historical investments, enter these variables for your last cost of service test year. For 2017 and beyond, enter variables as in the application.
A15: Rate Riders are not calculated for the Test Year as these assets and costs are already in the distributor's rate base/revenue requirement.
C17: =F17-1 -> 2014 | F17: =I17-1 -> 2015 | I17: =L17-1 -> 2016 | L17: =O17-1 -> 2017 | O17: =R17-1 -> 2018 | R17: =BridgeYear -> 2019 | U17: =CONCATENATE(TestYear," Test Year") -> 2020 Test Year | X17: =TestYear+1 -> 2021 | AA17: =X17+1 -> 2022 | AB17: 2016 | AD17: =AA17+1 -> 2023 | AG17: =AD17+1 -> 2024
D18: Direct Benefit | E18: Provincial | G18: Direct Benefit | H18: Provincial | J18: Direct Benefit | K18: Provincial | M18: Direct Benefit | N18: Provincial | P18: Direct Benefit | Q18: Provincial | S18: Direct Benefit | T18: Provincial | V18: Direct Benefit | W18: Provincial | Y18: Direct Benefit | Z18: Provincial | AB18: Direct Benefit | AC18: Provincial | AE18: Direct Benefit | AF18: Provincial | AH18: Direct Benefit | AI18: Provincial
C19: Total | D19: 0.06 | E19: 0.94 | F19: Total | G19: 0.06 | H19: 0.94 | I19: Total | J19: 0.06 | K19: 0.94 | L19: Total | M19: 0.06 | N19: 0.94 | O19: Total | P19: 0.06 | Q19: 0.94 | R19: Total | S19: 0.06 | T19: 0.94 | U19: Total | V19: 0.06 | W19: 0.94 | X19: Total | Y19: 0.06 | Z19: 0.94 | AA19: Total | AB19: 0.06 | AC19: 0.94 | AD19: Total | AE19: 0.06 | AF19: 0.94 | AG19: Total | AH19: 0.06 | AI19: 0.94
A20: Net Fixed Assets (average) | C20: =F82 -> 0 | D20: =C20*D19 -> 0 | E20: =C20*E19 -> 0 | F20: =I82 -> 0 | G20: =F20*G19 -> 0 | H20: =F20*H19 -> 0 | I20: =J82 -> 0 | J20: =I20*J19 -> 0 | K20: =I20*K19 -> 0 | L20: =K82 -> 0 | M20: =L20*M19 -> 0 | N20: =L20*N19 -> 0 | O20: =L82 -> 0 | P20: =O20*P19 -> 0 | Q20: =O20*Q19 -> 0 | R20: =M82 -> 0 | S20: =R20*S19 -> 0 | T20: =R20*T19 -> 0 | U20: =N82 -> 0 | V20: =U20*V19 -> 0 | W20: =U20*W19 -> 0 | X20: =O82 -> 0 | Y20: =X20*Y19 -> 0 | Z20: =X20*Z19 -> 0 | AA20: =P82 -> 0 | AB20: =AA20*AB19 -> 0 | AC20: =AA20*AC19 -> 0 | AD20: =Q82 -> 0 | AE20: =AD20*AE19 -> 0 | AF20: =AD20*AF19 -> 0 | AG20: =R82 -> 0 | AH20: =AG20*AH19 -> 0 | AI20: =AG20*AI19 -> 0
A21: Incremental OM&A (on-going, N/A for Provincial Recovery) | C21: ='App.2-FA Proposed REG Invest.'!C64 -> 0 | D21: =C21 -> 0 | F21: ='App.2-FA Proposed REG Invest.'!D64 -> 0 | G21: =F21 -> 0 | I21: ='App.2-FA Proposed REG Invest.'!E64 -> 0 | J21: =I21 -> 0 | L21: ='App.2-FA Proposed REG Invest.'!F64 -> 0 | M21: =L21 -> 0 | O21: ='App.2-FA Proposed REG Invest.'!G64 -> 0 | P21: =O21 -> 0 | R21: ='App.2-FA Proposed REG Invest.'!H64 -> 0 | S21: =R21 -> 0 | U21: ='App.2-FA Proposed REG Invest.'!I64 -> 0 | V21: =U21 -> 0 | X21: ='App.2-FA Proposed REG Invest.'!J64 -> 0 | Y21: =X21 -> 0 | AA21: ='App.2-FA Proposed REG Invest.'!K64 -> 0 | AB21: =AA21 -> 0 | AD21: ='App.2-FA Proposed REG Invest.'!L64 -> 0 | AE21: =AD21 -> 0 | AG21: ='App.2-FA Proposed REG Invest.'!M64 -> 0 | AH21: =AG21 -> 0
A22: Incremental OM&A (start-up, applicable for Provincial Recovery) | C22: ='App.2-FA Proposed REG Invest.'!C63 -> 39516 | D22: =C22*D19 -> 2370.96 | E22: =C22*E19 -> 37145.04 | F22: ='App.2-FA Proposed REG Invest.'!D63 -> 7464.36 | G22: =F22*G19 -> 447.8616 | H22: =F22*H19 -> 7016.4984 | I22: ='App.2-FA Proposed REG Invest.'!E63 -> 8637 | J22: =I22*J19 -> 518.22 | K22: =I22*K19 -> 8118.78 | L22: ='App.2-FA Proposed REG Invest.'!F63 -> 42161 | M22: =L22*M19 -> 2529.66 | N22: =L22*N19 -> 39631.34 | O22: ='App.2-FA Proposed REG Invest.'!G63 -> 4609.35 | P22: =O22*P19 -> 276.561 | Q22: =O22*Q19 -> 4332.789 | R22: ='App.2-FA Proposed REG Invest.'!H63 -> 0 | S22: =R22*S19 -> 0 | T22: =R22*T19 -> 0 | U22: ='App.2-FA Proposed REG Invest.'!I63 -> 0 | V22: =U22*V19 -> 0 | W22: =U22*W19 -> 0 | X22: ='App.2-FA Proposed REG Invest.'!J63 -> 0 | Y22: =X22*Y19 -> 0 | Z22: =X22*Z19 -> 0 | AA22: ='App.2-FA Proposed REG Invest.'!K63 -> 0 | AB22: =AA22*AB19 -> 0 | AC22: =AA22*AC19 -> 0 | AD22: ='App.2-FA Proposed REG Invest.'!L63 -> 0 | AE22: =AD22*AE19 -> 0 | AF22: =AD22*AF19 -> 0 | AG22: ='App.2-FA Proposed REG Invest.'!M63 -> 0 | AH22: =AG22*AH19 -> 0 | AI22: =AG22*AI19 -> 0
A23: WCA | B23: 0.075 | D23: =(D21+D22)*$B$23 -> 177.822 | E23: =E22*$B$23 -> 2785.878 | G23: =(G21+G22)*$B$23 -> 33.58962 | H23: =H22*$B$23 -> 526.23738 | J23: =(J21+J22)*$B$23 -> 38.8665 | K23: =K22*$B$23 -> 608.9085 | M23: =(M21+M22)*$B$23 -> 189.7245 | N23: =N22*$B$23 -> 2972.3505 | P23: =(P21+P22)*$B$23 -> 20.742075 | Q23: =Q22*$B$23 -> 324.959175 | S23: =(S21+S22)*$B$23 -> 0 | T23: =T22*$B$23 -> 0 | V23: =(V21+V22)*$B$23 -> 0 | W23: =W22*$B$23 -> 0 | Y23: =(Y21+Y22)*$B$23 -> 0 | Z23: =Z22*$B$23 -> 0 | AB23: =(AB21+AB22)*$B$23 -> 0 | AC23: =AC22*$B$23 -> 0 | AE23: =(AE21+AE22)*$B$23 -> 0 | AF23: =AF22*$B$23 -> 0 | AH23: =(AH21+AH22)*$B$23 -> 0 | AI23: =AI22*$B$23 -> 0
A24: Rate Base | D24: =SUM(D20+D23) -> 177.822 | E24: =SUM(E20+E23) -> 2785.878 | G24: =SUM(G20+G23) -> 33.58962 | H24: =SUM(H20+H23) -> 526.23738 | J24: =SUM(J20+J23) -> 38.8665 | K24: =SUM(K20+K23) -> 608.9085 | M24: =SUM(M20+M23) -> 189.7245 | N24: =SUM(N20+N23) -> 2972.3505 | P24: =SUM(P20+P23) -> 20.742075 | Q24: =SUM(Q20+Q23) -> 324.959175 | S24: =SUM(S20+S23) -> 0 | T24: =SUM(T20+T23) -> 0 | V24: =SUM(V20+V23) -> 0 | W24: =SUM(W20+W23) -> 0 | Y24: =SUM(Y20+Y23) -> 0 | Z24: =SUM(Z20+Z23) -> 0 | AB24: =SUM(AB20+AB23) -> 0 | AC24: =SUM(AC20+AC23) -> 0 | AE24: =SUM(AE20+AE23) -> 0 | AF24: =SUM(AF20+AF23) -> 0 | AH24: =SUM(AH20+AH23) -> 0 | AI24: =SUM(AI20+AI23) -> 0
A27: Deemed ST Debt | B27: 0.04 | D27: =D24*$B$27 -> 7.11288 | E27: =E24*$B$27 -> 111.43512 | G27: =G24*$B$27 -> 1.3435848 | H27: =H24*$B$27 -> 21.0494952 | J27: =J24*$B$27 -> 1.55466 | K27: =K24*$B$27 -> 24.35634 | M27: =M24*$B$27 -> 7.58898 | N27: =N24*$B$27 -> 118.89402 | P27: =P24*$B$27 -> 0.829683 | Q27: =Q24*$B$27 -> 12.998367 | S27: =S24*$B$27 -> 0 | T27: =T24*$B$27 -> 0 | V27: =V24*$B$27 -> 0 | W27: =W24*$B$27 -> 0 | Y27: =Y24*$B$27 -> 0 | Z27: =Z24*$B$27 -> 0 | AB27: =AB24*$B$27 -> 0 | AC27: =AC24*$B$27 -> 0 | AE27: =AE24*$B$27 -> 0 | AF27: =AF24*$B$27 -> 0 | AH27: =AH24*$B$27 -> 0 | AI27: =AI24*$B$27 -> 0
A28: Deemed LT Debt | B28: 0.56 | D28: =D24*$B$28 -> 99.58032 | E28: =E24*$B$28 -> 1560.09168 | G28: =G24*$B$28 -> 18.8101872 | H28: =H24*$B$28 -> 294.6929328 | J28: =J24*$B$28 -> 21.76524 | K28: =K24*$B$28 -> 340.98876 | M28: =M24*$B$28 -> 106.24572 | N28: =N24*$B$28 -> 1664.51628 | P28: =P24*$B$28 -> 11.615562 | Q28: =Q24*$B$28 -> 181.977138 | S28: =S24*$B$28 -> 0 | T28: =T24*$B$28 -> 0 | V28: =V24*$B$28 -> 0 | W28: =W24*$B$28 -> 0 | Y28: =Y24*$B$28 -> 0 | Z28: =Z24*$B$28 -> 0 | AB28: =AB24*$B$28 -> 0 | AC28: =AC24*$B$28 -> 0 | AE28: =AE24*$B$28 -> 0 | AF28: =AF24*$B$28 -> 0 | AH28: =AH24*$B$28 -> 0 | AI28: =AI24*$B$28 -> 0
A29: Deemed Equity | B29: 0.4 | D29: =D24*$B$29 -> 71.1288 | E29: =E24*$B$29 -> 1114.3512 | G29: =G24*$B$29 -> 13.435848 | H29: =H24*$B$29 -> 210.494952 | J29: =J24*$B$29 -> 15.5466 | K29: =K24*$B$29 -> 243.5634 | M29: =M24*$B$29 -> 75.8898 | N29: =N24*$B$29 -> 1188.9402 | P29: =P24*$B$29 -> 8.29683 | Q29: =Q24*$B$29 -> 129.98367 | S29: =S24*$B$29 -> 0 | T29: =T24*$B$29 -> 0 | V29: =V24*$B$29 -> 0 | W29: =W24*$B$29 -> 0 | Y29: =Y24*$B$29 -> 0 | Z29: =Z24*$B$29 -> 0 | AB29: =AB24*$B$29 -> 0 | AC29: =AC24*$B$29 -> 0 | AE29: =AE24*$B$29 -> 0 | AF29: =AF24*$B$29 -> 0 | AH29: =AH24*$B$29 -> 0 | AI29: =AI24*$B$29 -> 0
A31: ST Interest | B31: 0.0282 | D31: =D27*$B31 -> 0.200583216 | E31: 3.142470384 | G31: =G27*$B31 -> 0.03788909136 | H31: 0.5935957646 | J31: =J27*$B31 -> 0.043841412 | K31: 0.686848788 | M31: =M27*$B31 -> 0.214009236 | N31: 3.352811364 | P31: =P27*$B31 -> 0.0233970606 | Q31: 0.3665539494 | S31: =S27*$B31 -> 0 | T31: 0 | V31: =V27*$B31 -> 0 | W31: 0 | Y31: =Y27*$B31 -> 0 | Z31: 0 | AB31: =AB27*$B31 -> 0 | AC31: 0 | AE31: =AE27*$B31 -> 0 | AF31: 0 | AH31: =AH27*$B31 -> 0 | AI31: 0
A32: LT Interest | B32: 0.0413 | D32: =D28*$B32 -> 4.112667216 | E32: 64.43178638 | G32: =G28*$B32 -> 0.7768607314 | H32: 12.17081812 | J32: 0.898904412 | K32: 14.08283579 | M32: 4.387948236 | N32: 68.74452236 | P32: 0.4797227106 | Q32: 7.515655799 | S32: 0 | T32: 0 | V32: 0 | W32: 0 | Y32: 0 | Z32: 0 | AB32: 0 | AC32: 0 | AE32: 0 | AF32: 0 | AH32: 0 | AI32: 0
A33: ROE | B33: 0.0898 | D33: =D29*$B33 -> 6.38736624 | E33: 100.0687378 | G33: =G29*$B33 -> 1.20653915 | H33: 18.90244669 | J33: 1.39608468 | K33: 21.87199332 | M33: 6.81490404 | N33: 106.76683 | P33: 0.745055334 | Q33: 11.67253357 | S33: 0 | T33: 0 | V33: 0 | W33: 0 | Y33: 0 | Z33: 0 | AB33: 0 | AC33: 0 | AE33: 0 | AF33: 0 | AH33: 0 | AI33: 0
A34: Cost of Capital Total | D34: =SUM(D31:D33) -> 10.70061667 | E34: =SUM(E31:E33) -> 167.6429945 | G34: =SUM(G31:G33) -> 2.021288973 | H34: =SUM(H31:H33) -> 31.66686058 | J34: =SUM(J31:J33) -> 2.338830504 | K34: =SUM(K31:K33) -> 36.6416779 | M34: =SUM(M31:M33) -> 11.41686151 | N34: =SUM(N31:N33) -> 178.8641637 | P34: =SUM(P31:P33) -> 1.248175105 | Q34: =SUM(Q31:Q33) -> 19.55474331 | S34: =SUM(S31:S33) -> 0 | T34: =SUM(T31:T33) -> 0 | V34: =SUM(V31:V33) -> 0 | W34: =SUM(W31:W33) -> 0 | Y34: =SUM(Y31:Y33) -> 0 | Z34: =SUM(Z31:Z33) -> 0 | AB34: =SUM(AB31:AB33) -> 0 | AC34: =SUM(AC31:AC33) -> 0 | AE34: =SUM(AE31:AE33) -> 0 | AF34: =SUM(AF31:AF33) -> 0 | AH34: =SUM(AH31:AH33) -> 0 | AI34: =SUM(AI31:AI33) -> 0
A36: OM&A | D36: =D21+D22 -> 2370.96 | E36: =E22 -> 37145.04 | G36: =G21+G22 -> 447.8616 | H36: =H22 -> 7016.4984 | J36: =J21+J22 -> 518.22 | K36: =K22 -> 8118.78 | M36: =M21+M22 -> 2529.66 | N36: =N22 -> 39631.34 | P36: =P21+P22 -> 276.561 | Q36: =Q22 -> 4332.789 | S36: =S21+S22 -> 0 | T36: =T22 -> 0 | V36: =V21+V22 -> 0 | W36: =W22 -> 0 | Y36: =Y21+Y22 -> 0 | Z36: =Z22 -> 0 | AB36: =AB21+AB22 -> 0 | AC36: =AC22 -> 0 | AE36: =AE21+AE22 -> 0 | AF36: =AF22 -> 0 | AH36: =AH21+AH22 -> 0 | AI36: =AI22 -> 0
A37: Amortization | C37: =D77 -> 0 | D37: =C37*D$19 -> 0 | E37: =C37*E$19 -> 0 | F37: =G77 -> 0 | G37: =F37*G$19 -> 0 | H37: =F37*H$19 -> 0 | I37: =J77 -> 0 | J37: =I37*J$19 -> 0 | K37: =I37*K$19 -> 0 | L37: =K77 -> 0 | M37: =L37*M$19 -> 0 | N37: =L37*N$19 -> 0 | O37: =L77 -> 0 | P37: =O37*P$19 -> 0 | Q37: =O37*Q$19 -> 0 | R37: =M77 -> 0 | S37: =R37*S$19 -> 0 | T37: =R37*T$19 -> 0 | U37: =N77 -> 0 | V37: =U37*V$19 -> 0 | W37: =U37*W$19 -> 0 | X37: =O76+O77 -> 0 | Y37: =X37*Y$19 -> 0 | Z37: =X37*Z$19 -> 0 | AA37: =P76+P77 -> 0 | AB37: =AA37*AB$19 -> 0 | AC37: =AA37*AC$19 -> 0 | AD37: =Q76+Q77 -> 0 | AE37: =AD37*AE$19 -> 0 | AF37: =AD37*AF$19 -> 0 | AG37: =R76+R77 -> 0 | AH37: =AG37*AH$19 -> 0 | AI37: =AG37*AI$19 -> 0
A38: Grossed-up PILs | D38: =D65 -> 0 | E38: =E65 -> 0 | G38: =G65 -> 0.4350107141 | H38: =H65 -> 6.815167854 | J38: =J65 -> 0.5033502588 | K38: =K65 -> 7.885820721 | M38: =M65 -> 2.457074246 | N38: =N65 -> 38.49416318 | P38: =P65 -> 0.2686253925 | Q38: =Q65 -> 4.208464483 | S38: =S65 -> 0 | T38: =T65 -> 0 | V38: =V65 -> 0 | W38: =W65 -> 0 | Y38: =Y65 -> 0 | Z38: =Z65 -> 0 | AB38: =AB65 -> 0 | AC38: =AC65 -> 0 | AE38: =AE65 -> 0 | AF38: =AF65 -> 0 | AH38: =AH65 -> 0 | AI38: =AI65 -> 0
A40: Revenue Requirement | D40: =SUM(D34:D38) -> 2381.660617 | E40: =SUM(E34:E38) -> 37312.68299 | G40: =SUM(G34:G38) -> 450.3178997 | H40: =SUM(H34:H38) -> 7054.980428 | J40: =SUM(J34:J38) -> 521.0621808 | K40: =SUM(K34:K38) -> 8163.307499 | M40: =SUM(M34:M38) -> 2543.533936 | N40: =SUM(N34:N38) -> 39848.69833 | P40: =SUM(P34:P38) -> 278.0778005 | Q40: =SUM(Q34:Q38) -> 4356.552208 | S40: =SUM(S34:S38) -> 0 | T40: =SUM(T34:T38) -> 0 | V40: =SUM(V34:V38) -> 0 | W40: =SUM(W34:W38) -> 0 | Y40: =SUM(Y34:Y38) -> 0 | Z40: =SUM(Z34:Z38) -> 0 | AB40: =SUM(AB34:AB38) -> 0 | AC40: =SUM(AC34:AC38) -> 0 | AE40: =SUM(AE34:AE38) -> 0 | AF40: =SUM(AF34:AF38) -> 0 | AH40: =SUM(AH34:AH38) -> 0 | AI40: =SUM(AI34:AI38) -> 0
A43: Provincial Rate Protection | E43: =E40 -> 37312.68299 | H43: =H40 -> 7054.980428 | K43: =K40 -> 8163.307499 | N43: =N40 -> 39848.69833 | Q43: =Q40 -> 4356.552208 | T43: =T40 -> 0 | W43: =W40 -> 0 | Z43: =Z40 -> 0 | AC43: =AC40 -> 0 | AF43: =AF40 -> 0 | AI43: =AI40 -> 0
A45: Monthly Amount Paid by IESO | E45: =E43/12 -> 3109.39025 | H45: =H43/12 -> 587.9150357 | K45: =K43/12 -> 680.2756249 | N45: =N43/12 -> 3320.724861 | Q45: =Q43/12 -> 363.0460173 | T45: =T43/12 -> 0 | W45: =W43/12 -> 0 | Z45: =Z43/12 -> 0 | AC45: =AC43/12 -> 0 | AF45: =AF43/12 -> 0 | AI45: =AI43/12 -> 0
A47: Note 1: The difference between the actual costs of approved eligible investments and revenue received from the IESO should be recorded in a variance account. The Board may provide
A48: regulatory accounting guidance regarding a variance account either in an individual proceeding or on a generic basis.
A49: Note 2: For the 2016 Test Year, Costs and Revenues of the Direct Benefit are to be included in the test year applicant Rate Base and Revenues.
A51: PILs Calculation
D52: =F17-1 -> 2014 | G52: =I17-1 -> 2015 | J52: =I17 -> 2016 | M52: =L17 -> 2017 | P52: =O17 -> 2018 | S52: =R17 -> 2019 | V52: =U17 -> 2020 Test Year | Y52: =X17 -> 2021 | AB52: =AA17 -> 2022 | AE52: =AD17 -> 2023 | AH52: =AG17 -> 2024
A53: Income Tax | D53: Direct Benefit | E53: Provincial | G53: Direct Benefit | H53: Provincial | J53: Direct Benefit | K53: Provincial | M53: Direct Benefit | N53: Provincial | P53: Direct Benefit | Q53: Provincial | S53: Direct Benefit | T53: Provincial | V53: Direct Benefit | W53: Provincial | Y53: Direct Benefit | Z53: Provincial | AB53: Direct Benefit | AC53: Provincial | AE53: Direct Benefit | AF53: Provincial | AH53: Direct Benefit | AI53: Provincial
AD54: Total | AG54: Total
A55: Net Income - ROE on Rate Base | D55: =D33 -> 6.38736624 | E55: =E33 -> 100.0687378 | G55: =G33 -> 1.20653915 | H55: =H33 -> 18.90244669 | J55: =J33 -> 1.39608468 | K55: =K33 -> 21.87199332 | M55: =M33 -> 6.81490404 | N55: =N33 -> 106.76683 | P55: =P33 -> 0.745055334 | Q55: =Q33 -> 11.67253357 | S55: =S33 -> 0 | T55: =T33 -> 0 | V55: =V33 -> 0 | W55: =W33 -> 0 | Y55: =Y33 -> 0 | Z55: =Z33 -> 0 | AB55: =AB33 -> 0 | AC55: =AC33 -> 0 | AE55: =AE33 -> 0 | AF55: =AF33 -> 0 | AH55: =AH33 -> 0 | AI55: =AI33 -> 0
A56: Amortization (6% DB and 94% P) | D56: =D37 -> 0 | E56: =E37 -> 0 | G56: =G37 -> 0 | H56: =H37 -> 0 | J56: =J37 -> 0 | K56: =K37 -> 0 | M56: =M37 -> 0 | N56: =N37 -> 0 | P56: =P37 -> 0 | Q56: =Q37 -> 0 | S56: =S37 -> 0 | T56: =T37 -> 0 | V56: =V37 -> 0 | W56: =W37 -> 0 | Y56: =Y37 -> 0 | Z56: =Z37 -> 0 | AB56: =AB37 -> 0 | AC56: =AC37 -> 0 | AE56: =AE37 -> 0 | AF56: =AF37 -> 0 | AH56: =AH37 -> 0 | AI56: =AI37 -> 0
A57: CCA (6% DB and 94% P) | D57: =-D94*D$19 -> 0 | E57: =-D94*E$19 -> 0 | G57: =-G94*G$19 -> 0 | H57: =-G94*H$19 -> 0 | J57: =-J94*J$19 -> 0 | K57: =-J94*K$19 -> 0 | M57: =-K94*M19 -> 0 | N57: =-K94*N$19 -> 0 | P57: =-L94*P$19 -> 0 | Q57: =-L94*Q$19 -> 0 | S57: =-M94*S$19 -> 0 | T57: =-M94*T$19 -> 0 | V57: =-N94*V$19 -> 0 | W57: =-N94*W$19 -> 0 | Y57: =-O94*Y$19 -> 0 | Z57: =-O94*Z$19 -> 0 | AB57: =-P94*AB$19 -> 0 | AC57: =-P94*AC$19 -> 0 | AE57: =-Q94*AE$19 -> 0 | AF57: =-Q94*AF$19 -> 0 | AH57: =-R94*AH$19 -> 0 | AI57: =-R94*AI$19 -> 0
A58: Taxable income | D58: =SUM(D55:D57) -> 6.38736624 | E58: =SUM(E55:E57) -> 100.0687378 | G58: =SUM(G55:G57) -> 1.20653915 | H58: =SUM(H55:H57) -> 18.90244669 | J58: =SUM(J55:J57) -> 1.39608468 | K58: =SUM(K55:K57) -> 21.87199332 | M58: =SUM(M55:M57) -> 6.81490404 | N58: =SUM(N55:N57) -> 106.76683 | P58: =SUM(P55:P57) -> 0.745055334 | Q58: =SUM(Q55:Q57) -> 11.67253357 | S58: =SUM(S55:S57) -> 0 | T58: =SUM(T55:T57) -> 0 | V58: =SUM(V55:V57) -> 0 | W58: =SUM(W55:W57) -> 0 | Y58: =SUM(Y55:Y57) -> 0 | Z58: =SUM(Z55:Z57) -> 0 | AB58: =SUM(AB55:AB57) -> 0 | AC58: =SUM(AC55:AC57) -> 0 | AE58: =SUM(AE55:AE57) -> 0 | AF58: =SUM(AF55:AF57) -> 0 | AH58: =SUM(AH55:AH57) -> 0 | AI58: =SUM(AI55:AI57) -> 0
A60: Tax Rate (to be entered) | G60: 0.265 | H60: 0.265 | J60: 0.265 | K60: 0.265 | M60: 0.265 | N60: 0.265 | P60: 0.265 | Q60: 0.265 | S60: 0.265 | T60: 0.265
A62: Income Taxes Payable | D62: =D58*D60 -> 0 | E62: =E58*E60 -> 0 | G62: =G58*G60 -> 0.3197328749 | H62: =H58*H60 -> 5.009148373 | J62: =J58*J60 -> 0.3699624402 | K62: =K58*K60 -> 5.79607823 | M62: =M58*M60 -> 1.805949571 | N62: =N58*N60 -> 28.29320994 | P62: =P58*P60 -> 0.1974396635 | Q62: =Q58*Q60 -> 3.093221395 | S62: =S58*S60 -> 0 | T62: =T58*T60 -> 0 | V62: =V58*V60 -> 0 | W62: =W58*W60 -> 0 | Y62: =Y58*Y60 -> 0 | Z62: =Z58*Z60 -> 0 | AB62: =AB58*AB60 -> 0 | AC62: =AC58*AC60 -> 0 | AE62: =AE58*AE60 -> 0 | AF62: =AF58*AF60 -> 0 | AH62: =AH58*AH60 -> 0 | AI62: =AI58*AI60 -> 0
A63: Gross Up
A64: Income Taxes Payable | D64: =D62/(1-D60) -> 0 | E64: =E62/(1-E60) -> 0 | G64: =G62/(1-G60) -> 0.4350107141 | H64: =H62/(1-H60) -> 6.815167854 | J64: =J62/(1-J60) -> 0.5033502588 | K64: =K62/(1-K60) -> 7.885820721 | M64: =M62/(1-M60) -> 2.457074246 | N64: =N62/(1-N60) -> 38.49416318 | P64: =P62/(1-P60) -> 0.2686253925 | Q64: =Q62/(1-Q60) -> 4.208464483 | S64: =S62/(1-S60) -> 0 | T64: =T62/(1-T60) -> 0 | V64: =V62/(1-V60) -> 0 | W64: =W62/(1-W60) -> 0 | Y64: =Y62/(1-Y60) -> 0 | Z64: =Z62/(1-Z60) -> 0 | AB64: =AB62/(1-AB60) -> 0 | AC64: =AC62/(1-AC60) -> 0 | AE64: =AE62/(1-AE60) -> 0 | AF64: =AF62/(1-AF60) -> 0 | AH64: =AH62/(1-AH60) -> 0 | AI64: =AI62/(1-AI60) -> 0
A65: Grossed Up PILs | D65: =SUM(D64:D64) -> 0 | E65: =SUM(E64:E64) -> 0 | G65: =SUM(G64:G64) -> 0.4350107141 | H65: =SUM(H64:H64) -> 6.815167854 | J65: =SUM(J64:J64) -> 0.5033502588 | K65: =SUM(K64:K64) -> 7.885820721 | M65: =SUM(M64:M64) -> 2.457074246 | N65: =SUM(N64:N64) -> 38.49416318 | P65: =SUM(P64:P64) -> 0.2686253925 | Q65: =SUM(Q64:Q64) -> 4.208464483 | S65: =SUM(S64:S64) -> 0 | T65: =SUM(T64:T64) -> 0 | V65: =SUM(V64:V64) -> 0 | W65: =SUM(W64:W64) -> 0 | Y65: =SUM(Y64:Y64) -> 0 | Z65: =SUM(Z64:Z64) -> 0 | AB65: =SUM(AB64:AB64) -> 0 | AC65: =SUM(AC64:AC64) -> 0 | AE65: =SUM(AE64:AE64) -> 0 | AF65: =SUM(AF64:AF64) -> 0 | AH65: =SUM(AH64:AH64) -> 0 | AI65: =SUM(AI64:AI64) -> 0
H68: =I68-1 -> 2014 | I68: 2015 | J68: 2016 | K68: 2017 | L68: 2018 | M68: 2019 | N68: =TestYear -> 2020 | O68: =N68+1 -> 2021 | P68: =O68+1 -> 2022 | Q68: =P68+1 -> 2023 | R68: =Q68+1 -> 2024
A69: Net Fixed Assets
B70: Enter applicable amortization in years: | F70: 25
A71: Opening Gross Fixed Assets | J71: =I73 -> 0 | K71: =J73 -> 0 | L71: 0 | M71: 0 | N71: 0 | O71: 0 | P71: 0 | Q71: 0 | R71: 0
A72: Gross Capital Additions | H72: ='App.2-FA Proposed REG Invest.'!C62 -> 0 | I72: ='App.2-FA Proposed REG Invest.'!D62 -> 0 | J72: ='App.2-FA Proposed REG Invest.'!E62 -> 0 | K72: ='App.2-FA Proposed REG Invest.'!F62 -> 0 | L72: ='App.2-FA Proposed REG Invest.'!G62 -> 0 | M72: ='App.2-FA Proposed REG Invest.'!H62 -> 0 | N72: ='App.2-FA Proposed REG Invest.'!I62 -> 0 | O72: ='App.2-FA Proposed REG Invest.'!J62 -> 0 | P72: ='App.2-FA Proposed REG Invest.'!K62 -> 0 | Q72: ='App.2-FA Proposed REG Invest.'!L62 -> 0 | R72: ='App.2-FA Proposed REG Invest.'!M62 -> 0
A73: Closing Gross Fixed Assets | H73: =SUM(H71:H72) -> 0 | I73: 0 | J73: =SUM(J71:J72) -> 0 | K73: 0 | L73: 0 | M73: 0 | N73: 0 | O73: 0 | P73: 0 | Q73: 0 | R73: 0
A75: Opening Accumulated Amortization | K75: =+J78 -> 0 | L75: =K78 -> 0 | M75: 0 | N75: 0 | O75: 0 | P75: 0 | Q75: 0 | R75: 0
A76: Current Year Amortization (before additions) | H76: =IF(ISERROR(H71/$F$70), 0, H71/$F$70) -> 0 | I76: =IF(ISERROR(I71/$F$70), 0, I71/$F$70) -> 0 | J76: 0 | K76: 0 | L76: 0 | M76: 0 | N76: 0 | O76: 0 | P76: 0 | Q76: 0 | R76: 0
A77: Additions (half year) | H77: =H72/$F$70/2 -> 0 | I77: =I72/$F$70/2 -> 0 | J77: 0 | K77: 0 | L77: 0 | M77: 0 | N77: 0 | O77: =O72/F70/2 -> 0 | P77: =P72/F70/2 -> 0 | Q77: =Q72/F70/2 -> 0 | R77: =R72/F70/2 -> 0
A78: Closing Accumulated Amortization | H78: =SUM(H75+H76+H77) -> 0 | I78: =SUM(I75+I76+I77) -> 0 | J78: 0 | K78: 0 | L78: 0 | M78: 0 | N78: 0 | O78: =SUM(O75:O77) -> 0 | P78: =SUM(P75:P77) -> 0 | Q78: =SUM(Q75:Q77) -> 0 | R78: =SUM(R75:R77) -> 0
A80: Opening Net Fixed Assets | H80: =H71-H75 -> 0 | I80: =I71-I75 -> 0 | J80: 0 | K80: 0 | L80: 0 | M80: 0 | N80: 0 | O80: =N81 -> 0 | P80: =O81 -> 0 | Q80: =P81 -> 0 | R80: =Q81 -> 0
A81: Closing Net Fixed Assets | H81: =H73-H78 -> 0 | I81: 0 | J81: =J73-J78 -> 0 | K81: 0 | L81: 0 | M81: 0 | N81: 0 | O81: 0 | P81: 0 | Q81: 0 | R81: 0
A82: Average Net Fixed Assets | H82: =SUM(H80:H81)/2 -> 0 | I82: 0 | J82: =SUM(J80:J81)/2 -> 0 | K82: 0 | L82: 0 | M82: 0 | N82: 0 | O82: 0 | P82: 0 | Q82: 0 | R82: 0
A84: UCC for PILs Calculation
H85: =H68 -> 2014 | I85: =I68 -> 2015 | J85: =J68 -> 2016 | K85: =K68 -> 2017 | L85: 2018 | M85: 2019 | N85: 2020 | O85: 2021 | P85: 2022 | Q85: 2023 | R85: 2024
A87: Opening UCC | J87: =I95 -> 0 | K87: =J95 -> 0 | L87: 0 | M87: 0 | N87: 0 | O87: 0 | P87: 0 | Q87: 0 | R87: 0
A88: Capital Additions (from Appendix 2-FA) | H88: =H72 -> 0 | I88: 0 | J88: =J72 -> 0 | K88: 0 | L88: 0 | M88: 0 | N88: 0 | O88: 0 | P88: 0 | Q88: 0 | R88: 0
A89: UCC Before Half Year Rule | H89: =SUM(H87:H88) -> 0 | I89: 0 | J89: =SUM(J87:J88) -> 0 | K89: 0 | L89: 0 | M89: 0 | N89: 0 | O89: 0 | P89: 0 | Q89: 0 | R89: 0
A90: Half Year Rule (1/2 Additions - Disposals) | H90: =H88/2 -> 0 | I90: 0 | J90: =J88/2 -> 0 | K90: 0 | L90: 0 | M90: 0 | N90: 0 | O90: 0 | P90: 0 | Q90: 0 | R90: 0
A91: Reduced UCC | H91: =H89-H90 -> 0 | I91: 0 | J91: =J89-J90 -> 0 | K91: 0 | L91: 0 | M91: 0 | N91: 0 | O91: 0 | P91: 0 | Q91: 0 | R91: 0
A92: CCA Rate Class (to be entered) | F92: 47 | H92: =E92 -> 0 | I92: =F92 -> 47 | J92: =F92 -> 47 | K92: =J92 -> 47 | L92: 47 | M92: 47 | N92: 47 | O92: 47 | P92: 47 | Q92: 47 | R92: 47
A93: CCA Rate (to be entered) | F93: 0.08 | H93: =E93 -> 0 | I93: =F93 -> 0.08 | J93: =F93 -> 0.08 | K93: 0.08 | L93: 0.08 | M93: 0.08 | N93: 0.08 | O93: 0.08 | P93: 0.08 | Q93: 0.08 | R93: 0.08
A94: CCA | H94: =H91*H93 -> 0 | I94: 0 | J94: =J91*J93 -> 0 | K94: 0 | L94: 0 | M94: 0 | N94: 0 | O94: 0 | P94: 0 | Q94: 0 | R94: 0
A95: Closing UCC | H95: =H89-H94 -> 0 | I95: 0 | J95: =J89-J94 -> 0 | K95: 0 | L95: 0 | M95: 0 | N95: 0 | O95: 0 | P95: 0 | Q95: 0 | R95: 0

Sheet Hidden_REG Improvement (hidden)
A1: Utility Name | B1: EB Number | C1: Test Year | D1: Bridge Year | E1: Last Rebasing Year | F1: Renewable Generation Connection Direct Benefits/Provincial Amount Renewable Enabling Improvement Investments | G1: Year | H1: Amount
A2: ='LDC Info'!$E$14 -> Kitchener-Wilmot Hydro Inc. | B2: =EBNUMBER -> EB-2019-0049 | C2: =TestYear -> 2020 | D2: =BridgeYear -> 2019 | E2: =RebaseYear -> 2014 | F2: Provincial Rate Protection | G2: 2014 | H2: ='App.2-FB Calc of REG Improvemnt'!H43 -> 7054.980428
A3: ='LDC Info'!$E$14 -> Kitchener-Wilmot Hydro Inc. | B3: EB-2019-0049 | C3: 2020 | D3: 2019 | E3: 2014 | F3: Provincial Rate Protection | G3: 2015 | H3: ='App.2-FB Calc of REG Improvemnt'!K43 -> 8163.307499
A4: ='LDC Info'!$E$14 -> Kitchener-Wilmot Hydro Inc. | B4: EB-2019-0049 | C4: 2020 | D4: 2019 | E4: 2014 | F4: Provincial Rate Protection | G4: 2016 | H4: ='App.2-FB Calc of REG Improvemnt'!N43 -> 39848.69833
A5: ='LDC Info'!$E$14 -> Kitchener-Wilmot Hydro Inc. | B5: EB-2019-0049 | C5: 2020 | D5: 2019 | E5: 2014 | F5: Provincial Rate Protection | G5: 2017 | H5: ='App.2-FB Calc of REG Improvemnt'!Q43 -> 4356.552208
A6: ='LDC Info'!$E$14 -> Kitchener-Wilmot Hydro Inc. | B6: EB-2019-0049 | C6: 2020 | D6: 2019 | E6: 2014 | F6: Provincial Rate Protection | G6: 2018 | H6: ='App.2-FB Calc of REG Improvemnt'!T43 -> 0
A7: ='LDC Info'!$E$14 -> Kitchener-Wilmot Hydro Inc. | B7: EB-2019-0049 | C7: 2020 | D7: 2019 | E7: 2014 | F7: Provincial Rate Protection | G7: 2019 | H7: ='App.2-FB Calc of REG Improvemnt'!W43 -> 0
A8: ='LDC Info'!$E$14 -> Kitchener-Wilmot Hydro Inc. | B8: EB-2019-0049 | C8: 2020 | D8: 2019 | E8: 2014 | F8: Provincial Rate Protection | G8: 2020 | H8: ='App.2-FB Calc of REG Improvemnt'!Z43 -> 0
A9: ='LDC Info'!$E$14 -> Kitchener-Wilmot Hydro Inc. | B9: EB-2019-0049 | C9: 2020 | D9: 2019 | E9: 2014 | F9: Provincial Rate Protection | G9: 2021 | H9: ='App.2-FB Calc of REG Improvemnt'!AC43 -> 0
A10: ='LDC Info'!$E$14 -> Kitchener-Wilmot Hydro Inc. | B10: EB-2019-0049 | C10: 2020 | D10: 2019 | E10: 2014 | F10: Provincial Rate Protection | G10: 2022 | H10: ='App.2-FB Calc of REG Improvemnt'!AF43 -> 0
A11: ='LDC Info'!$E$14 -> Kitchener-Wilmot Hydro Inc. | B11: EB-2019-0049 | C11: 2020 | D11: 2019 | E11: 2014 | F11: Provincial Rate Protection | G11: 2023 | H11: ='App.2-FB Calc of REG Improvemnt'!AI43 -> 0

Sheet App.2-FC Calc of REG Expansion (hidden)
Q1: File Number: | R1: =EBNUMBER -> EB-2019-0049
Q2: Exhibit:
Q3: Tab:
A4: TO BE UPDATED AT THE DRAFT RATE ORDER STAGE | Q4: Schedule:
Q5: Page:
Q7: Date:
A9: Appendix 2-FC
A10: Calculation of Renewable Generation Connection Direct Benefits/Provincial Amount: Renewable Expansion Investments
A12: This table will calculate the distributor/provincial shares of the investments entered in Part B of Appendix 2-FA.
A13: Enter values in green shaded cells: WCA percentage, debt percentages, interest rates, kWh, tax rates, amortization period, CCA Class and percentage.
A14: For historical investments, enter these variables for your last cost of service test year. For 2016 and beyond, enter variables as in the application.
A15: Rate Riders are not calculated for the Test Year as these assets and costs are already in the distributor's rate base.
D18: =G18-1 -> 2015 | G18: =J18-1 -> 2016 | J18: =M18-1 -> 2017 | M18: =P18-1 -> 2018 | P18: =BridgeYear -> 2019 | S18: =CONCATENATE(TestYear," Test Year") -> 2020 Test Year | V18: =TestYear+1 -> 2021 | W18: 2016 | Y18: =V18+1 -> 2022 | AB18: =Y18+1 -> 2023 | AE18: =AB18+1 -> 2024
E19: Direct Benefit | F19: Provincial | H19: Direct Benefit | I19: Provincial | K19: Direct Benefit | L19: Provincial | N19: Direct Benefit | O19: Provincial | Q19: Direct Benefit | R19: Provincial | T19: Direct Benefit | U19: Provincial | W19: Direct Benefit | X19: Provincial | Z19: Direct Benefit | AA19: Provincial | AC19: Direct Benefit | AD19: Provincial | AF19: Direct Benefit | AG19: Provincial
D20: Total | E20: 0.17 | F20: 0.83 | G20: Total | H20: 0.17 | I20: 0.83 | J20: Total | K20: 0.17 | L20: 0.83 | M20: Total | N20: 0.17 | O20: 0.83 | P20: Total | Q20: 0.17 | R20: 0.83 | S20: Total | T20: 0.17 | U20: 0.83 | V20: Total | W20: 0.17 | X20: 0.83 | Y20: Total | Z20: 0.17 | AA20: 0.83 | AB20: Total | AC20: 0.17 | AD20: 0.83 | AE20: Total | AF20: 0.17 | AG20: 0.83
A21: Net Fixed Assets (average) | D21: =J82 -> 0 | E21: =D21*E20 -> 0 | F21: =D21*F20 -> 0 | G21: =G82 -> 0 | H21: =G21*H20 -> 0 | I21: =G21*I20 -> 0 | J21: =H82 -> 0 | K21: =J21*K20 -> 0 | L21: =J21*L20 -> 0 | M21: =I82 -> 0 | N21: =M21*N20 -> 0 | O21: =M21*O20 -> 0 | P21: =J82 -> 0 | Q21: =P21*Q20 -> 0 | R21: =P21*R20 -> 0 | S21: =K82 -> 0 | T21: =S21*T20 -> 0 | U21: =S21*U20 -> 0 | V21: =L82 -> 0 | W21: =V21*W20 -> 0 | X21: =V21*X20 -> 0 | Y21: =M82 -> 0 | Z21: =Y21*Z20 -> 0 | AA21: =Y21*AA20 -> 0 | AB21: =N82 -> 0 | AC21: =AB21*AC20 -> 0 | AD21: =AB21*AD20 -> 0 | AE21: =O82 -> 0 | AF21: =AE21*AF20 -> 0 | AG21: =AE21*AG20 -> 0
A22: Incremental OM&A (on-going, N/A for Provincial Recovery) | D22: ='App.2-FA Proposed REG Invest.'!D$101 -> 0 | E22: =D22 -> 0 | G22: ='App.2-FA Proposed REG Invest.'!E$101 -> 0 | H22: =G22 -> 0 | J22: ='App.2-FA Proposed REG Invest.'!F$101 -> 0 | K22: =J22 -> 0 | M22: ='App.2-FA Proposed REG Invest.'!G$101 -> 0 | N22: =M22 -> 0 | P22: ='App.2-FA Proposed REG Invest.'!H$101 -> 0 | Q22: =P22 -> 0 | S22: ='App.2-FA Proposed REG Invest.'!I$101 -> 0 | T22: =S22 -> 0 | V22: ='App.2-FA Proposed REG Invest.'!J$101 -> 0 | W22: =V22 -> 0 | Y22: ='App.2-FA Proposed REG Invest.'!K$101 -> 0 | Z22: =Y22 -> 0 | AB22: ='App.2-FA Proposed REG Invest.'!L$101 -> 0 | AC22: =AB22 -> 0 | AE22: ='App.2-FA Proposed REG Invest.'!M$101 -> 0 | AF22: =AE22 -> 0
A23: Incremental OM&A (start-up, applicable for Provincial Recovery) | D23: ='App.2-FA Proposed REG Invest.'!D$100 -> 0 | E23: =D23*E20 -> 0 | F23: =D23*F20 -> 0 | G23: ='App.2-FA Proposed REG Invest.'!E$100 -> 0 | H23: =G23*H20 -> 0 | I23: =G23*I20 -> 0 | J23: ='App.2-FA Proposed REG Invest.'!F$100 -> 0 | K23: =J23*K20 -> 0 | L23: =J23*L20 -> 0 | M23: ='App.2-FA Proposed REG Invest.'!G$100 -> 0 | N23: =M23*N20 -> 0 | O23: =M23*O20 -> 0 | P23: ='App.2-FA Proposed REG Invest.'!H$100 -> 0 | Q23: =P23*Q20 -> 0 | R23: =P23*R20 -> 0 | S23: ='App.2-FA Proposed REG Invest.'!I$100 -> 0 | T23: =S23*T20 -> 0 | U23: =S23*U20 -> 0 | V23: ='App.2-FA Proposed REG Invest.'!J$100 -> 0 | W23: =V23*W20 -> 0 | X23: =V23*X20 -> 0 | Y23: ='App.2-FA Proposed REG Invest.'!K$100 -> 0 | Z23: =Y23*Z20 -> 0 | AA23: =Y23*AA20 -> 0 | AB23: ='App.2-FA Proposed REG Invest.'!L$100 -> 0 | AC23: =AB23*AC20 -> 0 | AD23: =AB23*AD20 -> 0 | AE23: ='App.2-FA Proposed REG Invest.'!M$100 -> 0 | AF23: =AE23*AF20 -> 0 | AG23: =AE23*AG20 -> 0
A24: WCA | E24: =(E22+E23)*$B$24 -> 0 | F24: =F23*$B$24 -> 0 | H24: =(H22+H23)*$B$24 -> 0 | I24: =I23*$B$24 -> 0 | K24: =(K22+K23)*$B$24 -> 0 | L24: =L23*$B$24 -> 0 | N24: =(N22+N23)*$B$24 -> 0 | O24: =O23*$B$24 -> 0 | Q24: =(Q22+Q23)*$B$24 -> 0 | R24: =R23*$B$24 -> 0 | T24: =(T22+T23)*$B$24 -> 0 | U24: =U23*$B$24 -> 0 | W24: =(W22+W23)*$B$24 -> 0 | X24: =X23*$B$24 -> 0 | Z24: =(Z22+Z23)*$B$24 -> 0 | AA24: =AA23*$B$24 -> 0 | AC24: =(AC22+AC23)*$B$24 -> 0 | AD24: =AD23*$B$24 -> 0 | AF24: =(AF22+AF23)*$B$24 -> 0 | AG24: =AG23*$B$24 -> 0
A25: Rate Base | E25: =SUM(E21+E24) -> 0 | F25: =SUM(F21+F24) -> 0 | H25: =SUM(H21+H24) -> 0 | I25: =SUM(I21+I24) -> 0 | K25: =SUM(K21+K24) -> 0 | L25: =SUM(L21+L24) -> 0 | N25: =SUM(N21+N24) -> 0 | O25: =SUM(O21+O24) -> 0 | Q25: =SUM(Q21+Q24) -> 0 | R25: =SUM(R21+R24) -> 0 | T25: =SUM(T21+T24) -> 0 | U25: =SUM(U21+U24) -> 0 | W25: =SUM(W21+W24) -> 0 | X25: =SUM(X21+X24) -> 0 | Z25: =SUM(Z21+Z24) -> 0 | AA25: =SUM(AA21+AA24) -> 0 | AC25: =SUM(AC21+AC24) -> 0 | AD25: =SUM(AD21+AD24) -> 0 | AF25: =SUM(AF21+AF24) -> 0 | AG25: =SUM(AG21+AG24) -> 0
A28: Deemed ST Debt | E28: =E25*$B$28 -> 0 | F28: =F25*$B$28 -> 0 | H28: =H25*$B$28 -> 0 | I28: =I25*$B$28 -> 0 | K28: =K25*$B$28 -> 0 | L28: =L25*$B$28 -> 0 | N28: =N25*$B$28 -> 0 | O28: =O25*$B$28 -> 0 | Q28: =Q25*$B$28 -> 0 | R28: =R25*$B$28 -> 0 | T28: =T25*$B$28 -> 0 | U28: =U25*$B$28 -> 0 | W28: =W25*$B$28 -> 0 | X28: =X25*$B$28 -> 0 | Z28: =Z25*$B$28 -> 0 | AA28: =AA25*$B$28 -> 0 | AC28: =AC25*$B$28 -> 0 | AD28: =AD25*$B$28 -> 0 | AF28: =AF25*$B$28 -> 0 | AG28: =AG25*$B$28 -> 0
A29: Deemed LT Debt | E29: =E25*$B$29 -> 0 | F29: =F25*$B$29 -> 0 | H29: =H25*$B$29 -> 0 | I29: =I25*$B$29 -> 0 | K29: =K25*$B$29 -> 0 | L29: =L25*$B$29 -> 0 | N29: =N25*$B$29 -> 0 | O29: =O25*$B$29 -> 0 | Q29: =Q25*$B$29 -> 0 | R29: =R25*$B$29 -> 0 | T29: =T25*$B$29 -> 0 | U29: =U25*$B$29 -> 0 | W29: =W25*$B$29 -> 0 | X29: =X25*$B$29 -> 0 | Z29: =Z25*$B$29 -> 0 | AA29: =AA25*$B$29 -> 0 | AC29: =AC25*$B$29 -> 0 | AD29: =AD25*$B$29 -> 0 | AF29: =AF25*$B$29 -> 0 | AG29: =AG25*$B$29 -> 0
A30: Deemed Equity | E30: =E25*$B$30 -> 0 | F30: =F25*$B$30 -> 0 | H30: =H25*$B$30 -> 0 | I30: =I25*$B$30 -> 0 | K30: =K25*$B$30 -> 0 | L30: =L25*$B$30 -> 0 | N30: =N25*$B$30 -> 0 | O30: =O25*$B$30 -> 0 | Q30: =Q25*$B$30 -> 0 | R30: =R25*$B$30 -> 0 | T30: =T25*$B$30 -> 0 | U30: =U25*$B$30 -> 0 | W30: =W25*$B$30 -> 0 | X30: =X25*$B$30 -> 0 | Z30: =Z25*$B$30 -> 0 | AA30: =AA25*$B$30 -> 0 | AC30: =AC25*$B$30 -> 0 | AD30: =AD25*$B$30 -> 0 | AF30: =AF25*$B$30 -> 0 | AG30: =AG25*$B$30 -> 0
A32: ST Interest | E32: =E28*$B$32 -> 0 | F32: =F28*$B$32 -> 0 | H32: =H28*$B$32 -> 0 | I32: =I28*$B$32 -> 0 | K32: =K28*$B$32 -> 0 | L32: =L28*$B$32 -> 0 | N32: =N28*$B$32 -> 0 | O32: =O28*$B$32 -> 0 | Q32: =Q28*$B$32 -> 0 | R32: =R28*$B$32 -> 0 | T32: =T28*$B$32 -> 0 | U32: =U28*$B$32 -> 0 | W32: =W28*$B$32 -> 0 | X32: =X28*$B$32 -> 0 | Z32: =Z28*$B$32 -> 0 | AA32: =AA28*$B$32 -> 0 | AC32: =AC28*$B$32 -> 0 | AD32: =AD28*$B$32 -> 0 | AF32: =AF28*$B$32 -> 0 | AG32: =AG28*$B$32 -> 0
A33: LT Interest | E33: =E29*$B$33 -> 0 | F33: =F29*$B$33 -> 0 | H33: =H29*$B$33 -> 0 | I33: =I29*$B$33 -> 0 | K33: =K29*$B$33 -> 0 | L33: =L29*$B$33 -> 0 | N33: =N29*$B$33 -> 0 | O33: =O29*$B$33 -> 0 | Q33: =Q29*$B$33 -> 0 | R33: =R29*$B$33 -> 0 | T33: =T29*$B$33 -> 0 | U33: =U29*$B$33 -> 0 | W33: =W29*$B$33 -> 0 | X33: =X29*$B$33 -> 0 | Z33: =Z29*$B$33 -> 0 | AA33: =AA29*$B$33 -> 0 | AC33: =AC29*$B$33 -> 0 | AD33: =AD29*$B$33 -> 0 | AF33: =AF29*$B$33 -> 0 | AG33: =AG29*$B$33 -> 0
A34: ROE | E34: =E30*$B$34 -> 0 | F34: =F30*$B$34 -> 0 | H34: =H30*$B$34 -> 0 | I34: =I30*$B$34 -> 0 | K34: =K30*$B$34 -> 0 | L34: =L30*$B$34 -> 0 | N34: =N30*$B$34 -> 0 | O34: =O30*$B$34 -> 0 | Q34: =Q30*$B$34 -> 0 | R34: =R30*$B$34 -> 0 | T34: =T30*$B$34 -> 0 | U34: =U30*$B$34 -> 0 | W34: =W30*$B$34 -> 0 | X34: =X30*$B$34 -> 0 | Z34: =Z30*$B$34 -> 0 | AA34: =AA30*$B$34 -> 0 | AC34: =AC30*$B$34 -> 0 | AD34: =AD30*$B$34 -> 0 | AF34: =AF30*$B$34 -> 0 | AG34: =AG30*$B$34 -> 0
A35: Cost of Capital Total | E35: =SUM(E32:E34) -> 0 | F35: =SUM(F32:F34) -> 0 | H35: =SUM(H32:H34) -> 0 | I35: =SUM(I32:I34) -> 0 | K35: =SUM(K32:K34) -> 0 | L35: =SUM(L32:L34) -> 0 | N35: =SUM(N32:N34) -> 0 | O35: =SUM(O32:O34) -> 0 | Q35: =SUM(Q32:Q34) -> 0 | R35: =SUM(R32:R34) -> 0 | T35: =SUM(T32:T34) -> 0 | U35: =SUM(U32:U34) -> 0 | W35: =SUM(W32:W34) -> 0 | X35: =SUM(X32:X34) -> 0 | Z35: =SUM(Z32:Z34) -> 0 | AA35: =SUM(AA32:AA34) -> 0 | AC35: =SUM(AC32:AC34) -> 0 | AD35: =SUM(AD32:AD34) -> 0 | AF35: =SUM(AF32:AF34) -> 0 | AG35: =SUM(AG32:AG34) -> 0
A37: OM&A | E37: =E22+E23 -> 0 | F37: =F23 -> 0 | H37: =H22+H23 -> 0 | I37: =I23 -> 0 | K37: =K22+K23 -> 0 | L37: =L23 -> 0 | N37: =N22+N23 -> 0 | O37: =O23 -> 0 | Q37: =Q22+Q23 -> 0 | R37: =R23 -> 0 | T37: =T22+T23 -> 0 | U37: =U23 -> 0 | W37: =W22+W23 -> 0 | X37: =X23 -> 0 | Z37: =Z22+Z23 -> 0 | AA37: =AA23 -> 0 | AC37: =AC22+AC23 -> 0 | AD37: =AD23 -> 0 | AF37: =AF22+AF23 -> 0 | AG37: =AG23 -> 0
A38: Amortization | D38: =D78 -> 0 | E38: =D38*E$20 -> 0 | F38: =D38*F$20 -> 0 | G38: =G78 -> 0 | H38: =G38*H$20 -> 0 | I38: =G38*I$20 -> 0 | J38: =H78 -> 0 | K38: =J38*K$20 -> 0 | L38: =J38*L$20 -> 0 | M38: =I78 -> 0 | N38: =M38*N$20 -> 0 | O38: =M38*O$20 -> 0 | P38: =J78 -> 0 | Q38: =P38*Q$20 -> 0 | R38: =P38*R$20 -> 0 | S38: =K76+K77 -> 0 | T38: =S38*T$20 -> 0 | U38: =S38*U$20 -> 0 | V38: =L76+L77 -> 0 | W38: =V38*W$20 -> 0 | X38: =V38*X$20 -> 0 | Y38: =M76+M77 -> 0 | Z38: =Y38*Z$20 -> 0 | AA38: =Y38*AA$20 -> 0 | AB38: =N76+N77 -> 0 | AC38: =AB38*AC$20 -> 0 | AD38: =AB38*AD$20 -> 0 | AE38: =O76+O77 -> 0 | AF38: =AE38*AF$20 -> 0 | AG38: =AE38*AG$20 -> 0
A39: Grossed-up PILs | E39: =E66 -> 0 | F39: =F66 -> 0 | H39: =H66 -> 0 | I39: =I66 -> 0 | K39: =K66 -> 0 | L39: =L66 -> 0 | N39: =N66 -> 0 | O39: =O66 -> 0 | Q39: =Q66 -> 0 | R39: =R66 -> 0 | T39: =T66 -> 0 | U39: =U66 -> 0 | W39: =W66 -> 0 | X39: =X66 -> 0 | Z39: =Z66 -> 0 | AA39: =AA66 -> 0 | AC39: =AC66 -> 0 | AD39: =AD66 -> 0 | AF39: =AF66 -> 0 | AG39: =AG66 -> 0
A41: Revenue Requirement | E41: =SUM(E35:E39) -> 0 | F41: =SUM(F35:F39) -> 0 | H41: =SUM(H35:H39) -> 0 | I41: =SUM(I35:I39) -> 0 | K41: =SUM(K35:K39) -> 0 | L41: =SUM(L35:L39) -> 0 | N41: =SUM(N35:N39) -> 0 | O41: =SUM(O35:O39) -> 0 | Q41: =SUM(Q35:Q39) -> 0 | R41: =SUM(R35:R39) -> 0 | T41: =SUM(T35:T39) -> 0 | U41: =SUM(U35:U39) -> 0 | W41: =SUM(W35:W39) -> 0 | X41: =SUM(X35:X39) -> 0 | Z41: =SUM(Z35:Z39) -> 0 | AA41: =SUM(AA35:AA39) -> 0 | AC41: =SUM(AC35:AC39) -> 0 | AD41: =SUM(AD35:AD39) -> 0 | AF41: =SUM(AF35:AF39) -> 0 | AG41: =SUM(AG35:AG39) -> 0
A44: Provincial Rate Protection | F44: =F41 -> 0 | I44: =I41 -> 0 | L44: =L41 -> 0 | O44: =O41 -> 0 | R44: =R41 -> 0 | U44: =U41 -> 0 | X44: =X41 -> 0 | AA44: =AA41 -> 0 | AD44: =AD41 -> 0 | AG44: =AG41 -> 0
A46: Monthly Amount Paid by IESO | F46: =F44/12 -> 0 | I46: =I44/12 -> 0 | L46: =L44/12 -> 0 | O46: =O44/12 -> 0 | R46: =R44/12 -> 0 | U46: =U44/12 -> 0 | X46: =X44/12 -> 0 | AA46: =AA44/12 -> 0 | AD46: =AD44/12 -> 0 | AG46: =AG44/12 -> 0
A48: Note 1: The difference between the actual costs of approved eligible investments and revenue received from the IESO should be recorded in a variance account. The Board may provide
A49: regulatory accounting guidance regarding a variance account either in an individual proceeding or on a generic basis.
A50: Note 2: For the 2016 Test Year, Costs and Revenues of the Direct Benefit are to be included in the test year applicant Rate Base and Revenues.
A52: PILs Calculation
E53: 2014 | H53: =G18 -> 2016 | K53: =J18 -> 2017 | N53: =M18 -> 2018 | Q53: =P18 -> 2019 | T53: =S18 -> 2020 Test Year | W53: =V18 -> 2021 | Z53: =Y18 -> 2022 | AC53: =AB18 -> 2023 | AF53: =AE18 -> 2024
A54: Income Tax | E54: Direct Benefit | F54: Provincial | H54: Direct Benefit | I54: Provincial | K54: Direct Benefit | L54: Provincial | N54: Direct Benefit | O54: Provincial | Q54: Direct Benefit | R54: Provincial | T54: Direct Benefit | U54: Provincial | W54: Direct Benefit | X54: Provincial | Z54: Direct Benefit | AA54: Provincial | AC54: Direct Benefit | AD54: Provincial | AF54: Direct Benefit | AG54: Provincial
Y55: Total | AB55: Total | AE55: Total
A56: Net Income - ROE on Rate Base | E56: =E34 -> 0 | F56: =F34 -> 0 | H56: =H34 -> 0 | I56: =I34 -> 0 | K56: =K34 -> 0 | L56: =L34 -> 0 | N56: =N34 -> 0 | O56: =O34 -> 0 | Q56: =Q34 -> 0 | R56: =R34 -> 0 | T56: =T34 -> 0 | U56: =U34 -> 0 | W56: =W34 -> 0 | X56: =X34 -> 0 | Z56: =Z34 -> 0 | AA56: =AA34 -> 0 | AC56: =AC34 -> 0 | AD56: =AD34 -> 0 | AF56: =AF34 -> 0 | AG56: =AG34 -> 0
A57: Amortization (17% DB and 83% P) | E57: =E38 -> 0 | F57: =F38 -> 0 | H57: =H38 -> 0 | I57: =I38 -> 0 | K57: =K38 -> 0 | L57: =L38 -> 0 | N57: =N38 -> 0 | O57: =O38 -> 0 | Q57: =Q38 -> 0 | R57: =R38 -> 0 | T57: =T38 -> 0 | U57: =U38 -> 0 | W57: =W38 -> 0 | X57: =X38 -> 0 | Z57: =Z38 -> 0 | AA57: =AA38 -> 0 | AC57: =AC38 -> 0 | AD57: =AD38 -> 0 | AF57: =AF38 -> 0 | AG57: =AG38 -> 0
A58: CCA (17% DB and 83% P) | E58: =-D94*E$20 -> 0 | F58: =-D94*F$20 -> 0 | H58: =-G94*H$20 -> 0 | I58: =-G94*I$20 -> 0 | K58: =-H94*K$20 -> 0 | L58: =-H94*L$20 -> 0 | N58: =-I94*N$20 -> 0 | O58: =-I94*O$20 -> 0 | Q58: =-J94*Q$20 -> 0 | R58: =-J94*R$20 -> 0 | T58: =-K94*T$20 -> 0 | U58: =-K94*U$20 -> 0 | W58: =-L94*W$20 -> 0 | X58: =-L94*X$20 -> 0 | Z58: =-M94*Z$20 -> 0 | AA58: =-M94*AA$20 -> 0 | AC58: =-N94*AC$20 -> 0 | AD58: =-N94*AD$20 -> 0 | AF58: =-O94*AF$20 -> 0 | AG58: =-O94*AG$20 -> 0
A59: Taxable income | E59: =SUM(E56:E58) -> 0 | F59: =SUM(F56:F58) -> 0 | H59: =SUM(H56:H58) -> 0 | I59: =SUM(I56:I58) -> 0 | K59: =SUM(K56:K58) -> 0 | L59: =SUM(L56:L58) -> 0 | N59: =SUM(N56:N58) -> 0 | O59: =SUM(O56:O58) -> 0 | Q59: =SUM(Q56:Q58) -> 0 | R59: =SUM(R56:R58) -> 0 | T59: =SUM(T56:T58) -> 0 | U59: =SUM(U56:U58) -> 0 | W59: =SUM(W56:W58) -> 0 | X59: =SUM(X56:X58) -> 0 | Z59: =SUM(Z56:Z58) -> 0 | AA59: =SUM(AA56:AA58) -> 0 | AC59: =SUM(AC56:AC58) -> 0 | AD59: =SUM(AD56:AD58) -> 0 | AF59: =SUM(AF56:AF58) -> 0 | AG59: =SUM(AG56:AG58) -> 0
A61: Tax Rate (to be entered)
A63: Income Taxes Payable | E63: =E59*E61 -> 0 | F63: =F59*F61 -> 0 | H63: =H59*H61 -> 0 | I63: =I59*I61 -> 0 | K63: =K59*K61 -> 0 | L63: =L59*L61 -> 0 | N63: =N59*N61 -> 0 | O63: =O59*O61 -> 0 | Q63: =Q59*Q61 -> 0 | R63: =R59*R61 -> 0 | T63: =T59*T61 -> 0 | U63: =U59*U61 -> 0 | W63: =W59*W61 -> 0 | X63: =X59*X61 -> 0 | Z63: =Z59*Z61 -> 0 | AA63: =AA59*AA61 -> 0 | AC63: =AC59*AC61 -> 0 | AD63: =AD59*AD61 -> 0 | AF63: =AF59*AF61 -> 0 | AG63: =AG59*AG61 -> 0
A64: Gross Up
A65: Income Taxes Payable | E65: =E63/(1-E61) -> 0 | F65: =F63/(1-F61) -> 0 | H65: =H63/(1-H61) -> 0 | I65: =I63/(1-I61) -> 0 | K65: =K63/(1-K61) -> 0 | L65: =L63/(1-L61) -> 0 | N65: =N63/(1-N61) -> 0 | O65: =O63/(1-O61) -> 0 | Q65: =Q63/(1-Q61) -> 0 | R65: =R63/(1-R61) -> 0 | T65: =T63/(1-T61) -> 0 | U65: =U63/(1-U61) -> 0 | W65: =W63/(1-W61) -> 0 | X65: =X63/(1-X61) -> 0 | Z65: =Z63/(1-Z61) -> 0 | AA65: =AA63/(1-AA61) -> 0 | AC65: =AC63/(1-AC61) -> 0 | AD65: =AD63/(1-AD61) -> 0 | AF65: =AF63/(1-AF61) -> 0 | AG65: =AG63/(1-AG61) -> 0
A66: Grossed Up PILs | E66: =SUM(E65:E65) -> 0 | F66: =SUM(F65:F65) -> 0 | H66: =SUM(H65:H65) -> 0 | I66: =SUM(I65:I65) -> 0 | K66: =SUM(K65:K65) -> 0 | L66: =SUM(L65:L65) -> 0 | N66: =SUM(N65:N65) -> 0 | O66: =SUM(O65:O65) -> 0 | Q66: =SUM(Q65:Q65) -> 0 | R66: =SUM(R65:R65) -> 0 | T66: =SUM(T65:T65) -> 0 | U66: =SUM(U65:U65) -> 0 | W66: =SUM(W65:W65) -> 0 | X66: =SUM(X65:X65) -> 0 | Z66: =SUM(Z65:Z65) -> 0 | AA66: =SUM(AA65:AA65) -> 0 | AC66: =SUM(AC65:AC65) -> 0 | AD66: =SUM(AD65:AD65) -> 0 | AF66: =SUM(AF65:AF65) -> 0 | AG66: =SUM(AG65:AG65) -> 0
A69: Net Fixed Assets | F69: 2014 | G69: 2015 | H69: 2016 | I69: 2017 | J69: 2018 | K69: 2019 | L69: 2020 | M69: 2021 | N69: 2022 | O69: 2023
A70: Enter applicable amortization in years: | B70: 25
A71: Opening Gross Fixed Assets | G71: =F73 -> 0 | H71: =G73 -> 0 | I71: =H73 -> 0 | J71: =I73 -> 0 | K71: 0 | L71: 0 | M71: =L73 -> 0 | N71: 0 | O71: 0
A72: Gross Capital Additions | F72: ='App.2-FA Proposed REG Invest.'!D99 -> 0 | G72: ='App.2-FA Proposed REG Invest.'!E99 -> 0 | H72: ='App.2-FA Proposed REG Invest.'!F99 -> 0 | I72: ='App.2-FA Proposed REG Invest.'!G99 -> 0 | J72: ='App.2-FA Proposed REG Invest.'!H99 -> 0 | K72: ='App.2-FA Proposed REG Invest.'!I99 -> 0 | L72: ='App.2-FA Proposed REG Invest.'!J99 -> 0 | M72: ='App.2-FA Proposed REG Invest.'!K99 -> 0 | N72: ='App.2-FA Proposed REG Invest.'!L99 -> 0 | O72: ='App.2-FA Proposed REG Invest.'!M99 -> 0
A73: Closing Gross Fixed Assets | F73: =SUM(F71:F72) -> 0 | G73: =SUM(G71:G72) -> 0 | H73: 0 | I73: 0 | J73: 0 | K73: 0 | L73: 0 | M73: 0 | N73: 0 | O73: 0
A75: Opening Accumulated Amortization | G75: =+F78 -> 0 | H75: =+G78 -> 0 | I75: =H78 -> 0 | J75: =I78 -> 0 | K75: 0 | L75: 0 | M75: 0 | N75: 0 | O75: 0
A76: Current Year Amortization (before additions) | F76: =IF(ISERROR(F71/$B$70), 0, F71/$B$70) -> 0 | G76: =IF(ISERROR(G71/$B$70), 0, G71/$B$70) -> 0 | H76: =IF(ISERROR(H71/$B$70), 0, H71/$B$70) -> 0 | I76: =IF(ISERROR(I71/$B$70), 0, I71/$B$70) -> 0 | J76: =IF(ISERROR(J71/$B$70), 0, J71/$B$70) -> 0 | K76: =K71/$B$70 -> 0 | L76: =L71/$B$70 -> 0 | M76: =M71/$B$70 -> 0 | N76: =N71/$B$70 -> 0 | O76: =O71/$B$70 -> 0
A77: Additions (half year) | F77: =F72/B70/2 -> 0 | G77: =G72/B70/2 -> 0 | H77: =H72/B70/2 -> 0 | I77: =I72/B70/2 -> 0 | J77: =J72/B70/2 -> 0 | K77: =K72/B70/2 -> 0 | L77: =L72/B70/2 -> 0 | M77: =M72/B70/2 -> 0 | N77: =N72/B70/2 -> 0 | O77: =O72/B70/2 -> 0
A78: Closing Accumulated Amortization | F78: =SUM(F75+F77) -> 0 | G78: =SUM(G75+G77) -> 0 | H78: =SUM(H75:H77) -> 0 | I78: 0 | J78: 0 | K78: 0 | L78: 0 | M78: 0 | N78: 0 | O78: 0
A80: Opening Net Fixed Assets | F80: =F71-F75 -> 0 | G80: =G71-G75 -> 0 | H80: =H71-H75 -> 0 | I80: =I71-I75 -> 0 | J80: =J71-J75 -> 0 | K80: =J81 -> 0 | L80: =K81 -> 0 | M80: =L81 -> 0 | N80: =M81 -> 0 | O80: =N81 -> 0
A81: Closing Net Fixed Assets | F81: =F73-F78 -> 0 | G81: =G73-G78 -> 0 | H81: 0 | I81: 0 | J81: 0 | K81: 0 | L81: 0 | M81: 0 | N81: 0 | O81: 0
A82: Average Net Fixed Assets | F82: =SUM(F80:F81)/2 -> 0 | G82: =SUM(G80:G81)/2 -> 0 | H82: 0 | I82: 0 | J82: 0 | K82: 0 | L82: 0 | M82: 0 | N82: 0 | O82: 0
A84: UCC for PILs Calculation
F85: 2014 | G85: 2015 | H85: 2016 | I85: 2017 | J85: 2018 | K85: 2019 | L85: 2020 | M85: 2021 | N85: 2022 | O85: 2023
A87: Opening UCC | G87: =F95 -> 0 | H87: 0 | I87: 0 | J87: =I95 -> 0 | K87: 0 | L87: 0 | M87: 0 | N87: 0 | O87: 0
A88: Capital Additions (from Appendix 2-FA) | F88: =F72 -> 0 | G88: =G72 -> 0 | H88: =H72 -> 0 | I88: 0 | J88: 0 | K88: 0 | L88: 0 | M88: 0 | N88: 0 | O88: 0
A89: UCC Before Half Year Rule | F89: =SUM(F87:F88) -> 0 | G89: =SUM(G87:G88) -> 0 | H89: =SUM(H87:H88) -> 0 | I89: 0 | J89: 0 | K89: 0 | L89: 0 | M89: 0 | N89: 0 | O89: 0
A90: Half Year Rule (1/2 Additions - Disposals) | F90: =F88/2 -> 0 | G90: =G88/2 -> 0 | H90: 0 | I90: 0 | J90: 0 | K90: 0 | L90: 0 | M90: 0 | N90: 0 | O90: 0
A91: Reduced UCC | F91: =F89-F90 -> 0 | G91: =G89-G90 -> 0 | H91: 0 | I91: 0 | J91: 0 | K91: 0 | L91: 0 | M91: 0 | N91: 0 | O91: 0
A92: CCA Rate Class (to be entered) | B92: 47 | F92: =$B$92 -> 47 | G92: 47 | H92: 47 | I92: 47 | J92: 47 | K92: 47 | L92: 47 | M92: 47 | N92: 47 | O92: 47
A93: CCA Rate (to be entered) | B93: 0.08 | F93: =$B$93 -> 0.08 | G93: 0.08 | H93: 0.08 | I93: 0.08 | J93: 0.08 | K93: 0.08 | L93: 0.08 | M93: 0.08 | N93: 0.08 | O93: 0.08
A94: CCA | F94: =F91*F$93 -> 0 | G94: =G91*G$93 -> 0 | H94: 0 | I94: 0 | J94: 0 | K94: 0 | L94: 0 | M94: 0 | N94: 0 | O94: 0
A95: Closing UCC | F95: =F89-F94 -> 0 | G95: =G89-G94 -> 0 | H95: =H89-H94 -> 0 | I95: 0 | J95: 0 | K95: 0 | L95: 0 | M95: 0 | N95: 0 | O95: 0

Sheet Hidden_REG Expansion (hidden)
A1: Utility Name | B1: EB Number | C1: Test Year | D1: Bridge Year | E1: Last Rebasing Year | F1: Calculation of Renewable Generation Connection Direct Benefits/Provincial Amount Renewable Expansion Investments | G1: Year | H1: Amount
A2: ='LDC Info'!$E$14 -> Kitchener-Wilmot Hydro Inc. | B2: =EBNUMBER -> EB-2019-0049 | C2: =TestYear -> 2020 | D2: =BridgeYear -> 2019 | E2: =RebaseYear -> 2014 | F2: Provincial Rate Protection | G2: 2014 | H2: ='App.2-FC Calc of REG Expansion'!F44 -> 0
A3: ='LDC Info'!$E$14 -> Kitchener-Wilmot Hydro Inc. | B3: EB-2019-0049 | C3: 2020 | D3: 2019 | E3: 2014 | F3: Provincial Rate Protection | G3: 2015 | H3: ='App.2-FC Calc of REG Expansion'!I44 -> 0
A4: ='LDC Info'!$E$14 -> Kitchener-Wilmot Hydro Inc. | B4: EB-2019-0049 | C4: 2020 | D4: 2019 | E4: 2014 | F4: Provincial Rate Protection | G4: 2016 | H4: ='App.2-FC Calc of REG Expansion'!L44 -> 0
A5: ='LDC Info'!$E$14 -> Kitchener-Wilmot Hydro Inc. | B5: EB-2019-0049 | C5: 2020 | D5: 2019 | E5: 2014 | F5: Provincial Rate Protection | G5: 2017 | H5: ='App.2-FC Calc of REG Expansion'!O44 -> 0
A6: ='LDC Info'!$E$14 -> Kitchener-Wilmot Hydro Inc. | B6: EB-2019-0049 | C6: 2020 | D6: 2019 | E6: 2014 | F6: Provincial Rate Protection | G6: 2018 | H6: ='App.2-FC Calc of REG Expansion'!R44 -> 0
A7: ='LDC Info'!$E$14 -> Kitchener-Wilmot Hydro Inc. | B7: EB-2019-0049 | C7: 2020 | D7: 2019 | E7: 2014 | F7: Provincial Rate Protection | G7: 2019 | H7: ='App.2-FC Calc of REG Expansion'!U44 -> 0
A8: ='LDC Info'!$E$14 -> Kitchener-Wilmot Hydro Inc. | B8: EB-2019-0049 | C8: 2020 | D8: 2019 | E8: 2014 | F8: Provincial Rate Protection | G8: 2020 | H8: ='App.2-FC Calc of REG Expansion'!X44 -> 0
A9: ='LDC Info'!$E$14 -> Kitchener-Wilmot Hydro Inc. | B9: EB-2019-0049 | C9: 2020 | D9: 2019 | E9: 2014 | F9: Provincial Rate Protection | G9: 2021 | H9: ='App.2-FC Calc of REG Expansion'!AA44 -> 0
A10: ='LDC Info'!$E$14 -> Kitchener-Wilmot Hydro Inc. | B10: EB-2019-0049 | C10: 2020 | D10: 2019 | E10: 2014 | F10: Provincial Rate Protection | G10: 2022 | H10: ='App.2-FC Calc of REG Expansion'!AD44 -> 0
A11: ='LDC Info'!$E$14 -> Kitchener-Wilmot Hydro Inc. | B11: EB-2019-0049 | C11: 2020 | D11: 2019 | E11: 2014 | F11: Provincial Rate Protection | G11: 2023 | H11: ='App.2-FC Calc of REG Expansion'!AG44 -> 0

Sheet App.2-G SQI
M1: File Number: | O1: =EBNUMBER -> EB-2019-0049
M2: Exhibit:
M3: Tab:
M4: Schedule:
M5: Page:
M7: Date:
A9: Appendix 2-G
A10: Service Reliability and Quality Indicators
A11: 2011 - 2015
A13: Service Reliability
A15: Index | B15: Including outages caused by loss of supply | G15: Excluding outages caused by loss of supply | L15: Excluding Major Event Days
B16: =TestYear-6 -> 2014 | C16: =TestYear-5 -> 2015 | D16: =TestYear-4 -> 2016 | E16: =TestYear-3 -> 2017 | F16: =TestYear-2 -> 2018 | G16: =B16 -> 2014 | H16: 2015 | I16: 2016 | J16: 2017 | K16: 2018 | L16: 2014 | M16: 2015 | N16: 2016 | O16: 2017 | P16: 2018
A17: SAIDI | B17: 0.72 | C17: 0.8602 | D17: 2.7067 | E17: 0.9153 | F17: 1.7 | G17: 0.72 | H17: 0.57 | I17: 2.698 | J17: 0.9153 | K17: 1.69 | L17: 0.72 | M17: 0.5702 | N17: 1.1112 | O17: 0.9153 | P17: 0.71
A18: SAIFI | B18: 1.03 | C18: 0.903 | D18: 1.811 | E18: 1.024 | F18: 1.48 | G18: 1.03 | H18: 0.77 | I18: 1.725 | J18: 1.024 | K18: 1.4104 | L18: 1.03 | M18: 0.7693 | N18: 1.1094 | O18: 1.024 | P18: 1.04
A20: 5 Year Historical Average
A21: SAIDI | F21: =IF(ISERROR(AVERAGE(B17:F17)), "", AVERAGE(B17:F17)) -> 1.38044 | K21: =IF(ISERROR(AVERAGE(G17:K17)), "", AVERAGE(G17:K17)) -> 1.31866 | P21: =IF(ISERROR(AVERAGE(L17:P17)), "", AVERAGE(L17:P17)) -> 0.80534
A22: SAIFI | F22: =IF(ISERROR(AVERAGE(B18:F18)), "", AVERAGE(B18:F18)) -> 1.2496 | K22: =IF(ISERROR(AVERAGE(G18:K18)), "", AVERAGE(G18:K18)) -> 1.19188 | P22: =IF(ISERROR(AVERAGE(L18:P18)), "", AVERAGE(L18:P18)) -> 0.99454
A24: SAIDI = System Average Interruption Duration Index
A25: SAIFI = System Average Interruption Frequency Index
A27: Service Quality
A29: Indicator | E29: OEB Minimum Standard | G29: =B16 -> 2014 | H29: =C16 -> 2015 | I29: =D16 -> 2016 | J29: =E16 -> 2017 | K29: =F16 -> 2018
A30: Low Voltage Connections | E30: 0.9 | G30: 0.909 | H30: 0.903 | I30: 0.925 | J30: 0.9893 | K30: 0.991
A31: High Voltage Connections | E31: 0.9 | G31: 1 | H31: 1 | I31: 1 | J31: 1 | K31: 1
A32: Telephone Accessibility | E32: 0.65 | G32: 0.804 | H32: 0.781 | I32: 0.784 | J32: 0.928 | K32: 0.919
A33: Appointments Met | E33: 0.9 | G33: 0.953 | H33: 0.962 | I33: 0.975 | J33: 0.9793 | K33: 0.992
A34: Written Response to Enquires | E34: 0.8 | G34: 0.998 | H34: 0.9998 | I34: 0.9994 | J34: 0.9999 | K34: 0.996
A35: Emergency Urban Response | E35: 0.8 | G35: 0.8539 | H35: 0.8387 | I35: 0.8077 | J35: 0.9474 | K35: 0.88
A36: Emergency Rural Response | E36: 0.8 | G36: 1 | H36: 1 | I36: 0.9474 | J36: 1 | K36: 1
A37: Telephone Call Abandon Rate | E37: 0.1 | G37: 0.0171 | H37: 0.0226 | I37: 0.0419 | J37: 0.0068 | K37: 0.014
A38: Appointment Scheduling | E38: 0.9 | G38: 0.8837 | H38: 0.9414 | I38: 0.9644 | J38: 0.9591 | K38: 0.911
A39: Rescheduling a Missed Appointment | E39: 1 | G39: 1 | H39: 1 | I39: 1 | J39: 1 | K39: 1
A40: Reconnection Performance Standard | E40: 0.85 | G40: 1 | H40: 1 | I40: 1 | J40: 1 | K40: 1

Sheet App.2-H_Other_Oper_Rev
K1: File Number: | L1: =EBNUMBER -> EB-2019-0049
K2: Exhibit:
K3: Tab:
A4: TO BE UPDATED AT THE DRAFT RATE ORDER STAGE | K4: Schedule:
K5: Page:
K7: Date:
A9: Appendix 2-H
A10: Other Operating Revenue
A12: USoA # | B12: USoA Description | C12: =D13 - 1 &" Actual"&CHAR(178) -> 2011 Actual² | D12: 2012 Actual² | E12: 2013 Actual² | F12: 2014 Actual² | G12: =H13 - 1 &" Actual"&CHAR(178) -> 2015 Actual² | H12: =I13 - 1 &" Actual"&CHAR(178) -> 2016 Actual² | I12: =I13 & " Actual" & CHAR(178) -> 2017 Actual² | J12: 2018 Actual | K12: Bridge Year | L12: Test Year | N12: CGAAP
C13: =D13-1 -> 2011 | D13: =E13-1 -> 2012 | E13: =F13-1 -> 2013 | F13: =G13-1 -> 2014 | G13: =H13-1 -> 2015 | H13: =I13-1 -> 2016 | I13: =J13-1 -> 2017 | J13: 2018 | K13: =BridgeYear -> 2019 | L13: =TestYear -> 2020
B14: Reporting Basis | F14: CGAAP | G14: MIFRS | H14: MIFRS | I14: MIFRS | J14: MIFRS | K14: MIFRS | L14: MIFRS | N14: CGAAP
A15: 4235 | B15: Specific Service Charges | F15: 404972.61 | G15: 462194.43 | H15: 467036.49 | I15: 425770.59 | J15: 405358.83 | K15: 380000 | L15: 407000
A16: 4225 | B16: Late Payment Charges | F16: 266080.63 | G16: 265905.17 | H16: 228268.04 | I16: 196977.69 | J16: 203653.22 | K16: 205100 | L16: 207100
A17: 4082 | B17: Retail Services Revenues | F17: 44817.9 | G17: 43187 | H17: 37847.5 | I17: 33820.2 | J17: 27973.1 | K17: 24000 | L17: 44000
A18: 4084 | B18: STR Revenues | F18: 1030.75 | G18: 954 | H18: 807.25 | I18: 700.5 | J18: 409.5 | K18: 400 | L18: 800
A19: 4086 | B19: SSS Administration Revenue | F19: 258797 | G19: 272250.5 | H19: 269834.5 | I19: 276203.5 | J19: 282309.5 | K19: 288300 | L19: 292200
A20: 4210 | B20: Rent from Electric Property | F20: 508406.56 | G20: 507128.74 | H20: 519579.03 | I20: 509641.06 | J20: 528858.42 | K20: 563400 | L20: 886700
A21: 4220 | B21: Other Electric revenues | F21: 40200 | G21: 41100 | H21: 42000 | I21: 47562.4 | J21: 68891.13 | K21: 70100 | L21: 71600
A22: 4245 | B22: Government and Other Assistance Directly Credited to Income | F22: 0 | G22: 271372.59 | H22: 480409.26 | I22: 658473.48 | J22: 781551.87 | K22: 857100 | L22: 939700
A23: 4305 | B23: Regulatory Debits | F23: 0 | G23: -4197953.97 | H23: 0 | I23: 0 | J23: 0 | K23: 0 | L23: 0
A24: 4355 | B24: Gains-Disp of utility property | F24: 25542.44 | G24: 43046.28 | H24: 53831.88 | I24: 28575 | J24: 128387.15 | K24: 15000 | L24: 15000
A25: 4375 | B25: Revenue Non-Utility Operations | F25: 3943897.37 | G25: 2728279.35 | H25: 3438664.28 | I25: 4628441.85 | J25: 5801968 | K25: 5207400 | L25: 5662600
A26: 4380 | B26: Expenses - Non Utility Operations | F26: -3361801.39 | G26: -2686954.66 | H26: -3448373.22 | I26: -4615757.37 | J26: -4491926.68 | K26: -5194700 | L26: -5649900
A27: 4390 | B27: Misc Non-Operating Income | F27: 251872.9 | G27: 304986.03 | H27: 241915.6 | I27: 434663.13 | J27: 227055.97 | K27: 225000 | L27: 225200
A28: 4398 | B28: Foreign Exchange Gains/Losses | F28: 1241.67 | G28: 2402.29 | H28: -446.36 | I28: -732.39 | J28: 1171.78 | K28: 0 | L28: 0
A29: 4405 | B29: Interest & Dividend Income | F29: 334155.53 | G29: 260581.74 | H29: 288299.84 | I29: 359724.04 | J29: 564982.15 | K29: 255600 | L29: 141900
A53: Specific Service Charges | C53: =C15 -> 0 | D53: 0 | E53: 0 | F53: 404972.61 | G53: 462194.43 | H53: 467036.49 | I53: 425770.59 | J53: 405358.83 | K53: 380000 | L53: 407000 | N53: =N15 -> 0
A54: Late Payment Charges | C54: =C16 -> 0 | D54: 0 | E54: 0 | F54: 266080.63 | G54: 265905.17 | H54: 228268.04 | I54: 196977.69 | J54: 203653.22 | K54: 205100 | L54: 207100 | N54: =N16 -> 0
A55: Other Operating Revenues | F55: =+F18+F19+F20+F21+F17 -> 853252.21 | G55: =+G18+G19+G20+G21+G17 -> 864620.24 | H55: 870068.28 | I55: 867927.66 | J55: 908441.65 | K55: 946200 | L55: 1295300
A56: Other Income or Deductions | F56: =+F22+F23+F24+F25+F26+F27+F28+F29 -> 1194908.52 | G56: =+G22+G23+G24+G25+G26+G27+G28+G29 -> -3274240.35 | H56: 1054301.28 | I56: 1493387.74 | J56: 3013190.24 | K56: 1365400 | L56: 1334500
A57: Total | C57: =SUM(C53:C56) -> 0 | D57: =SUM(D53:D56) -> 0 | E57: =SUM(E53:E56) -> 0 | F57: =SUM(F53:F56) -> 2719213.97 | G57: =SUM(G53:G56) -> -1681520.51 | H57: 2619674.09 | I57: 2984063.68 | J57: 4530643.94 | K57: 2896700 | L57: 3243900 | N57: =SUM(N53:N56) -> 0
A59: Description Account(s)
A60: Specific Service Charges: 4235
A61: Late Payment Charges: 4225
A62: Other Distribution Revenues: 4082, 4084, 4090, 4205, 4210, 4215, 4220, 4230, 4240, 4245
A63: Other Income and Expenses: 4305, 4310, 4315, 4320, 4325, 4330, 4335, 4340, 4345, 4350, 4355, 4357, 4360, 4362, 4365, 4370, 4375, 4380, 4385, 4390, 4395, 4398, 4405, 4410, 4415, 4420
A65: Note: Add all applicable accounts listed above to the table and include all relevant information.
A67: Account Breakdown Details
A69: For each "Other Operating Revenue" and "Other Income or Deductions" Account, a detailed breakdown of the account components is required. See the example below for Account 4405, Interest and Dividend Income.
A72: =CONCATENATE("Account ",A17," - ",B17) -> Account 4082 - Retail Services Revenues
C73: =C12 -> 2011 Actual² | D73: 2012 Actual² | E73: 2013 Actual² | F73: 2014 Actual² | G73: 2015 Actual² | H73: 2016 Actual² | I73: 2017 Actual² | J73: 2018 Actual | K73: Bridge Year | L73: Test Year | N73: =N12 -> CGAAP
C74: =C13 -> 2011 | D74: 2012 | E74: 2013 | F74: 2014 | G74: 2015 | H74: 2016 | I74: 2017 | J74: 2018 | K74: 2019 | L74: 2020 | N74: 2014
A75: Reporting Basis | C75: =IF(C14=0, "", C14) ->  | D75: =IF(D14=0, "", D14) ->  | E75: =IF(E14=0, "", E14) ->  | F75: MIFRS | G75: =IF(G14=0, "", G14) -> MIFRS | H75: MIFRS | I75: MIFRS | J75: MIFRS | K75: MIFRS | L75: MIFRS | N75: =IF(N14=0, "", N14) -> CGAAP
A76: Retail Service Revenue | F76: 44817.9 | G76: 43187 | H76: 37847.5 | I76: 33820.2 | J76: 27973.1 | K76: 24000 | L76: 44000 | N76: =F76 -> 44817.9
A83: Total | C83: =SUM(C76:C82) -> 0 | D83: 0 | E83: 0 | F83: 44817.9 | G83: 43187 | H83: 37847.5 | I83: 33820.2 | J83: 27973.1 | K83: 24000 | L83: 44000 | N83: =SUM(N76:N82) -> 44817.9
A85: =CONCATENATE("Account ",A18," - ",B18) -> Account 4084 - STR Revenues
C86: =C73 -> 2011 Actual² | D86: 2012 Actual² | E86: 2013 Actual² | F86: 2014 Actual² | G86: 2015 Actual² | H86: 2016 Actual² | I86: 2017 Actual² | J86: 2018 Actual | K86: Bridge Year | L86: Test Year | N86: =N73 -> CGAAP
C87: =C74 -> 2011 | D87: 2012 | E87: 2013 | F87: 2014 | G87: 2015 | H87: 2016 | I87: 2017 | J87: 2018 | K87: 2019 | L87: 2020 | N87: 2014
A88: Reporting Basis | C88: =IF(C75=0, "", C75) ->  | F88: MIFRS | G88: MIFRS | H88: MIFRS | I88: MIFRS | J88: MIFRS | K88: MIFRS | L88: MIFRS | N88: =IF(N75=0, "", N75) -> CGAAP
A89: STR Revenue | F89: 1030.75 | G89: 954 | H89: 807.25 | I89: 700.5 | J89: 409.5 | K89: 400 | L89: 800 | N89: =F89 -> 1030.75
A97: Total | C97: =SUM(C89:C96) -> 0 | D97: 0 | E97: 0 | F97: 1030.75 | G97: 954 | H97: 807.25 | I97: 700.5 | J97: 409.5 | K97: 400 | L97: 800 | N97: =SUM(N89:N96) -> 1030.75
A99: =CONCATENATE("Account ",A19," - ",B19) -> Account 4086 - SSS Administration Revenue
C100: =C86 -> 2011 Actual² | D100: 2012 Actual² | E100: 2013 Actual² | F100: 2014 Actual² | G100: 2015 Actual² | H100: 2016 Actual² | I100: 2017 Actual² | J100: 2018 Actual | K100: Bridge Year | L100: Test Year | N100: =N86 -> CGAAP
C101: =C87 -> 2011 | D101: 2012 | E101: 2013 | F101: 2014 | G101: 2015 | H101: 2016 | I101: 2017 | J101: 2018 | K101: 2019 | L101: 2020 | N101: 2014
A102: Reporting Basis | C102: =IF(C88=0, "", C88) ->  | F102: MIFRS | G102: MIFRS | H102: MIFRS | I102: MIFRS | J102: MIFRS | K102: MIFRS | L102: MIFRS | N102: =IF(N88=0, "", N88) -> CGAAP
A103: SSS Revenue | F103: 258797 | G103: 272250.5 | H103: 269834.5 | I103: 276203.5 | J103: 282309.5 | K103: 288300 | L103: 292200 | N103: =F103 -> 258797
A111: Total | C111: =SUM(C103:C110) -> 0 | D111: 0 | E111: 0 | F111: 258797 | G111: 272250.5 | H111: 269834.5 | I111: 276203.5 | J111: 282309.5 | K111: 288300 | L111: 292200 | N111: =SUM(N103:N110) -> 258797
A113: =CONCATENATE("Account ",A20," - ",B20) -> Account 4210 - Rent from Electric Property
C114: =C100 -> 2011 Actual² | D114: 2012 Actual² | E114: 2013 Actual² | F114: 2014 Actual² | G114: 2015 Actual² | H114: 2016 Actual² | I114: 2017 Actual² | J114: 2018 Actual | K114: Bridge Year | L114: Test Year | N114: =N100 -> CGAAP
C115: =C101 -> 2011 | D115: 2012 | E115: 2013 | F115: 2014 | G115: 2015 | H115: 2016 | I115: 2017 | J115: 2018 | K115: 2019 | L115: 2020 | N115: 2014
A116: Reporting Basis | C116: =IF(C102=0, "", C102) ->  | F116: MIFRS | G116: MIFRS | H116: MIFRS | I116: MIFRS | J116: MIFRS | K116: MIFRS | L116: MIFRS | N116: =IF(N102=0, "", N102) -> CGAAP
A117: Pole Rental Revenue | F117: 499156.53 | G117: 493837.08 | H117: 510829.07 | I117: 503391.1 | J117: 510108.46 | K117: 527100 | L117: 850400 | N117: =F117 -> 499156.53
A118: Other Rental Revenue | F118: 9250.03 | G118: 13291.66 | H118: 8749.96 | I118: 6249.96 | J118: 18749.96 | K118: 36300 | L118: 36300 | N118: 9250.03
A125: Total | C125: =SUM(C117:C124) -> 0 | D125: 0 | E125: 0 | F125: 508406.56 | G125: 507128.74 | H125: 519579.03 | I125: 509641.06 | J125: 528858.42 | K125: 563400 | L125: 886700 | N125: =SUM(N117:N124) -> 508406.56
A127: =CONCATENATE("Account ",A21," - ",B21) -> Account 4220 - Other Electric revenues
C128: =C114 -> 2011 Actual² | D128: 2012 Actual² | E128: 2013 Actual² | F128: 2014 Actual² | G128: 2015 Actual² | H128: 2016 Actual² | I128: 2017 Actual² | J128: 2018 Actual | K128: Bridge Year | L128: Test Year | N128: =N114 -> CGAAP
C129: =C115 -> 2011 | D129: 2012 | E129: 2013 | F129: 2014 | G129: 2015 | H129: 2016 | I129: 2017 | J129: 2018 | K129: 2019 | L129: 2020 | N129: 2014
A130: Reporting Basis | C130: =IF(C116=0, "", C116) ->  | F130: MIFRS | G130: MIFRS | H130: MIFRS | I130: MIFRS | J130: MIFRS | K130: MIFRS | L130: MIFRS | N130: =IF(N116=0, "", N116) -> CGAAP
A131: Control Room Services | F131: 29400 | G131: 30300 | H131: 31200 | I131: 32100 | J131: 33000 | K131: 33000 | L131: 33900 | N131: =F131 -> 29400
